Department Family,Entity,Date,Expense Type,Expense Area,Supplier,Transaction Number,Amount,Item Description
BEIS,UKRI - AHRC,03/02/2020,Contract Staff,PSU Project Office,Alexander Mann Solutions Ltd,98684319,2795.58,Contract Staff
BEIS,UKRI - AHRC,03/02/2020,T&S UK - Other Charges,SMT,Unspecified,98685002,12.19,T&S UK - Other Charges
BEIS,UKRI - AHRC,03/02/2020,T&S UK - Public Transport,SMT,Unspecified,98685002,17.50,T&S UK - Public Transport
BEIS,UKRI - AHRC,03/02/2020,T&S UK - Public Transport,SMT,Unspecified,98685002,4.80,T&S UK - Public Transport
BEIS,UKRI - AHRC,03/02/2020,T&S UK - Subsistence,SMT,Unspecified,98685002,7.30,T&S UK - Subsistence
BEIS,UKRI - AHRC,03/02/2020,T&S UK - Subsistence,SMT,Unspecified,98685002,222.00,T&S UK - Subsistence
BEIS,UKRI - AHRC,03/02/2020,T&S UK - Subsistence,SMT,Unspecified,98685002,5.00,T&S UK - Subsistence
BEIS,UKRI - AHRC,03/02/2020,T&S UK - Mileage,Digital Arts and Humanities and Creative Industries,Unspecified,98685003,11.70,T&S UK - Mileage
BEIS,UKRI - AHRC,03/02/2020,T&S UK - Other Charges,Digital Arts and Humanities and Creative Industries,Unspecified,98685003,3.30,T&S UK - Other Charges
BEIS,UKRI - AHRC,03/02/2020,T&S UK - Parking Tolls Congestion Charges,Digital Arts and Humanities and Creative Industries,Unspecified,98685003,120.00,T&S UK - Parking Tolls Congestion Charges
BEIS,UKRI - AHRC,03/02/2020,T&S UK - Subsistence,Digital Arts and Humanities and Creative Industries,Unspecified,98685003,4.25,T&S UK - Subsistence
BEIS,UKRI - AHRC,03/02/2020,T&S UK - Subsistence,Digital Arts and Humanities and Creative Industries,Unspecified,98685003,5.00,T&S UK - Subsistence
BEIS,UKRI - AHRC,04/02/2020,Building Rents,Oxford Radio Carbon Dating Service,UKRI - Natural Environment Research Council,98681759,41000.00,Building Rents
BEIS,UKRI - AHRC,04/02/2020,T&S UK - Other Charges,Public and Stakeholder Engagement,Unspecified,98686168,3.60,T&S UK - Other Charges
BEIS,UKRI - AHRC,04/02/2020,T&S UK - Public Transport,Public and Stakeholder Engagement,Unspecified,98686168,2.00,T&S UK - Public Transport
BEIS,UKRI - AHRC,04/02/2020,T&S UK - Public Transport,Public and Stakeholder Engagement,Unspecified,98686168,5.00,T&S UK - Public Transport
BEIS,UKRI - AHRC,04/02/2020,T&S UK - Subsistence,Public and Stakeholder Engagement,Unspecified,98686168,11.04,T&S UK - Subsistence
BEIS,UKRI - AHRC,04/02/2020,T&S UK - Subsistence,Public and Stakeholder Engagement,Unspecified,98686168,45.70,T&S UK - Subsistence
BEIS,UKRI - AHRC,04/02/2020,T&S UK - Subsistence,Public and Stakeholder Engagement,Unspecified,98686168,5.20,T&S UK - Subsistence
BEIS,UKRI - AHRC,04/02/2020,T&S UK - Other Charges,International Development and Area Studies,Unspecified,98686169,82.35,T&S UK - Other Charges
BEIS,UKRI - AHRC,04/02/2020,T&S UK - Subsistence,International Development and Area Studies,Unspecified,98686169,59.10,T&S UK - Subsistence
BEIS,UKRI - AHRC,04/02/2020,T&S UK - Accommodation,Operations,Unspecified,98686170,47.50,T&S UK - Accommodation
BEIS,UKRI - AHRC,04/02/2020,T&S UK - Subsistence,Operations,Unspecified,98686170,49.54,T&S UK - Subsistence
BEIS,UKRI - AHRC,05/02/2020,Conferences & Seminars,"History, Heritage, Languages and Literature",Calder Conference Ltd,98685465,633.60,Conferences & Seminars
BEIS,UKRI - AHRC,05/02/2020,Printing & Stationery,Corporate Services,Banner Group Ltd,98685597,22.68,Printing & Stationery
BEIS,UKRI - AHRC,05/02/2020,Health & Safety (inc. Medicals & Opticians),HR,Swindon Occupational Medical Services Ltd,98685621,1225.00,Health & Safety (inc. Medicals & Opticians)
BEIS,UKRI - AHRC,05/02/2020,Meetings & Catering,Executive Office,Harbour & Jones Ltd T/A Dartmouth House,98686503,417.60,Meetings & Catering
BEIS,UKRI - AHRC,05/02/2020,Meetings & Catering,SMT,Harbour & Jones Ltd T/A Dartmouth House,98686503,20.10,Meetings & Catering
BEIS,UKRI - AHRC,06/02/2020,Staff Training,Public and Stakeholder Engagement,Media First Limited,98685767,4194.00,Staff Training
BEIS,UKRI - AHRC,06/02/2020,Conferences & Seminars,Executive Office,Calder Conference Ltd,98686718,828.46,Conferences & Seminars
BEIS,UKRI - AHRC,06/02/2020,Conferences & Seminars,SMT,Calder Conference Ltd,98686718,166.98,Conferences & Seminars
BEIS,UKRI - AHRC,06/02/2020,Corporate Events,SMT,Calder Conference Ltd,98686718,160.56,Corporate Events
BEIS,UKRI - AHRC,06/02/2020,Conferences & Seminars,JPI Cultural Heritage Project,Calder Conference Ltd,98686951,369.50,Conferences & Seminars
BEIS,UKRI - AHRC,06/02/2020,Printing & Stationery,PSU Project Office,RS Components,98687095,32.83,Printing & Stationery
BEIS,UKRI - AHRC,06/02/2020,Printing & Stationery,PSU Project Office,RS Components,98687095,17.28,Printing & Stationery
BEIS,UKRI - AHRC,06/02/2020,Non-staff travel and subsistance,SMT,Non Employee Expenses Supplier,98688045,96.41,Non-staff travel and subsistance
BEIS,UKRI - AHRC,06/02/2020,T&S UK - Public Transport,"History, Heritage, Languages and Literature",Unspecified,98688170,1.50,T&S UK - Public Transport
BEIS,UKRI - AHRC,06/02/2020,T&S UK - Public Transport,"History, Heritage, Languages and Literature",Unspecified,98688170,6.10,T&S UK - Public Transport
BEIS,UKRI - AHRC,06/02/2020,T&S UK - Subsistence,"History, Heritage, Languages and Literature",Unspecified,98688170,8.20,T&S UK - Subsistence
BEIS,UKRI - AHRC,06/02/2020,T&S UK - Subsistence,"History, Heritage, Languages and Literature",Unspecified,98688170,3.50,T&S UK - Subsistence
BEIS,UKRI - AHRC,07/02/2020,Contract Staff,PSU JRS,Alexander Mann Solutions Ltd,98674833,4107.74,Contract Staff
BEIS,UKRI - AHRC,07/02/2020,Contract Staff,PSU JRS,Alexander Mann Solutions Ltd,98680692,3423.12,Contract Staff
BEIS,UKRI - AHRC,07/02/2020,T&S UK - Mileage,Executive Office,Unspecified,98688574,33.30,T&S UK - Mileage
BEIS,UKRI - AHRC,07/02/2020,T&S UK - Other Charges,Executive Office,Unspecified,98688574,5.19,T&S UK - Other Charges
BEIS,UKRI - AHRC,07/02/2020,T&S UK - Parking Tolls Congestion Charges,Executive Office,Unspecified,98688574,12.50,T&S UK - Parking Tolls Congestion Charges
BEIS,UKRI - AHRC,07/02/2020,T&S UK - Public Transport,Executive Office,Unspecified,98688574,19.00,T&S UK - Public Transport
BEIS,UKRI - AHRC,07/02/2020,T&S UK - Subsistence,Executive Office,Unspecified,98688574,7.75,T&S UK - Subsistence
BEIS,UKRI - AHRC,07/02/2020,T&S UK - Subsistence,Executive Office,Unspecified,98688574,31.85,T&S UK - Subsistence
BEIS,UKRI - AHRC,07/02/2020,T&S UK - Subsistence,Executive Office,Unspecified,98688574,24.79,T&S UK - Subsistence
BEIS,UKRI - AHRC,07/02/2020,T&S UK - Subsistence,Executive Office,Unspecified,98688574,25.00,T&S UK - Subsistence
BEIS,UKRI - AHRC,07/02/2020,T&S UK - Subsistence,Operations,Unspecified,98688575,23.00,T&S UK - Subsistence
BEIS,UKRI - AHRC,10/02/2020,Contract Staff,PSU JRS,Alexander Mann Solutions Ltd,98687771,6846.24,Contract Staff
BEIS,UKRI - AHRC,10/02/2020,Non-staff travel and subsistance,Operations,Non Employee Expenses Supplier,98687894,40.95,Non-staff travel and subsistance
BEIS,UKRI - AHRC,10/02/2020,Non-staff travel and subsistance,Operations,Non Employee Expenses Supplier,98687895,150.00,Non-staff travel and subsistance
BEIS,UKRI - AHRC,10/02/2020,Non-staff travel and subsistance,Operations,Non Employee Expenses Supplier,98687896,33.00,Non-staff travel and subsistance
BEIS,UKRI - AHRC,10/02/2020,Non-staff travel and subsistance,Operations,Non Employee Expenses Supplier,98687897,14.60,Non-staff travel and subsistance
BEIS,UKRI - AHRC,10/02/2020,Non-staff travel and subsistance,Operations,Non Employee Expenses Supplier,98687898,109.81,Non-staff travel and subsistance
BEIS,UKRI - AHRC,10/02/2020,Non-staff travel and subsistance,Skills Strategy,Non Employee Expenses Supplier,98687899,143.20,Non-staff travel and subsistance
BEIS,UKRI - AHRC,10/02/2020,Non-staff travel and subsistance,Skills Strategy,Non Employee Expenses Supplier,98687900,101.90,Non-staff travel and subsistance
BEIS,UKRI - AHRC,10/02/2020,Non-staff travel and subsistance,Skills Strategy,Non Employee Expenses Supplier,98687901,200.79,Non-staff travel and subsistance
BEIS,UKRI - AHRC,10/02/2020,Non-staff travel and subsistance,Skills Strategy,Non Employee Expenses Supplier,98687902,23.80,Non-staff travel and subsistance
BEIS,UKRI - AHRC,10/02/2020,Non-staff travel and subsistance,Operations,Non Employee Expenses Supplier,98687903,46.19,Non-staff travel and subsistance
BEIS,UKRI - AHRC,10/02/2020,Non-staff travel and subsistance,Operations,Non Employee Expenses Supplier,98687904,125.78,Non-staff travel and subsistance
BEIS,UKRI - AHRC,10/02/2020,Non-staff travel and subsistance,Operations,Non Employee Expenses Supplier,98687905,226.47,Non-staff travel and subsistance
BEIS,UKRI - AHRC,10/02/2020,Non-staff travel and subsistance,Skills Strategy,Non Employee Expenses Supplier,98687906,25.49,Non-staff travel and subsistance
BEIS,UKRI - AHRC,10/02/2020,Non-staff travel and subsistance,SMT,Non Employee Expenses Supplier,98687908,255.02,Non-staff travel and subsistance
BEIS,UKRI - AHRC,10/02/2020,Conferences & Seminars,International Development and Area Studies,Calder Conference Ltd,98688616,3943.00,Conferences & Seminars
BEIS,UKRI - AHRC,10/02/2020,Contract Staff,PSU Project Office,Alexander Mann Solutions Ltd,98688624,2795.58,Contract Staff
BEIS,UKRI - AHRC,10/02/2020,T&S UK - Mileage,SMT,Unspecified,98689982,18.00,T&S UK - Mileage
BEIS,UKRI - AHRC,10/02/2020,T&S UK - Subsistence,Operations,Unspecified,98689983,13.73,T&S UK - Subsistence
BEIS,UKRI - AHRC,10/02/2020,T&S UK - Subsistence,Operations,Unspecified,98689984,16.30,T&S UK - Subsistence
BEIS,UKRI - AHRC,10/02/2020,T&S UK - Subsistence,Operations,Unspecified,98689984,2.55,T&S UK - Subsistence
BEIS,UKRI - AHRC,11/02/2020,T&S UK - Other Charges,SMT,Unspecified,98689628,8.00,T&S UK - Other Charges
BEIS,UKRI - AHRC,11/02/2020,T&S UK - Parking Tolls Congestion Charges,SMT,Unspecified,98689628,21.70,T&S UK - Parking Tolls Congestion Charges
BEIS,UKRI - AHRC,11/02/2020,T&S UK - Public Transport,SMT,Unspecified,98689628,9.00,T&S UK - Public Transport
BEIS,UKRI - AHRC,11/02/2020,T&S UK - Subsistence,SMT,Unspecified,98689628,10.35,T&S UK - Subsistence
BEIS,UKRI - AHRC,11/02/2020,T&S UK - Public Transport,Public and Stakeholder Engagement,Unspecified,98689629,9.10,T&S UK - Public Transport
BEIS,UKRI - AHRC,11/02/2020,T&S UK - Subsistence,Public and Stakeholder Engagement,Unspecified,98689629,15.00,T&S UK - Subsistence
BEIS,UKRI - AHRC,11/02/2020,T&S UK - Subsistence,Public and Stakeholder Engagement,Unspecified,98689629,8.90,T&S UK - Subsistence
BEIS,UKRI - AHRC,12/02/2020,NI Payable Salaries,Balance Sheet,HM Revenue & Customs,98688931,57358.27,NI Payable Salaries
BEIS,UKRI - AHRC,12/02/2020,PAYE Payable Salaries,Balance Sheet,HM Revenue & Customs,98688932,44042.97,PAYE Payable Salaries
BEIS,UKRI - AHRC,12/02/2020,Student Loans,Balance Sheet,HM Revenue & Customs,98688933,4967.00,Student Loans
BEIS,UKRI - AHRC,12/02/2020,Apprenticeship Levy,Corporate Services,HM Revenue & Customs,98688934,1521.00,Apprenticeship Levy
BEIS,UKRI - AHRC,12/02/2020,Hospitality,GCRF - Programme Delivery,Calder Conference Ltd,98689794,952.00,Hospitality
BEIS,UKRI - AHRC,12/02/2020,T&S UK - Public Transport,Digital Arts and Humanities and Creative Industries,Unspecified,98691184,6.50,T&S UK - Public Transport
BEIS,UKRI - AHRC,12/02/2020,T&S UK - Public Transport,Digital Arts and Humanities and Creative Industries,Unspecified,98691184,127.55,T&S UK - Public Transport
BEIS,UKRI - AHRC,12/02/2020,T&S UK - Public Transport,Digital Arts and Humanities and Creative Industries,Unspecified,98691184,19.20,T&S UK - Public Transport
BEIS,UKRI - AHRC,12/02/2020,T&S UK - Subsistence,Digital Arts and Humanities and Creative Industries,Unspecified,98691184,20.00,T&S UK - Subsistence
BEIS,UKRI - AHRC,12/02/2020,T&S UK - Subsistence,Digital Arts and Humanities and Creative Industries,Unspecified,98691184,13.33,T&S UK - Subsistence
BEIS,UKRI - AHRC,12/02/2020,T&S UK - Subsistence,Digital Arts and Humanities and Creative Industries,Unspecified,98691184,3.80,T&S UK - Subsistence
BEIS,UKRI - AHRC,12/02/2020,T&S UK - Subsistence,Digital Arts and Humanities and Creative Industries,Unspecified,98691184,26.44,T&S UK - Subsistence
BEIS,UKRI - AHRC,12/02/2020,T&S UK - Subsistence,Digital Arts and Humanities and Creative Industries,Unspecified,98691184,10.00,T&S UK - Subsistence
BEIS,UKRI - AHRC,12/02/2020,T&S UK - Subsistence,GCRF - Programme Delivery,Unspecified,98691185,8.39,T&S UK - Subsistence
BEIS,UKRI - AHRC,12/02/2020,T&S UK - Subsistence,Newton Programme Delivery,Unspecified,98691185,9.88,T&S UK - Subsistence
BEIS,UKRI - AHRC,13/02/2020,Nursery Deductions,Balance Sheet,EDENRED (UK GROUP) LTD,98678233,20.00,Nursery Deductions
BEIS,UKRI - AHRC,13/02/2020,Nursery Deductions,Balance Sheet,EDENRED (UK GROUP) LTD,98678544,-243.00,Nursery Deductions
BEIS,UKRI - AHRC,13/02/2020,Voluntary Deductions,Balance Sheet,Chargive,98688935,570.83,Voluntary Deductions
BEIS,UKRI - AHRC,13/02/2020,Union Deductions,Balance Sheet,PCS Union,98688937,70.95,Union Deductions
BEIS,UKRI - AHRC,13/02/2020,Ees Pension Deductions - JSS,Balance Sheet,RCPS Pension,98688938,10408.98,Ees Pension Deductions - JSS
BEIS,UKRI - AHRC,13/02/2020,Ers Pension Deductions - JSS,Balance Sheet,RCPS Pension,98688939,47054.09,Ers Pension Deductions - JSS
BEIS,UKRI - AHRC,13/02/2020,Partnership Pension Deductions,Balance Sheet,Scottish Widows,98688940,341.61,Partnership Pension Deductions
BEIS,UKRI - AHRC,13/02/2020,Ers Pension Deductions - JSS,Balance Sheet,Cabinet Office RM Shared Services,98688941,12.83,Ers Pension Deductions - JSS
BEIS,UKRI - AHRC,13/02/2020,Ees Pension Deductions - MyCSP,Balance Sheet,Cabinet Office RM Shared Services,98688942,6224.39,Ees Pension Deductions - MyCSP
BEIS,UKRI - AHRC,13/02/2020,Ers Pension Deductions - MyCSP,Balance Sheet,Cabinet Office RM Shared Services,98688943,32094.44,Ers Pension Deductions - MyCSP
BEIS,UKRI - AHRC,13/02/2020,Ees Pension Deductions - MRC,Balance Sheet,UKRI - Medical Research Council,98688944,134.32,Ees Pension Deductions - MRC
BEIS,UKRI - AHRC,13/02/2020,Ers Pension Deductions - MRC,Balance Sheet,UKRI - Medical Research Council,98688945,309.96,Ers Pension Deductions - MRC
BEIS,UKRI - AHRC,13/02/2020,Catering Contracts,Executive Office,Benugo Ltd,98689804,488.46,Catering Contracts
BEIS,UKRI - AHRC,13/02/2020,Conferences & Seminars,Public and Stakeholder Engagement,Shoreditch London Ltd,98690207,780.00,Conferences & Seminars
BEIS,UKRI - AHRC,13/02/2020,T&S UK - Subsistence,Operations,Unspecified,98691677,23.00,T&S UK - Subsistence
BEIS,UKRI - AHRC,13/02/2020,T&S UK - Subsistence,Operations,Unspecified,98691677,14.20,T&S UK - Subsistence
BEIS,UKRI - AHRC,13/02/2020,T&S UK - Subsistence,Operations,Unspecified,98691678,29.05,T&S UK - Subsistence
BEIS,UKRI - AHRC,13/02/2020,T&S UK - Subsistence,Operations,Unspecified,98691678,8.35,T&S UK - Subsistence
BEIS,UKRI - AHRC,13/02/2020,Nursery Deductions,Balance Sheet,EDENRED (UK GROUP) LTD,98692275,1680.00,Nursery Deductions
BEIS,UKRI - AHRC,14/02/2020,Secondments,SMT,University of Oxford,98691535,19312.19,Secondments
BEIS,UKRI - AHRC,14/02/2020,Secondments,SMT,University of Oxford,98691537,19443.43,Secondments
BEIS,UKRI - AHRC,14/02/2020,Secondments,SMT,University of Oxford,98691538,19312.19,Secondments
BEIS,UKRI - AHRC,14/02/2020,Non-staff travel and subsistance,Executive Office,Non Employee Expenses Supplier,98692438,93.00,Non-staff travel and subsistance
BEIS,UKRI - AHRC,14/02/2020,Non-staff travel and subsistance,Towards a National Collection (SPF),Non Employee Expenses Supplier,98692439,300.00,Non-staff travel and subsistance
BEIS,UKRI - AHRC,14/02/2020,Non-staff travel and subsistance,Towards a National Collection (SPF),Non Employee Expenses Supplier,98692440,227.70,Non-staff travel and subsistance
BEIS,UKRI - AHRC,18/02/2020,Non-staff travel and subsistance,SMT,Non Employee Expenses Supplier,98692747,290.80,Non-staff travel and subsistance
BEIS,UKRI - AHRC,18/02/2020,Non-staff travel and subsistance,SMT,Non Employee Expenses Supplier,98692748,112.13,Non-staff travel and subsistance
BEIS,UKRI - AHRC,18/02/2020,Non-staff travel and subsistance,SMT,Non Employee Expenses Supplier,98692749,96.00,Non-staff travel and subsistance
BEIS,UKRI - AHRC,18/02/2020,Non-staff travel and subsistance,SMT,Non Employee Expenses Supplier,98692750,65.94,Non-staff travel and subsistance
BEIS,UKRI - AHRC,18/02/2020,Contract Staff,PSU JRS,Alexander Mann Solutions Ltd,98692809,3423.12,Contract Staff
BEIS,UKRI - AHRC,18/02/2020,Contract Staff,PSU Project Office,Alexander Mann Solutions Ltd,98692850,2795.58,Contract Staff
BEIS,UKRI - AHRC,18/02/2020,T&S UK - Subsistence,Public and Stakeholder Engagement,Unspecified,98693321,6.15,T&S UK - Subsistence
BEIS,UKRI - AHRC,19/02/2020,T&S UK - Parking Tolls Congestion Charges,SMT,Unspecified,98695414,12.20,T&S UK - Parking Tolls Congestion Charges
BEIS,UKRI - AHRC,19/02/2020,T&S UK - Public Transport,SMT,Unspecified,98695414,9.60,T&S UK - Public Transport
BEIS,UKRI - AHRC,19/02/2020,T&S UK - Subsistence,SMT,Unspecified,98695414,18.08,T&S UK - Subsistence
BEIS,UKRI - AHRC,19/02/2020,T&S UK - Public Transport,International Development and Area Studies,Unspecified,98695416,10.00,T&S UK - Public Transport
BEIS,UKRI - AHRC,19/02/2020,T&S UK - Subsistence,International Development and Area Studies,Unspecified,98695416,6.19,T&S UK - Subsistence
BEIS,UKRI - AHRC,19/02/2020,T&S UK - Public Transport,Digital Arts and Humanities and Creative Industries,Unspecified,98695417,23.30,T&S UK - Public Transport
BEIS,UKRI - AHRC,19/02/2020,T&S UK - Subsistence,Digital Arts and Humanities and Creative Industries,Unspecified,98695417,11.55,T&S UK - Subsistence
BEIS,UKRI - AHRC,19/02/2020,T&S UK - Subsistence,Operations,Unspecified,98695418,14.00,T&S UK - Subsistence
BEIS,UKRI - AHRC,19/02/2020,T&S UK - Public Transport,Public and Stakeholder Engagement,Unspecified,98695419,5.90,T&S UK - Public Transport
BEIS,UKRI - AHRC,19/02/2020,T&S UK - Public Transport,Public and Stakeholder Engagement,Unspecified,98695419,8.90,T&S UK - Public Transport
BEIS,UKRI - AHRC,19/02/2020,T&S UK - Subsistence,Public and Stakeholder Engagement,Unspecified,98695419,11.40,T&S UK - Subsistence
BEIS,UKRI - AHRC,19/02/2020,T&S UK - Subsistence,Public and Stakeholder Engagement,Unspecified,98695419,17.80,T&S UK - Subsistence
BEIS,UKRI - AHRC,19/02/2020,T&S UK - Subsistence,Public and Stakeholder Engagement,Unspecified,98695419,4.60,T&S UK - Subsistence
BEIS,UKRI - AHRC,19/02/2020,T&S UK - Subsistence,Public and Stakeholder Engagement,Unspecified,98695419,20.00,T&S UK - Subsistence
BEIS,UKRI - AHRC,20/02/2020,Hospitality,Operations,University of Reading,98696682,634.50,Hospitality
BEIS,UKRI - AHRC,20/02/2020,T&S UK - Other Charges,Public and Stakeholder Engagement,Unspecified,98696864,3.65,T&S UK - Other Charges
BEIS,UKRI - AHRC,20/02/2020,T&S UK - Public Transport,Public and Stakeholder Engagement,Unspecified,98696864,18.00,T&S UK - Public Transport
BEIS,UKRI - AHRC,20/02/2020,T&S UK - Subsistence,Skills Strategy,Unspecified,98696865,19.00,T&S UK - Subsistence
BEIS,UKRI - AHRC,20/02/2020,T&S UK - Subsistence,Skills Strategy,Unspecified,98696865,5.48,T&S UK - Subsistence
BEIS,UKRI - AHRC,20/02/2020,T&S UK - Other Charges,Skills Strategy,Unspecified,98696866,3.00,T&S UK - Other Charges
BEIS,UKRI - AHRC,20/02/2020,T&S UK - Subsistence,Skills Strategy,Unspecified,98696866,28.18,T&S UK - Subsistence
BEIS,UKRI - AHRC,20/02/2020,T&S UK - Subsistence,International,Unspecified,98696867,22.85,T&S UK - Subsistence
BEIS,UKRI - AHRC,20/02/2020,T&S UK - Subsistence,International,Unspecified,98696867,11.08,T&S UK - Subsistence
BEIS,UKRI - AHRC,20/02/2020,T&S UK - Subsistence,International,Unspecified,98696867,10.00,T&S UK - Subsistence
BEIS,UKRI - AHRC,20/02/2020,T&S UK - Public Transport,"History, Heritage, Languages and Literature",Unspecified,98696868,7.20,T&S UK - Public Transport
BEIS,UKRI - AHRC,20/02/2020,T&S UK - Subsistence,"History, Heritage, Languages and Literature",Unspecified,98696868,3.48,T&S UK - Subsistence
BEIS,UKRI - AHRC,20/02/2020,T&S UK - Subsistence,"History, Heritage, Languages and Literature",Unspecified,98696868,24.53,T&S UK - Subsistence
BEIS,UKRI - AHRC,20/02/2020,T&S UK - Subsistence,"History, Heritage, Languages and Literature",Unspecified,98696868,7.60,T&S UK - Subsistence
BEIS,UKRI - AHRC,20/02/2020,Telecoms - Calls Fax & internet Costs,"History, Heritage, Languages and Literature",Unspecified,98696868,3.00,Telecoms - Calls Fax & internet Costs
BEIS,UKRI - AHRC,20/02/2020,T&S UK - Accommodation,Executive Office,Unspecified,98696870,37.71,T&S UK - Accommodation
BEIS,UKRI - AHRC,20/02/2020,T&S UK - Public Transport,Executive Office,Unspecified,98696870,31.00,T&S UK - Public Transport
BEIS,UKRI - AHRC,20/02/2020,T&S UK - Subsistence,Executive Office,Unspecified,98696870,5.88,T&S UK - Subsistence
BEIS,UKRI - AHRC,20/02/2020,T&S UK - Subsistence,Executive Office,Unspecified,98696870,21.07,T&S UK - Subsistence
BEIS,UKRI - AHRC,20/02/2020,Non-staff travel and subsistance,Digital Arts and Humanities and Creative Industries,Non Employee Expenses Supplier,98697011,104.30,Non-staff travel and subsistance
BEIS,UKRI - AHRC,20/02/2020,Non-staff travel and subsistance,Digital Arts and Humanities and Creative Industries,Non Employee Expenses Supplier,98697012,36.00,Non-staff travel and subsistance
BEIS,UKRI - AHRC,20/02/2020,Non-staff travel and subsistance,Digital Arts and Humanities and Creative Industries,Non Employee Expenses Supplier,98697013,206.18,Non-staff travel and subsistance
BEIS,UKRI - AHRC,20/02/2020,Non-staff travel and subsistance,Digital Arts and Humanities and Creative Industries,Non Employee Expenses Supplier,98697014,295.39,Non-staff travel and subsistance
BEIS,UKRI - AHRC,20/02/2020,Non-staff travel and subsistance,Digital Arts and Humanities and Creative Industries,Non Employee Expenses Supplier,98697015,70.90,Non-staff travel and subsistance
BEIS,UKRI - AHRC,20/02/2020,Non-staff travel and subsistance,Digital Arts and Humanities and Creative Industries,Non Employee Expenses Supplier,98697016,67.50,Non-staff travel and subsistance
BEIS,UKRI - AHRC,20/02/2020,Non-staff travel and subsistance,Digital Arts and Humanities and Creative Industries,Non Employee Expenses Supplier,98697017,120.80,Non-staff travel and subsistance
BEIS,UKRI - AHRC,20/02/2020,Non-staff travel and subsistance,Digital Arts and Humanities and Creative Industries,Non Employee Expenses Supplier,98697018,163.33,Non-staff travel and subsistance
BEIS,UKRI - AHRC,20/02/2020,Non-staff travel and subsistance,Digital Arts and Humanities and Creative Industries,Non Employee Expenses Supplier,98697019,65.00,Non-staff travel and subsistance
BEIS,UKRI - AHRC,20/02/2020,Non-staff travel and subsistance,Digital Arts and Humanities and Creative Industries,Non Employee Expenses Supplier,98697020,30.00,Non-staff travel and subsistance
BEIS,UKRI - AHRC,20/02/2020,Non-staff travel and subsistance,Digital Arts and Humanities and Creative Industries,Non Employee Expenses Supplier,98697021,64.60,Non-staff travel and subsistance
BEIS,UKRI - AHRC,20/02/2020,Non-staff travel and subsistance,Operations,Non Employee Expenses Supplier,98697022,94.66,Non-staff travel and subsistance
BEIS,UKRI - AHRC,20/02/2020,Non-staff travel and subsistance,Operations,Non Employee Expenses Supplier,98697023,54.00,Non-staff travel and subsistance
BEIS,UKRI - AHRC,20/02/2020,Non-staff travel and subsistance,Operations,Non Employee Expenses Supplier,98697024,58.30,Non-staff travel and subsistance
BEIS,UKRI - AHRC,20/02/2020,Non-staff travel and subsistance,Operations,Non Employee Expenses Supplier,98697025,48.10,Non-staff travel and subsistance
BEIS,UKRI - AHRC,20/02/2020,Non-staff travel and subsistance,Operations,Non Employee Expenses Supplier,98697026,68.50,Non-staff travel and subsistance
BEIS,UKRI - AHRC,20/02/2020,Non-staff travel and subsistance,Funds for International Collaboration (FIC 20 US),Non Employee Expenses Supplier,98697027,58.50,Non-staff travel and subsistance
BEIS,UKRI - AHRC,20/02/2020,Non-staff travel and subsistance,Digital Arts and Humanities and Creative Industries,Non Employee Expenses Supplier,98697028,187.30,Non-staff travel and subsistance
BEIS,UKRI - AHRC,20/02/2020,Non-staff travel and subsistance,Digital Arts and Humanities and Creative Industries,Non Employee Expenses Supplier,98697029,73.30,Non-staff travel and subsistance
BEIS,UKRI - AHRC,20/02/2020,Non-staff travel and subsistance,Digital Arts and Humanities and Creative Industries,Non Employee Expenses Supplier,98697030,53.60,Non-staff travel and subsistance
BEIS,UKRI - AHRC,20/02/2020,Non-staff travel and subsistance,Digital Arts and Humanities and Creative Industries,Non Employee Expenses Supplier,98697031,103.99,Non-staff travel and subsistance
BEIS,UKRI - AHRC,20/02/2020,Non-staff travel and subsistance,Digital Arts and Humanities and Creative Industries,Non Employee Expenses Supplier,98697032,171.25,Non-staff travel and subsistance
BEIS,UKRI - AHRC,20/02/2020,Non-staff travel and subsistance,Digital Arts and Humanities and Creative Industries,Non Employee Expenses Supplier,98697033,512.81,Non-staff travel and subsistance
BEIS,UKRI - AHRC,20/02/2020,Non-staff travel and subsistance,Digital Arts and Humanities and Creative Industries,Non Employee Expenses Supplier,98697034,156.40,Non-staff travel and subsistance
BEIS,UKRI - AHRC,20/02/2020,Non-staff travel and subsistance,Funds for International Collaboration (FIC 20 US),Non Employee Expenses Supplier,98697035,1428.42,Non-staff travel and subsistance
BEIS,UKRI - AHRC,20/02/2020,Non-staff travel and subsistance,Funds for International Collaboration (FIC 20 US),Non Employee Expenses Supplier,98697036,1535.25,Non-staff travel and subsistance
BEIS,UKRI - AHRC,21/02/2020,Marketing & PR,Public and Stakeholder Engagement,Unspecified,98697162,784.40,Marketing & PR
BEIS,UKRI - AHRC,21/02/2020,Non-staff travel and subsistance,Funds for International Collaboration (FIC 20 US),Non Employee Expenses Supplier,98697387,55.10,Non-staff travel and subsistance
BEIS,UKRI - AHRC,21/02/2020,Non-staff travel and subsistance,Funds for International Collaboration (FIC 20 US),Non Employee Expenses Supplier,98697388,243.60,Non-staff travel and subsistance
BEIS,UKRI - AHRC,21/02/2020,Non-staff travel and subsistance,Funds for International Collaboration (FIC 20 US),Non Employee Expenses Supplier,98697389,956.73,Non-staff travel and subsistance
BEIS,UKRI - AHRC,21/02/2020,Non-staff travel and subsistance,Funds for International Collaboration (FIC 20 US),Non Employee Expenses Supplier,98697390,581.04,Non-staff travel and subsistance
BEIS,UKRI - AHRC,21/02/2020,Non-staff travel and subsistance,Funds for International Collaboration (FIC 20 US),Non Employee Expenses Supplier,98697391,952.78,Non-staff travel and subsistance
BEIS,UKRI - AHRC,21/02/2020,Contract Staff,PSU Project Office,Alexander Mann Solutions Ltd,98697487,2795.58,Contract Staff
BEIS,UKRI - AHRC,21/02/2020,Contract Staff,PSU JRS,Alexander Mann Solutions Ltd,98697494,3423.12,Contract Staff
BEIS,UKRI - AHRC,21/02/2020,Non-staff travel and subsistance,Executive Office,Non Employee Expenses Supplier,98697512,12.20,Non-staff travel and subsistance
BEIS,UKRI - AHRC,21/02/2020,Non-staff travel and subsistance,Operations,Non Employee Expenses Supplier,98697513,19.10,Non-staff travel and subsistance
BEIS,UKRI - AHRC,21/02/2020,Non-staff travel and subsistance,Operations,Non Employee Expenses Supplier,98697514,136.48,Non-staff travel and subsistance
BEIS,UKRI - AHRC,21/02/2020,Non-staff travel and subsistance,Operations,Non Employee Expenses Supplier,98697515,16.40,Non-staff travel and subsistance
BEIS,UKRI - AHRC,21/02/2020,Non-staff travel and subsistance,Operations,Non Employee Expenses Supplier,98697516,10.10,Non-staff travel and subsistance
BEIS,UKRI - AHRC,21/02/2020,Non-staff travel and subsistance,Operations,Non Employee Expenses Supplier,98697517,80.50,Non-staff travel and subsistance
BEIS,UKRI - AHRC,21/02/2020,Non-staff travel and subsistance,Operations,Non Employee Expenses Supplier,98697518,106.90,Non-staff travel and subsistance
BEIS,UKRI - AHRC,21/02/2020,Non-staff travel and subsistance,Operations,Non Employee Expenses Supplier,98697519,41.65,Non-staff travel and subsistance
BEIS,UKRI - AHRC,21/02/2020,Non-staff travel and subsistance,Operations,Non Employee Expenses Supplier,98697520,55.00,Non-staff travel and subsistance
BEIS,UKRI - AHRC,21/02/2020,Non-staff travel and subsistance,Operations,Non Employee Expenses Supplier,98697521,94.00,Non-staff travel and subsistance
BEIS,UKRI - AHRC,21/02/2020,Non-staff travel and subsistance,Operations,Non Employee Expenses Supplier,98697522,105.00,Non-staff travel and subsistance
BEIS,UKRI - AHRC,21/02/2020,Non-staff travel and subsistance,Operations,Non Employee Expenses Supplier,98697523,73.65,Non-staff travel and subsistance
BEIS,UKRI - AHRC,21/02/2020,Non-staff travel and subsistance,Operations,Non Employee Expenses Supplier,98697524,17.10,Non-staff travel and subsistance
BEIS,UKRI - AHRC,21/02/2020,Non-staff travel and subsistance,Operations,Non Employee Expenses Supplier,98697525,10.40,Non-staff travel and subsistance
BEIS,UKRI - AHRC,21/02/2020,Non-staff travel and subsistance,Operations,Non Employee Expenses Supplier,98697526,198.90,Non-staff travel and subsistance
BEIS,UKRI - AHRC,21/02/2020,Non-staff travel and subsistance,Operations,Non Employee Expenses Supplier,98697527,120.36,Non-staff travel and subsistance
BEIS,UKRI - AHRC,21/02/2020,Non-staff travel and subsistance,Operations,Non Employee Expenses Supplier,98697528,156.57,Non-staff travel and subsistance
BEIS,UKRI - AHRC,21/02/2020,Non-staff travel and subsistance,Operations,Non Employee Expenses Supplier,98697529,73.00,Non-staff travel and subsistance
BEIS,UKRI - AHRC,21/02/2020,Non-staff travel and subsistance,Operations,Non Employee Expenses Supplier,98697530,81.45,Non-staff travel and subsistance
BEIS,UKRI - AHRC,21/02/2020,Non-staff travel and subsistance,Operations,Non Employee Expenses Supplier,98697531,145.11,Non-staff travel and subsistance
BEIS,UKRI - AHRC,21/02/2020,T&S UK - Parking Tolls Congestion Charges,Public and Stakeholder Engagement,Unspecified,98698379,10.20,T&S UK - Parking Tolls Congestion Charges
BEIS,UKRI - AHRC,21/02/2020,T&S UK - Subsistence,Public and Stakeholder Engagement,Unspecified,98698379,3.94,T&S UK - Subsistence
BEIS,UKRI - AHRC,21/02/2020,T&S UK - Subsistence,Public and Stakeholder Engagement,Unspecified,98698379,21.37,T&S UK - Subsistence
BEIS,UKRI - AHRC,21/02/2020,T&S UK - Subsistence,Public and Stakeholder Engagement,Unspecified,98698379,15.35,T&S UK - Subsistence
BEIS,UKRI - AHRC,21/02/2020,T&S UK - Subsistence,Public and Stakeholder Engagement,Unspecified,98698379,5.00,T&S UK - Subsistence
BEIS,UKRI - AHRC,24/02/2020,Conferences & Seminars,Operations,Calder Conference Ltd,98694981,7362.00,Conferences & Seminars
BEIS,UKRI - AHRC,24/02/2020,Corporate Events,Public and Stakeholder Engagement,University of the West of England,98697837,420.00,Corporate Events
BEIS,UKRI - AHRC,24/02/2020,Non-staff travel and subsistance,SMT,Non Employee Expenses Supplier,98698602,241.50,Non-staff travel and subsistance
BEIS,UKRI - AHRC,24/02/2020,Hospitality,Operations,Benugo Ltd,98698957,1644.72,Hospitality
BEIS,UKRI - AHRC,25/02/2020,Voluntary Deductions,Balance Sheet,Swindon Office Sports and Social Club,98688936,36.00,Voluntary Deductions
BEIS,UKRI - AHRC,25/02/2020,Provision for Early Retirement Liability,Corporate Services,RCPS Pension,98692127,506.34,Provision for Early Retirement Liability
BEIS,UKRI - AHRC,25/02/2020,Printing & Stationery,Corporate Services,Banner Group Ltd,98697303,5.22,Printing & Stationery
BEIS,UKRI - AHRC,25/02/2020,Printing & Stationery,Industrial Strategy Challenge Fund (ISCF) - Creative Clusters,"Royal Holloway, University of London",98699073,722.40,Printing & Stationery
BEIS,UKRI - AHRC,25/02/2020,Hospitality,Public and Stakeholder Engagement,Silvia Clea Coelho Peroba T/A Caf� Z,98699172,365.50,Hospitality
BEIS,UKRI - AHRC,25/02/2020,Non-staff travel and subsistance,Skills Strategy,Non Employee Expenses Supplier,98699202,168.60,Non-staff travel and subsistance
BEIS,UKRI - AHRC,25/02/2020,Non-staff travel and subsistance,Public and Stakeholder Engagement,Non Employee Expenses Supplier,98699203,151.69,Non-staff travel and subsistance
BEIS,UKRI - AHRC,25/02/2020,Non-staff travel and subsistance,Operations,Non Employee Expenses Supplier,98699204,23.95,Non-staff travel and subsistance
BEIS,UKRI - AHRC,25/02/2020,Non-staff travel and subsistance,Operations,Non Employee Expenses Supplier,98699205,37.80,Non-staff travel and subsistance
BEIS,UKRI - AHRC,25/02/2020,Non-staff travel and subsistance,Operations,Non Employee Expenses Supplier,98699206,10.10,Non-staff travel and subsistance
BEIS,UKRI - AHRC,25/02/2020,Non-staff travel and subsistance,Operations,Non Employee Expenses Supplier,98699207,40.20,Non-staff travel and subsistance
BEIS,UKRI - AHRC,25/02/2020,Non-staff travel and subsistance,Operations,Non Employee Expenses Supplier,98699208,57.60,Non-staff travel and subsistance
BEIS,UKRI - AHRC,25/02/2020,Non-staff travel and subsistance,Operations,Non Employee Expenses Supplier,98699210,50.30,Non-staff travel and subsistance
BEIS,UKRI - AHRC,25/02/2020,Non-staff travel and subsistance,Operations,Non Employee Expenses Supplier,98699211,108.45,Non-staff travel and subsistance
BEIS,UKRI - AHRC,25/02/2020,Non-staff travel and subsistance,Operations,Non Employee Expenses Supplier,98699212,17.80,Non-staff travel and subsistance
BEIS,UKRI - AHRC,25/02/2020,Non-staff travel and subsistance,Operations,Non Employee Expenses Supplier,98699213,76.98,Non-staff travel and subsistance
BEIS,UKRI - AHRC,25/02/2020,Non-staff travel and subsistance,Operations,Non Employee Expenses Supplier,98699214,45.60,Non-staff travel and subsistance
BEIS,UKRI - AHRC,25/02/2020,Non-staff travel and subsistance,Operations,Non Employee Expenses Supplier,98699215,25.85,Non-staff travel and subsistance
BEIS,UKRI - AHRC,25/02/2020,Non-staff travel and subsistance,Operations,Non Employee Expenses Supplier,98699216,76.00,Non-staff travel and subsistance
BEIS,UKRI - AHRC,25/02/2020,Non-staff travel and subsistance,Operations,Non Employee Expenses Supplier,98699217,62.60,Non-staff travel and subsistance
BEIS,UKRI - AHRC,25/02/2020,Non-staff travel and subsistance,Skills Strategy,Non Employee Expenses Supplier,98699218,76.50,Non-staff travel and subsistance
BEIS,UKRI - AHRC,25/02/2020,Non-staff travel and subsistance,Skills Strategy,Non Employee Expenses Supplier,98699219,197.00,Non-staff travel and subsistance
BEIS,UKRI - AHRC,25/02/2020,Non-staff travel and subsistance,Digital Arts and Humanities and Creative Industries,Non Employee Expenses Supplier,98699220,69.90,Non-staff travel and subsistance
BEIS,UKRI - AHRC,25/02/2020,Non-staff travel and subsistance,Digital Arts and Humanities and Creative Industries,Non Employee Expenses Supplier,98699221,33.70,Non-staff travel and subsistance
BEIS,UKRI - AHRC,25/02/2020,Non-staff travel and subsistance,Digital Arts and Humanities and Creative Industries,Non Employee Expenses Supplier,98699222,154.15,Non-staff travel and subsistance
BEIS,UKRI - AHRC,25/02/2020,Non-staff travel and subsistance,Digital Arts and Humanities and Creative Industries,Non Employee Expenses Supplier,98699223,70.40,Non-staff travel and subsistance
BEIS,UKRI - AHRC,25/02/2020,Non-staff travel and subsistance,Digital Arts and Humanities and Creative Industries,Non Employee Expenses Supplier,98699224,116.13,Non-staff travel and subsistance
BEIS,UKRI - AHRC,25/02/2020,Non-staff travel and subsistance,Digital Arts and Humanities and Creative Industries,Non Employee Expenses Supplier,98699225,67.99,Non-staff travel and subsistance
BEIS,UKRI - AHRC,25/02/2020,Non-staff travel and subsistance,Digital Arts and Humanities and Creative Industries,Non Employee Expenses Supplier,98699226,93.55,Non-staff travel and subsistance
BEIS,UKRI - AHRC,25/02/2020,Non-staff travel and subsistance,Digital Arts and Humanities and Creative Industries,Non Employee Expenses Supplier,98699227,31.60,Non-staff travel and subsistance
BEIS,UKRI - AHRC,25/02/2020,Non-staff travel and subsistance,Digital Arts and Humanities and Creative Industries,Non Employee Expenses Supplier,98699228,255.70,Non-staff travel and subsistance
BEIS,UKRI - AHRC,25/02/2020,Non-staff travel and subsistance,Digital Arts and Humanities and Creative Industries,Non Employee Expenses Supplier,98699230,112.00,Non-staff travel and subsistance
BEIS,UKRI - AHRC,25/02/2020,Non-staff travel and subsistance,Digital Arts and Humanities and Creative Industries,Non Employee Expenses Supplier,98699231,59.80,Non-staff travel and subsistance
BEIS,UKRI - AHRC,25/02/2020,Non-staff travel and subsistance,Digital Arts and Humanities and Creative Industries,Non Employee Expenses Supplier,98699232,27.00,Non-staff travel and subsistance
BEIS,UKRI - AHRC,25/02/2020,Non-staff travel and subsistance,Digital Arts and Humanities and Creative Industries,Non Employee Expenses Supplier,98699233,110.50,Non-staff travel and subsistance
BEIS,UKRI - AHRC,25/02/2020,Non-staff travel and subsistance,Digital Arts and Humanities and Creative Industries,Non Employee Expenses Supplier,98699234,106.00,Non-staff travel and subsistance
BEIS,UKRI - AHRC,25/02/2020,Non-staff travel and subsistance,Digital Arts and Humanities and Creative Industries,Non Employee Expenses Supplier,98699235,92.10,Non-staff travel and subsistance
BEIS,UKRI - AHRC,25/02/2020,Non-staff travel and subsistance,Digital Arts and Humanities and Creative Industries,Non Employee Expenses Supplier,98699236,111.35,Non-staff travel and subsistance
BEIS,UKRI - AHRC,25/02/2020,Non-staff travel and subsistance,Digital Arts and Humanities and Creative Industries,Non Employee Expenses Supplier,98699237,115.00,Non-staff travel and subsistance
BEIS,UKRI - AHRC,25/02/2020,Non-staff travel and subsistance,Digital Arts and Humanities and Creative Industries,Non Employee Expenses Supplier,98699238,121.85,Non-staff travel and subsistance
BEIS,UKRI - AHRC,25/02/2020,Non-staff travel and subsistance,Digital Arts and Humanities and Creative Industries,Non Employee Expenses Supplier,98699239,105.70,Non-staff travel and subsistance
BEIS,UKRI - AHRC,25/02/2020,Non-staff travel and subsistance,Digital Arts and Humanities and Creative Industries,Non Employee Expenses Supplier,98699240,99.30,Non-staff travel and subsistance
BEIS,UKRI - AHRC,25/02/2020,Non-staff travel and subsistance,Digital Arts and Humanities and Creative Industries,Non Employee Expenses Supplier,98699241,85.42,Non-staff travel and subsistance
BEIS,UKRI - AHRC,25/02/2020,Non-staff travel and subsistance,Digital Arts and Humanities and Creative Industries,Non Employee Expenses Supplier,98699242,246.74,Non-staff travel and subsistance
BEIS,UKRI - AHRC,25/02/2020,T&S UK - Mileage,SMT,Unspecified,98699326,29.70,T&S UK - Mileage
BEIS,UKRI - AHRC,25/02/2020,T&S UK - Parking Tolls Congestion Charges,SMT,Unspecified,98699327,28.20,T&S UK - Parking Tolls Congestion Charges
BEIS,UKRI - AHRC,25/02/2020,T&S UK - Public Transport,SMT,Unspecified,98699327,2.50,T&S UK - Public Transport
BEIS,UKRI - AHRC,25/02/2020,T&S UK - Public Transport,SMT,Unspecified,98699327,8.50,T&S UK - Public Transport
BEIS,UKRI - AHRC,25/02/2020,T&S UK - Subsistence,SMT,Unspecified,98699327,16.30,T&S UK - Subsistence
BEIS,UKRI - AHRC,25/02/2020,T&S UK - Subsistence,SMT,Unspecified,98699327,28.95,T&S UK - Subsistence
BEIS,UKRI - AHRC,25/02/2020,T&S UK - Subsistence,Operations,Unspecified,98699328,48.62,T&S UK - Subsistence
BEIS,UKRI - AHRC,25/02/2020,T&S UK - Subsistence,Operations,Unspecified,98699328,10.73,T&S UK - Subsistence
BEIS,UKRI - AHRC,25/02/2020,T&S UK - Subsistence,Operations,Unspecified,98699328,10.00,T&S UK - Subsistence
BEIS,UKRI - AHRC,25/02/2020,T&S UK - Mileage,Industrial Strategy Challenge Fund (ISCF) - Creative Clusters,Unspecified,98699329,38.52,T&S UK - Mileage
BEIS,UKRI - AHRC,25/02/2020,T&S UK - Parking Tolls Congestion Charges,Industrial Strategy Challenge Fund (ISCF) - Creative Clusters,Unspecified,98699329,58.99,T&S UK - Parking Tolls Congestion Charges
BEIS,UKRI - AHRC,25/02/2020,T&S UK - Public Transport,Digital Arts and Humanities and Creative Industries,Unspecified,98699329,19.20,T&S UK - Public Transport
BEIS,UKRI - AHRC,25/02/2020,T&S UK - Public Transport,Industrial Strategy Challenge Fund (ISCF) - Creative Clusters,Unspecified,98699329,4.73,T&S UK - Public Transport
BEIS,UKRI - AHRC,25/02/2020,T&S UK - Public Transport,Industrial Strategy Challenge Fund (ISCF) - Creative Clusters,Unspecified,98699329,22.20,T&S UK - Public Transport
BEIS,UKRI - AHRC,25/02/2020,T&S UK - Subsistence,Industrial Strategy Challenge Fund (ISCF) - Creative Clusters,Unspecified,98699329,5.85,T&S UK - Subsistence
BEIS,UKRI - AHRC,25/02/2020,T&S UK - Subsistence,Industrial Strategy Challenge Fund (ISCF) - Creative Clusters,Unspecified,98699329,28.90,T&S UK - Subsistence
BEIS,UKRI - AHRC,25/02/2020,T&S UK - Subsistence,Industrial Strategy Challenge Fund (ISCF) - Creative Clusters,Unspecified,98699329,16.50,T&S UK - Subsistence
BEIS,UKRI - AHRC,25/02/2020,T&S UK - Subsistence,Industrial Strategy Challenge Fund (ISCF) - Creative Clusters,Unspecified,98699329,10.00,T&S UK - Subsistence
BEIS,UKRI - AHRC,25/02/2020,T&S UK - Public Transport,Skills Strategy,Unspecified,98699331,2.00,T&S UK - Public Transport
BEIS,UKRI - AHRC,25/02/2020,T&S UK - Public Transport,Skills Strategy,Unspecified,98699331,7.60,T&S UK - Public Transport
BEIS,UKRI - AHRC,25/02/2020,T&S UK - Subsistence,Skills Strategy,Unspecified,98699331,3.40,T&S UK - Subsistence
BEIS,UKRI - AHRC,25/02/2020,Conferences & Seminars,Skills Strategy,Calder Conference Ltd,98700116,3390.00,Conferences & Seminars
BEIS,UKRI - AHRC,26/02/2020,Legal & Professional Services,SMT,Four Communications Group Ltd,98636906,4560.00,Legal & Professional Services
BEIS,UKRI - AHRC,26/02/2020,Other Programme Costs,SMT,Four Communications Group Ltd,98636906,480.00,Other Programme Costs
BEIS,UKRI - AHRC,26/02/2020,Non-staff travel and subsistance,International Development and Area Studies,Non Employee Expenses Supplier,98699259,486.12,Non-staff travel and subsistance
BEIS,UKRI - AHRC,26/02/2020,T&S UK - Public Transport,"History, Heritage, Languages and Literature",Unspecified,98699677,10.00,T&S UK - Public Transport
BEIS,UKRI - AHRC,26/02/2020,Printing & Stationery,PSU Project Office,Banner Group Ltd,98700313,101.60,Printing & Stationery
BEIS,UKRI - AHRC,26/02/2020,Non-staff travel and subsistance,Digital Arts and Humanities and Creative Industries,Non Employee Expenses Supplier,98700600,204.75,Non-staff travel and subsistance
BEIS,UKRI - AHRC,26/02/2020,Non-staff travel and subsistance,Digital Arts and Humanities and Creative Industries,Non Employee Expenses Supplier,98700601,103.50,Non-staff travel and subsistance
BEIS,UKRI - AHRC,26/02/2020,Non-staff travel and subsistance,Digital Arts and Humanities and Creative Industries,Non Employee Expenses Supplier,98700602,123.88,Non-staff travel and subsistance
BEIS,UKRI - AHRC,26/02/2020,Non-staff travel and subsistance,Digital Arts and Humanities and Creative Industries,Non Employee Expenses Supplier,98700603,151.44,Non-staff travel and subsistance
BEIS,UKRI - AHRC,26/02/2020,Non-staff travel and subsistance,Skills Strategy,Non Employee Expenses Supplier,98700604,166.66,Non-staff travel and subsistance
BEIS,UKRI - AHRC,26/02/2020,Non-staff travel and subsistance,Operations,Non Employee Expenses Supplier,98700605,177.35,Non-staff travel and subsistance
BEIS,UKRI - AHRC,26/02/2020,Non-staff travel and subsistance,Digital Arts and Humanities and Creative Industries,Non Employee Expenses Supplier,98700607,65.00,Non-staff travel and subsistance
BEIS,UKRI - AHRC,27/02/2020,Data Storage & Recovery,Corporate Services,Iron Mountain (UK) PLC,98574475,62.44,Data Storage & Recovery
BEIS,UKRI - AHRC,27/02/2020,T&S UK - Public Transport,Public and Stakeholder Engagement,Unspecified,98661911,18.10,T&S UK - Public Transport
BEIS,UKRI - AHRC,27/02/2020,T&S UK - Subsistence,Public and Stakeholder Engagement,Unspecified,98661911,15.00,T&S UK - Subsistence
BEIS,UKRI - AHRC,27/02/2020,Research Grant Expenditure,Industrial Strategy Challenge Fund (ISCF) - Creative Clusters,"Royal Holloway, University of London",98699619,33427.01,Research Grant Expenditure
BEIS,UKRI - AHRC,27/02/2020,Research Grant Expenditure,Industrial Strategy Challenge Fund (ISCF) - Creative Clusters,"Royal Holloway, University of London",98700613,16254.00,Research Grant Expenditure
BEIS,UKRI - AHRC,28/02/2020,Non-staff travel and subsistance,Public and Stakeholder Engagement,Non Employee Expenses Supplier,98701403,39.94,Non-staff travel and subsistance
BEIS,UKRI - AHRC,28/02/2020,Non-staff travel and subsistance,Public and Stakeholder Engagement,Non Employee Expenses Supplier,98701404,14.63,Non-staff travel and subsistance
BEIS,UKRI - AHRC,28/02/2020,Non-staff travel and subsistance,Public and Stakeholder Engagement,Non Employee Expenses Supplier,98701405,45.01,Non-staff travel and subsistance
BEIS,UKRI - AHRC,28/02/2020,Non-staff travel and subsistance,Public and Stakeholder Engagement,Non Employee Expenses Supplier,98701406,214.38,Non-staff travel and subsistance
BEIS,UKRI - AHRC,28/02/2020,Non-staff travel and subsistance,Public and Stakeholder Engagement,Non Employee Expenses Supplier,98701407,108.24,Non-staff travel and subsistance
BEIS,UKRI - AHRC,28/02/2020,Non-staff travel and subsistance,Public and Stakeholder Engagement,Non Employee Expenses Supplier,98701408,130.78,Non-staff travel and subsistance
BEIS,UKRI - AHRC,28/02/2020,Non-staff travel and subsistance,Public and Stakeholder Engagement,Non Employee Expenses Supplier,98701409,135.60,Non-staff travel and subsistance
BEIS,UKRI - AHRC,28/02/2020,Non-staff travel and subsistance,Public and Stakeholder Engagement,Non Employee Expenses Supplier,98701410,102.60,Non-staff travel and subsistance
BEIS,UKRI - AHRC,28/02/2020,Contract Staff,PSU JRS,Alexander Mann Solutions Ltd,98701413,3423.12,Contract Staff
BEIS,UKRI - AHRC,28/02/2020,Contract Staff,PSU Project Office,Alexander Mann Solutions Ltd,98701414,2795.58,Contract Staff
BEIS,UKRI - AHRC,28/02/2020,T&S UK - Subsistence,Executive Office,Unspecified,98701509,10.00,T&S UK - Subsistence
BEIS,UKRI - AHRC,28/02/2020,T&S UK - Subsistence,Executive Office,Unspecified,98701509,15.00,T&S UK - Subsistence
BEIS,UKRI - AHRC,28/02/2020,T&S UK - Subsistence,Executive Office,Unspecified,98701509,5.00,T&S UK - Subsistence
BEIS,UKRI - AHRC,28/02/2020,T&S Overseas - Subsistence,Executive Office,Unspecified,98701510,25.00,T&S Overseas - Subsistence
BEIS,UKRI - AHRC,28/02/2020,T&S Overseas - Subsistence,Executive Office,Unspecified,98701510,9.36,T&S Overseas - Subsistence
BEIS,UKRI - AHRC,28/02/2020,T&S UK - Other Charges,Executive Office,Unspecified,98701510,10.63,T&S UK - Other Charges
BEIS,UKRI - AHRC,28/02/2020,T&S UK - Other Charges,Health and Environmental Humanities,Unspecified,98701512,5.28,T&S UK - Other Charges
BEIS,UKRI - AHRC,28/02/2020,T&S UK - Public Transport,Health and Environmental Humanities,Unspecified,98701512,13.00,T&S UK - Public Transport
BEIS,UKRI - AHRC,28/02/2020,T&S UK - Public Transport,Health and Environmental Humanities,Unspecified,98701512,22.00,T&S UK - Public Transport
BEIS,UKRI - AHRC,28/02/2020,T&S UK - Subsistence,Health and Environmental Humanities,Unspecified,98701512,4.73,T&S UK - Subsistence
BEIS,UKRI - AHRC,28/02/2020,T&S UK - Subsistence,Health and Environmental Humanities,Unspecified,98701512,22.10,T&S UK - Subsistence
BEIS,UKRI - AHRC,28/02/2020,T&S UK - Subsistence,Health and Environmental Humanities,Unspecified,98701512,25.34,T&S UK - Subsistence
BEIS,UKRI - AHRC,28/02/2020,T&S UK - Subsistence,Health and Environmental Humanities,Unspecified,98701512,25.00,T&S UK - Subsistence
BEIS,UKRI - AHRC,28/02/2020,T&S UK - Public Transport,Skills Strategy,Unspecified,98701513,191.50,T&S UK - Public Transport
BEIS,UKRI - BBSRC,03/02/2020,Legal & Professional Services,CIMG - Director,The Society of Biology / The Royal Society of Biology,98683373,18000.00,Legal & Professional Services
BEIS,UKRI - BBSRC,03/02/2020,Research Institutes - Capital Grants: Major Works,Strategic Priorities Fund,EMBL (European Molecular Biology Laboratory),98683851,1661.18,Research Institutes - Capital Grants: Major Works
BEIS,UKRI - BBSRC,03/02/2020,T&S UK - Flights,Science Group,Unspecified,98685004,6.00,T&S UK - Flights
BEIS,UKRI - BBSRC,03/02/2020,T&S UK - Mileage,Science Group,Unspecified,98685004,80.10,T&S UK - Mileage
BEIS,UKRI - BBSRC,03/02/2020,T&S UK - Parking Tolls Congestion Charges,Science Group,Unspecified,98685004,72.00,T&S UK - Parking Tolls Congestion Charges
BEIS,UKRI - BBSRC,03/02/2020,T&S UK - Public Transport,Science Group,Unspecified,98685004,55.00,T&S UK - Public Transport
BEIS,UKRI - BBSRC,03/02/2020,T&S UK - Public Transport,Science Group,Unspecified,98685004,60.90,T&S UK - Public Transport
BEIS,UKRI - BBSRC,03/02/2020,T&S UK - Subsistence,Science Group,Unspecified,98685004,7.50,T&S UK - Subsistence
BEIS,UKRI - BBSRC,03/02/2020,T&S UK - Subsistence,Science Group,Unspecified,98685004,15.40,T&S UK - Subsistence
BEIS,UKRI - BBSRC,03/02/2020,T&S UK - Subsistence,Science Group,Unspecified,98685004,8.68,T&S UK - Subsistence
BEIS,UKRI - BBSRC,03/02/2020,T&S UK - Subsistence,CE - Chief Executive,Unspecified,98685005,3.99,T&S UK - Subsistence
BEIS,UKRI - BBSRC,03/02/2020,T&S UK - Subsistence,CE - Chief Executive,Unspecified,98685005,38.85,T&S UK - Subsistence
BEIS,UKRI - BBSRC,03/02/2020,T&S UK - Subsistence,CE - Chief Executive,Unspecified,98685005,10.00,T&S UK - Subsistence
BEIS,UKRI - BBSRC,03/02/2020,T&S UK - Vehicle Hire,CE - Chief Executive,Unspecified,98685005,71.89,T&S UK - Vehicle Hire
BEIS,UKRI - BBSRC,04/02/2020,Legal & Professional Services,European Initiatives,Edinburgh Innovations Ltd,98655255,8400.00,Legal & Professional Services
BEIS,UKRI - BBSRC,04/02/2020,Research Grant Expenditure,ISCF Wave 1: Agri-food Technology Catalyst,Technology Strategy Board (Innovate UK),98684864,13170.14,Research Grant Expenditure
BEIS,UKRI - BBSRC,04/02/2020,T&S UK - Subsistence,Science Group - Delivery Function,Unspecified,98685391,18.00,T&S UK - Subsistence
BEIS,UKRI - BBSRC,04/02/2020,T&S UK - Subsistence,Science Group - Delivery Function,Unspecified,98685391,38.63,T&S UK - Subsistence
BEIS,UKRI - BBSRC,04/02/2020,T&S UK - Public Transport,CE - IRU,Unspecified,98685392,4.20,T&S UK - Public Transport
BEIS,UKRI - BBSRC,04/02/2020,T&S UK - Public Transport,CE - IRU,Unspecified,98685392,9.91,T&S UK - Public Transport
BEIS,UKRI - BBSRC,04/02/2020,T&S UK - Subsistence,CE - IRU,Unspecified,98685392,15.06,T&S UK - Subsistence
BEIS,UKRI - BBSRC,04/02/2020,T&S UK - Subsistence,CE - IRU,Unspecified,98685392,10.00,T&S UK - Subsistence
BEIS,UKRI - BBSRC,04/02/2020,T&S UK - Other Charges,FG - Estates,Unspecified,98685393,220.00,T&S UK - Other Charges
BEIS,UKRI - BBSRC,04/02/2020,T&S UK - Accommodation,CE - CPS,Unspecified,98685394,87.76,T&S UK - Accommodation
BEIS,UKRI - BBSRC,04/02/2020,T&S UK - Mileage,CE - CPS,Unspecified,98685394,18.46,T&S UK - Mileage
BEIS,UKRI - BBSRC,04/02/2020,T&S UK - Parking Tolls Congestion Charges,CE - CPS,Unspecified,98685394,11.00,T&S UK - Parking Tolls Congestion Charges
BEIS,UKRI - BBSRC,04/02/2020,T&S UK - Public Transport,CE - CPS,Unspecified,98685394,17.00,T&S UK - Public Transport
BEIS,UKRI - BBSRC,04/02/2020,T&S UK - Subsistence,CE - CPS,Unspecified,98685394,30.15,T&S UK - Subsistence
BEIS,UKRI - BBSRC,04/02/2020,T&S UK - Subsistence,CE - CPS,Unspecified,98685394,20.00,T&S UK - Subsistence
BEIS,UKRI - BBSRC,05/02/2020,Health & Safety (inc. Medicals & Opticians),PDG - Director,Swindon Occupational Medical Services Ltd,98685516,1575.00,Health & Safety (inc. Medicals & Opticians)
BEIS,UKRI - BBSRC,05/02/2020,Conferences & Seminars,Science Group,Barnes Coaches Ltd,98685641,370.00,Conferences & Seminars
BEIS,UKRI - BBSRC,05/02/2020,T&S UK - Subsistence,CE - CPS,Unspecified,98685869,5.00,T&S UK - Subsistence
BEIS,UKRI - BBSRC,05/02/2020,Meetings & Catering,European Initiatives,Harbour & Jones Ltd T/A Dartmouth House,98686505,98.88,Meetings & Catering
BEIS,UKRI - BBSRC,05/02/2020,Meetings & Catering,Science Group,Harbour & Jones Ltd T/A Dartmouth House,98686505,441.18,Meetings & Catering
BEIS,UKRI - BBSRC,06/02/2020,Other Programme Costs,CE - CPS,Calder Conference Ltd,98633492,8743.20,Other Programme Costs
BEIS,UKRI - BBSRC,06/02/2020,Other Programme Costs,CE - CPS,Calder Conference Ltd,98686717,11449.50,Other Programme Costs
BEIS,UKRI - BBSRC,06/02/2020,Conferences & Seminars,Science Group,Calder Conference Ltd,98686952,5614.00,Conferences & Seminars
BEIS,UKRI - BBSRC,06/02/2020,Conferences & Seminars,Strategic Priorities Fund,Calder Conference Ltd,98686953,2492.40,Conferences & Seminars
BEIS,UKRI - BBSRC,06/02/2020,Non-staff travel and subsistance,Science Group - Delivery Function,Non Employee Expenses Supplier,98688063,192.15,Non-staff travel and subsistance
BEIS,UKRI - BBSRC,06/02/2020,Non-staff travel and subsistance,Science Group - Delivery Function,Non Employee Expenses Supplier,98688064,39.60,Non-staff travel and subsistance
BEIS,UKRI - BBSRC,06/02/2020,Non-staff travel and subsistance,Science Group - Delivery Function,Non Employee Expenses Supplier,98688065,27.80,Non-staff travel and subsistance
BEIS,UKRI - BBSRC,06/02/2020,Non-staff travel and subsistance,Science Group - Delivery Function,Non Employee Expenses Supplier,98688066,176.40,Non-staff travel and subsistance
BEIS,UKRI - BBSRC,06/02/2020,Non-staff travel and subsistance,Science Group - Delivery Function,Non Employee Expenses Supplier,98688067,127.60,Non-staff travel and subsistance
BEIS,UKRI - BBSRC,06/02/2020,Non-staff travel and subsistance,Science Group - Delivery Function,Non Employee Expenses Supplier,98688068,47.70,Non-staff travel and subsistance
BEIS,UKRI - BBSRC,06/02/2020,Non-staff travel and subsistance,Science Group - Delivery Function,Non Employee Expenses Supplier,98688069,103.50,Non-staff travel and subsistance
BEIS,UKRI - BBSRC,06/02/2020,Non-staff travel and subsistance,Innovation and Skills Group CDSU,Non Employee Expenses Supplier,98688070,115.10,Non-staff travel and subsistance
BEIS,UKRI - BBSRC,06/02/2020,Non-staff travel and subsistance,Innovation and Skills Group CDSU,Non Employee Expenses Supplier,98688071,59.55,Non-staff travel and subsistance
BEIS,UKRI - BBSRC,06/02/2020,Non-staff travel and subsistance,Innovation and Skills Group CDSU,Non Employee Expenses Supplier,98688072,17.90,Non-staff travel and subsistance
BEIS,UKRI - BBSRC,06/02/2020,Non-staff travel and subsistance,Innovation and Skills Group CDSU,Non Employee Expenses Supplier,98688073,49.90,Non-staff travel and subsistance
BEIS,UKRI - BBSRC,06/02/2020,T&S Overseas - Other Charges,Science Group,Unspecified,98688144,5.72,T&S Overseas - Other Charges
BEIS,UKRI - BBSRC,06/02/2020,T&S Overseas - Public Transport,Science Group,Unspecified,98688144,45.78,T&S Overseas - Public Transport
BEIS,UKRI - BBSRC,06/02/2020,T&S Overseas - Subsistence,Science Group,Unspecified,98688144,12.80,T&S Overseas - Subsistence
BEIS,UKRI - BBSRC,06/02/2020,T&S Overseas - Subsistence,Science Group,Unspecified,98688144,77.00,T&S Overseas - Subsistence
BEIS,UKRI - BBSRC,06/02/2020,T&S Overseas - Subsistence,Science Group,Unspecified,98688144,17.55,T&S Overseas - Subsistence
BEIS,UKRI - BBSRC,06/02/2020,T&S Overseas - Subsistence,Science Group,Unspecified,98688144,4.80,T&S Overseas - Subsistence
BEIS,UKRI - BBSRC,06/02/2020,Health & Safety (inc. Medicals & Opticians),CE - IRU,Unspecified,98688145,124.00,Health & Safety (inc. Medicals & Opticians)
BEIS,UKRI - BBSRC,06/02/2020,T&S UK - Subsistence,CE - IRU,Unspecified,98688146,7.09,T&S UK - Subsistence
BEIS,UKRI - BBSRC,06/02/2020,T&S UK - Subsistence,Science Group,Unspecified,98688147,4.95,T&S UK - Subsistence
BEIS,UKRI - BBSRC,07/02/2020,Research Institutes - Capital Grants: Minor Works,Pirbright,The Pirbright Institute,98679857,-1782.00,Research Institutes - Capital Grants: Minor Works
BEIS,UKRI - BBSRC,07/02/2020,Data Storage & Recovery,CIMG - Information Management,Iron Mountain (UK) PLC,98683934,498.82,Data Storage & Recovery
BEIS,UKRI - BBSRC,07/02/2020,T&S UK - Vehicle Hire,CE - CPS,Enterprise Rent-A-Car UK Ltd,98685120,57.96,T&S UK - Vehicle Hire
BEIS,UKRI - BBSRC,07/02/2020,T&S UK - Vehicle Hire,CE - CPS,Enterprise Rent-A-Car UK Ltd,98685120,11.59,T&S UK - Vehicle Hire
BEIS,UKRI - BBSRC,07/02/2020,T&S UK - Vehicle Hire,CIMG - Programme Office,Enterprise Rent-A-Car UK Ltd,98685120,120.62,T&S UK - Vehicle Hire
BEIS,UKRI - BBSRC,07/02/2020,T&S UK - Vehicle Hire,CIMG - Programme Office,Enterprise Rent-A-Car UK Ltd,98685120,24.12,T&S UK - Vehicle Hire
BEIS,UKRI - BBSRC,07/02/2020,T&S UK - Vehicle Hire,FG - Director,Enterprise Rent-A-Car UK Ltd,98685120,104.25,T&S UK - Vehicle Hire
BEIS,UKRI - BBSRC,07/02/2020,T&S UK - Vehicle Hire,FG - Director,Enterprise Rent-A-Car UK Ltd,98685120,20.85,T&S UK - Vehicle Hire
BEIS,UKRI - BBSRC,07/02/2020,T&S UK - Vehicle Hire,FG - Estates,Enterprise Rent-A-Car UK Ltd,98685120,139.88,T&S UK - Vehicle Hire
BEIS,UKRI - BBSRC,07/02/2020,T&S UK - Vehicle Hire,FG - Estates,Enterprise Rent-A-Car UK Ltd,98685120,62.86,T&S UK - Vehicle Hire
BEIS,UKRI - BBSRC,07/02/2020,T&S UK - Vehicle Hire,FG - Estates,Enterprise Rent-A-Car UK Ltd,98685120,40.55,T&S UK - Vehicle Hire
BEIS,UKRI - BBSRC,07/02/2020,Research Grant Expenditure,CE - IRU,Unspecified,98687265,7945.40,Research Grant Expenditure
BEIS,UKRI - BBSRC,07/02/2020,Other Programme Costs,Innovation and Skills Group CDSU,KNOWLEDGE TRANSFER NETWORK LTD,98687499,11910.60,Other Programme Costs
BEIS,UKRI - BBSRC,07/02/2020,T&S UK - Public Transport,Innovation and Skills Group,Unspecified,98687731,19.00,T&S UK - Public Transport
BEIS,UKRI - BBSRC,07/02/2020,Telecoms - Tele/ Video conferencing,CE - IRU,MeetingZone Ltd,98688247,16.55,Telecoms - Tele/ Video conferencing
BEIS,UKRI - BBSRC,07/02/2020,Telecoms - Tele/ Video conferencing,Science Group,MeetingZone Ltd,98688247,216.39,Telecoms - Tele/ Video conferencing
BEIS,UKRI - BBSRC,07/02/2020,Research Institutes - Capital Grants: Minor Works,Pirbright,The Pirbright Institute,98688307,24960.60,Research Institutes - Capital Grants: Minor Works
BEIS,UKRI - BBSRC,10/02/2020,Other Programme Costs,Innovation and Skills Group CDSU,Business Funding Research Ltd T/A Beauhurst,98684963,9030.00,Other Programme Costs
BEIS,UKRI - BBSRC,10/02/2020,Printing & Stationery,CIMG - Director,Banner Group Ltd,98688711,29.23,Printing & Stationery
BEIS,UKRI - BBSRC,10/02/2020,Telecoms - Tele/ Video conferencing,CE - Chief Executive,BT Conferencing,98688754,262.26,Telecoms - Tele/ Video conferencing
BEIS,UKRI - BBSRC,10/02/2020,Telecoms - Tele/ Video conferencing,FG - Director,BT Conferencing,98688754,295.22,Telecoms - Tele/ Video conferencing
BEIS,UKRI - BBSRC,10/02/2020,Telecoms - Tele/ Video conferencing,Innovation and Skills Group,BT Conferencing,98688754,326.06,Telecoms - Tele/ Video conferencing
BEIS,UKRI - BBSRC,10/02/2020,Legal & Professional Services,FG - Estates,Unspecified,98688778,928.27,Legal & Professional Services
BEIS,UKRI - BBSRC,10/02/2020,Research Institutes - Capital Grants: Minor Works,Pirbright,The Pirbright Institute,98688848,13782.00,Research Institutes - Capital Grants: Minor Works
BEIS,UKRI - BBSRC,10/02/2020,Research Institutes - Capital Grants: Minor Works,Pirbright,The Pirbright Institute,98688849,13184.15,Research Institutes - Capital Grants: Minor Works
BEIS,UKRI - BBSRC,10/02/2020,Research Institutes - Capital Grants: Major Works,Estates - Projects,EMBL (European Molecular Biology Laboratory),98689073,11458.20,Research Institutes - Capital Grants: Major Works
BEIS,UKRI - BBSRC,10/02/2020,T&S UK - Subsistence,FG - Estates,Unspecified,98689226,2.19,T&S UK - Subsistence
BEIS,UKRI - BBSRC,10/02/2020,T&S UK - Vehicle Hire,FG - Estates,Unspecified,98689226,24.57,T&S UK - Vehicle Hire
BEIS,UKRI - BBSRC,10/02/2020,T&S UK - Public Transport,Science Group,Unspecified,98689227,6.00,T&S UK - Public Transport
BEIS,UKRI - BBSRC,10/02/2020,T&S UK - Subsistence,Science Group,Unspecified,98689227,4.70,T&S UK - Subsistence
BEIS,UKRI - BBSRC,10/02/2020,T&S UK - Subsistence,Science Group,Unspecified,98689227,10.98,T&S UK - Subsistence
BEIS,UKRI - BBSRC,10/02/2020,T&S UK - Subsistence,Science Group,Unspecified,98689227,4.65,T&S UK - Subsistence
BEIS,UKRI - BBSRC,10/02/2020,T&S UK - Subsistence,Science Group,Unspecified,98689227,15.00,T&S UK - Subsistence
BEIS,UKRI - BBSRC,10/02/2020,T&S UK - Subsistence,Science Group,Unspecified,98689227,4.80,T&S UK - Subsistence
BEIS,UKRI - BBSRC,10/02/2020,GPC Clearing - BBSRC,Balance Sheet,Unspecified,98689228,-42.66,GPC Clearing - BBSRC
BEIS,UKRI - BBSRC,10/02/2020,T&S UK - Parking Tolls Congestion Charges,FG - Estates,Unspecified,98689228,7.00,T&S UK - Parking Tolls Congestion Charges
BEIS,UKRI - BBSRC,10/02/2020,T&S UK - Subsistence,FG - Estates,Unspecified,98689228,4.75,T&S UK - Subsistence
BEIS,UKRI - BBSRC,10/02/2020,T&S UK - Subsistence,FG - Estates,Unspecified,98689228,5.00,T&S UK - Subsistence
BEIS,UKRI - BBSRC,10/02/2020,T&S UK - Vehicle Hire,FG - Estates,Unspecified,98689228,35.66,T&S UK - Vehicle Hire
BEIS,UKRI - BBSRC,10/02/2020,T&S UK - Public Transport,CE - CPS,Unspecified,98689229,4.80,T&S UK - Public Transport
BEIS,UKRI - BBSRC,10/02/2020,T&S UK - Subsistence,CE - CPS,Unspecified,98689229,5.40,T&S UK - Subsistence
BEIS,UKRI - BBSRC,10/02/2020,T&S UK - Subsistence,CE - CPS,Unspecified,98689229,32.35,T&S UK - Subsistence
BEIS,UKRI - BBSRC,10/02/2020,T&S UK - Subsistence,CE - CPS,Unspecified,98689229,5.00,T&S UK - Subsistence
BEIS,UKRI - BBSRC,10/02/2020,Non-staff travel and subsistance,Science Group - Delivery Function,Unspecified,98689562,-221.76,Non-staff travel and subsistance
BEIS,UKRI - BBSRC,11/02/2020,Contract Staff,PDG - Director,RCPS Pension,98681734,2711.98,Contract Staff
BEIS,UKRI - BBSRC,11/02/2020,Other Programme Costs,FG - Estates,John Innes Centre,98683819,42256.38,Other Programme Costs
BEIS,UKRI - BBSRC,11/02/2020,Research Institutes - Capital Grants: Minor Works,Estates - Projects,Anglia Innovation Partnership LLP,98687454,193816.47,Research Institutes - Capital Grants: Minor Works
BEIS,UKRI - BBSRC,11/02/2020,T&S UK - Parking Tolls Congestion Charges,Science Group,Unspecified,98690350,8.00,T&S UK - Parking Tolls Congestion Charges
BEIS,UKRI - BBSRC,11/02/2020,T&S UK - Subsistence,Science Group,Unspecified,98690350,5.95,T&S UK - Subsistence
BEIS,UKRI - BBSRC,11/02/2020,GPC Clearing - BBSRC,Balance Sheet,Unspecified,98690351,-46.97,GPC Clearing - BBSRC
BEIS,UKRI - BBSRC,11/02/2020,T&S UK - Parking Tolls Congestion Charges,FG - Estates,Unspecified,98690351,12.00,T&S UK - Parking Tolls Congestion Charges
BEIS,UKRI - BBSRC,11/02/2020,T&S UK - Subsistence,FG - Estates,Unspecified,98690351,15.40,T&S UK - Subsistence
BEIS,UKRI - BBSRC,11/02/2020,T&S UK - Subsistence,FG - Estates,Unspecified,98690351,5.00,T&S UK - Subsistence
BEIS,UKRI - BBSRC,11/02/2020,T&S UK - Subsistence,FG - Estates,Unspecified,98690351,1.70,T&S UK - Subsistence
BEIS,UKRI - BBSRC,11/02/2020,T&S UK - Vehicle Hire,FG - Estates,Unspecified,98690351,36.32,T&S UK - Vehicle Hire
BEIS,UKRI - BBSRC,11/02/2020,T&S UK - Mileage,Science Group,Unspecified,98690352,49.50,T&S UK - Mileage
BEIS,UKRI - BBSRC,12/02/2020,PAYE Payable Salaries,Balance Sheet,HM Revenue & Customs,98687241,4950.81,PAYE Payable Salaries
BEIS,UKRI - BBSRC,12/02/2020,Apprenticeship Levy,FG - Accounts & Business Planning,HM Revenue & Customs,98687243,78.00,Apprenticeship Levy
BEIS,UKRI - BBSRC,12/02/2020,PAYE Payable Salaries,Balance Sheet,HM Revenue & Customs,98687430,62812.80,PAYE Payable Salaries
BEIS,UKRI - BBSRC,12/02/2020,Student Loans,Balance Sheet,HM Revenue & Customs,98687431,4185.00,Student Loans
BEIS,UKRI - BBSRC,12/02/2020,NI Payable Salaries,Balance Sheet,HM Revenue & Customs,98687432,91084.20,NI Payable Salaries
BEIS,UKRI - BBSRC,12/02/2020,Apprenticeship Levy,FG - Accounts & Business Planning,HM Revenue & Customs,98687433,2416.00,Apprenticeship Levy
BEIS,UKRI - BBSRC,12/02/2020,Non-staff travel and subsistance,Science Group - Delivery Function,Non Employee Expenses Supplier,98688077,1501.42,Non-staff travel and subsistance
BEIS,UKRI - BBSRC,12/02/2020,Non-staff travel and subsistance,Science Group - Delivery Function,Non Employee Expenses Supplier,98688079,1684.92,Non-staff travel and subsistance
BEIS,UKRI - BBSRC,12/02/2020,Non-staff travel and subsistance,Science Group - Delivery Function,Non Employee Expenses Supplier,98688080,1463.47,Non-staff travel and subsistance
BEIS,UKRI - BBSRC,12/02/2020,Non-staff travel and subsistance,Science Group - Delivery Function,Non Employee Expenses Supplier,98688081,1309.05,Non-staff travel and subsistance
BEIS,UKRI - BBSRC,12/02/2020,Non-staff travel and subsistance,CE - IRU,Non Employee Expenses Supplier,98688946,1060.37,Non-staff travel and subsistance
BEIS,UKRI - BBSRC,12/02/2020,Non-staff travel and subsistance,CE - IRU,Non Employee Expenses Supplier,98688947,1057.86,Non-staff travel and subsistance
BEIS,UKRI - BBSRC,12/02/2020,Non-staff travel and subsistance,CE - IRU,Non Employee Expenses Supplier,98688948,1070.79,Non-staff travel and subsistance
BEIS,UKRI - BBSRC,12/02/2020,Recruitment Costs,PDG - Director,Agenda Resource Management Ltd,98690187,153.91,Recruitment Costs
BEIS,UKRI - BBSRC,12/02/2020,Recruitment Costs,PDG - Director,Agenda Resource Management Ltd,98690188,153.91,Recruitment Costs
BEIS,UKRI - BBSRC,12/02/2020,Research Institutes - Capital Grants: Major Works,JIC,John Innes Centre,98690649,2473.91,Research Institutes - Capital Grants: Major Works
BEIS,UKRI - BBSRC,13/02/2020,Voluntary Deductions,Balance Sheet,St Elizabeth�s Centre,98687244,570.83,Voluntary Deductions
BEIS,UKRI - BBSRC,13/02/2020,Union Deductions,Balance Sheet,PCS Union,98687434,83.68,Union Deductions
BEIS,UKRI - BBSRC,13/02/2020,Ees Pension Deductions - JSS,Balance Sheet,RCPS Pension,98687436,24512.40,Ees Pension Deductions - JSS
BEIS,UKRI - BBSRC,13/02/2020,Ers Pension Deductions - JSS,Balance Sheet,RCPS Pension,98687437,101248.47,Ers Pension Deductions - JSS
BEIS,UKRI - BBSRC,13/02/2020,Partnership Pension Deductions,Balance Sheet,Scottish Widows Life Assurance,98687438,540.36,Partnership Pension Deductions
BEIS,UKRI - BBSRC,13/02/2020,Other Pension Deductions,Balance Sheet,Scottish Widows Life Assurance,98687439,10.00,Other Pension Deductions
BEIS,UKRI - BBSRC,13/02/2020,Ers Pension Deductions - JSS,Balance Sheet,Cabinet Office RM Shared Services,98687440,12.83,Ers Pension Deductions - JSS
BEIS,UKRI - BBSRC,13/02/2020,Ees Pension Deductions - MyCSP,Balance Sheet,Cabinet Office RM Shared Services,98687441,5625.48,Ees Pension Deductions - MyCSP
BEIS,UKRI - BBSRC,13/02/2020,Ers Pension Deductions - MyCSP,Balance Sheet,Cabinet Office RM Shared Services,98687442,28771.00,Ers Pension Deductions - MyCSP
BEIS,UKRI - BBSRC,13/02/2020,Voluntary Deductions,Balance Sheet,BHCA (Services) Ltd,98687443,23.80,Voluntary Deductions
BEIS,UKRI - BBSRC,13/02/2020,Research Institutes - Capital Grants: Minor Works,Pirbright,The Pirbright Institute,98688309,11136.00,Research Institutes - Capital Grants: Minor Works
BEIS,UKRI - BBSRC,13/02/2020,Research Institutes - Capital Grants: Minor Works,Pirbright,The Pirbright Institute,98688851,17262.90,Research Institutes - Capital Grants: Minor Works
BEIS,UKRI - BBSRC,13/02/2020,Non-staff travel and subsistance,Innovation and Skills Group CDSU,Non Employee Expenses Supplier,98691402,232.15,Non-staff travel and subsistance
BEIS,UKRI - BBSRC,13/02/2020,Non-staff travel and subsistance,Science Group - Delivery Function,Non Employee Expenses Supplier,98691487,202.19,Non-staff travel and subsistance
BEIS,UKRI - BBSRC,13/02/2020,Non-staff travel and subsistance,Science Group - Delivery Function,Non Employee Expenses Supplier,98691488,159.98,Non-staff travel and subsistance
BEIS,UKRI - BBSRC,13/02/2020,T&S UK - Public Transport,Innovation and Skills Group,Unspecified,98691621,30.80,T&S UK - Public Transport
BEIS,UKRI - BBSRC,13/02/2020,T&S UK - Subsistence,Innovation and Skills Group,Unspecified,98691621,4.30,T&S UK - Subsistence
BEIS,UKRI - BBSRC,13/02/2020,T&S UK - Public Transport,Innovation and Skills Group,Unspecified,98691622,39.50,T&S UK - Public Transport
BEIS,UKRI - BBSRC,13/02/2020,T&S UK - Subsistence,Innovation and Skills Group,Unspecified,98691622,6.40,T&S UK - Subsistence
BEIS,UKRI - BBSRC,13/02/2020,T&S UK - Subsistence,Innovation and Skills Group,Unspecified,98691622,54.38,T&S UK - Subsistence
BEIS,UKRI - BBSRC,13/02/2020,T&S UK - Subsistence,Innovation and Skills Group,Unspecified,98691622,28.30,T&S UK - Subsistence
BEIS,UKRI - BBSRC,13/02/2020,Non-staff travel and subsistance,Innovation and Skills Group CDSU,Non Employee Expenses Supplier,98692116,182.56,Non-staff travel and subsistance
BEIS,UKRI - BBSRC,14/02/2020,T&S UK - Vehicle Hire,FG - Estates,Enterprise Rent-A-Car UK Ltd,98689941,85.61,T&S UK - Vehicle Hire
BEIS,UKRI - BBSRC,14/02/2020,T&S UK - Vehicle Hire,FG - Estates,Enterprise Rent-A-Car UK Ltd,98689941,40.38,T&S UK - Vehicle Hire
BEIS,UKRI - BBSRC,14/02/2020,T&S UK - Vehicle Hire,FG - Estates,Enterprise Rent-A-Car UK Ltd,98689941,25.20,T&S UK - Vehicle Hire
BEIS,UKRI - BBSRC,14/02/2020,Research Institutes - Capital Grants: Minor Works,JIC,John Innes Centre,98691471,4014.00,Research Institutes - Capital Grants: Minor Works
BEIS,UKRI - BBSRC,14/02/2020,Nursery Deductions,Balance Sheet,EDENRED (UK GROUP) LTD,98691703,2696.00,Nursery Deductions
BEIS,UKRI - BBSRC,14/02/2020,Other Programme Costs,Science Group,New Statesman Ltd,98691794,4794.00,Other Programme Costs
BEIS,UKRI - BBSRC,14/02/2020,Other Programme Costs,Innovation and Skills Group CDSU,Babraham Bioscience Technologies Ltd,98691802,84000.00,Other Programme Costs
BEIS,UKRI - BBSRC,14/02/2020,Research Institutes - Capital Grants: Major Works,Estates - Projects,EMBL (European Molecular Biology Laboratory),98691875,76843.37,Research Institutes - Capital Grants: Major Works
BEIS,UKRI - BBSRC,14/02/2020,Other Programme Costs,Strategic Priorities Fund,University of Hertfordshire,98691969,24999.00,Other Programme Costs
BEIS,UKRI - BBSRC,14/02/2020,Research Institutes - Capital Grants: Minor Works,JIC,John Innes Centre,98692179,4674.00,Research Institutes - Capital Grants: Minor Works
BEIS,UKRI - BBSRC,14/02/2020,Research Institutes - Capital Grants: Minor Works,TGAC,Earlham Institute,98692288,2637.00,Research Institutes - Capital Grants: Minor Works
BEIS,UKRI - BBSRC,14/02/2020,T&S UK - Subsistence,CE - IRU,Unspecified,98693075,5.40,T&S UK - Subsistence
BEIS,UKRI - BBSRC,14/02/2020,T&S UK - Parking Tolls Congestion Charges,Science Group,Unspecified,98693076,8.00,T&S UK - Parking Tolls Congestion Charges
BEIS,UKRI - BBSRC,14/02/2020,T&S UK - Public Transport,Innovation and Skills Group,Unspecified,98693077,25.00,T&S UK - Public Transport
BEIS,UKRI - BBSRC,14/02/2020,T&S UK - Subsistence,Innovation and Skills Group,Unspecified,98693077,5.00,T&S UK - Subsistence
BEIS,UKRI - BBSRC,14/02/2020,T&S UK - Subsistence,Science Group - Delivery Function,Unspecified,98693078,25.00,T&S UK - Subsistence
BEIS,UKRI - BBSRC,14/02/2020,T&S UK - Subsistence,Science Group - Delivery Function,Unspecified,98693078,10.00,T&S UK - Subsistence
BEIS,UKRI - BBSRC,14/02/2020,T&S UK - Public Transport,Science Group - Delivery Function,Unspecified,98693079,8.10,T&S UK - Public Transport
BEIS,UKRI - BBSRC,14/02/2020,T&S UK - Public Transport,Science Group - Delivery Function,Unspecified,98693079,34.05,T&S UK - Public Transport
BEIS,UKRI - BBSRC,14/02/2020,T&S UK - Subsistence,Science Group - Delivery Function,Unspecified,98693079,10.00,T&S UK - Subsistence
BEIS,UKRI - BBSRC,18/02/2020,Printing & Stationery,CIMG - Director,Banner Group Ltd,98693183,3.84,Printing & Stationery
BEIS,UKRI - BBSRC,18/02/2020,Printing & Stationery,CIMG - Director,Banner Group Ltd,98693183,2.40,Printing & Stationery
BEIS,UKRI - BBSRC,18/02/2020,T&S UK - Parking Tolls Congestion Charges,FG - Estates,Unspecified,98694954,11.00,T&S UK - Parking Tolls Congestion Charges
BEIS,UKRI - BBSRC,18/02/2020,T&S UK - Subsistence,FG - Estates,Unspecified,98694954,42.00,T&S UK - Subsistence
BEIS,UKRI - BBSRC,18/02/2020,T&S UK - Subsistence,FG - Estates,Unspecified,98694954,21.44,T&S UK - Subsistence
BEIS,UKRI - BBSRC,18/02/2020,T&S UK - Subsistence,FG - Estates,Unspecified,98694954,5.00,T&S UK - Subsistence
BEIS,UKRI - BBSRC,18/02/2020,T&S UK - Vehicle Hire,FG - Estates,Unspecified,98694954,50.35,T&S UK - Vehicle Hire
BEIS,UKRI - BBSRC,18/02/2020,T&S Overseas - Other Charges,European Initiatives,Unspecified,98694955,10.12,T&S Overseas - Other Charges
BEIS,UKRI - BBSRC,18/02/2020,T&S Overseas - Public Transport,European Initiatives,Unspecified,98694955,14.00,T&S Overseas - Public Transport
BEIS,UKRI - BBSRC,18/02/2020,T&S Overseas - Public Transport,European Initiatives,Unspecified,98694955,19.83,T&S Overseas - Public Transport
BEIS,UKRI - BBSRC,18/02/2020,T&S Overseas - Subsistence,European Initiatives,Unspecified,98694955,10.00,T&S Overseas - Subsistence
BEIS,UKRI - BBSRC,18/02/2020,T&S Overseas - Subsistence,European Initiatives,Unspecified,98694955,4.22,T&S Overseas - Subsistence
BEIS,UKRI - BBSRC,18/02/2020,T&S Overseas - Subsistence,European Initiatives,Unspecified,98694955,10.95,T&S Overseas - Subsistence
BEIS,UKRI - BBSRC,18/02/2020,T&S Overseas - Subsistence,European Initiatives,Unspecified,98694955,2.78,T&S Overseas - Subsistence
BEIS,UKRI - BBSRC,19/02/2020,Research Grant Expenditure,Rothamsted Research,Rothamsted Research Ltd,98683601,194590.17,Research Grant Expenditure
BEIS,UKRI - BBSRC,19/02/2020,Research Institutes - Competitive Strategic Grant,Babraham Institute,Earlham Institute,98685664,33333.33,Research Institutes - Competitive Strategic Grant
BEIS,UKRI - BBSRC,19/02/2020,Research Institutes - Competitive Strategic Grant,Babraham Institute,Earlham Institute,98685664,2916.67,Research Institutes - Competitive Strategic Grant
BEIS,UKRI - BBSRC,19/02/2020,Research Institutes - Competitive Strategic Grant,TGAC,Earlham Institute,98685664,171390.75,Research Institutes - Competitive Strategic Grant
BEIS,UKRI - BBSRC,19/02/2020,Research Institutes - Competitive Strategic Grant,TGAC,Earlham Institute,98685664,75286.58,Research Institutes - Competitive Strategic Grant
BEIS,UKRI - BBSRC,19/02/2020,Research Institutes - Competitive Strategic Grant,TGAC,Earlham Institute,98685664,40250.00,Research Institutes - Competitive Strategic Grant
BEIS,UKRI - BBSRC,19/02/2020,Research Institutes - Competitive Strategic Grant,TGAC,Earlham Institute,98685664,114572.67,Research Institutes - Competitive Strategic Grant
BEIS,UKRI - BBSRC,19/02/2020,Research Institutes - Competitive Strategic Grant,IBERS,Aberystwyth University,98685805,86360.99,Research Institutes - Competitive Strategic Grant
BEIS,UKRI - BBSRC,19/02/2020,Research Institutes - Competitive Strategic Grant,IBERS,Aberystwyth University,98685805,46980.67,Research Institutes - Competitive Strategic Grant
BEIS,UKRI - BBSRC,19/02/2020,Research Institutes - Competitive Strategic Grant,IBERS,Aberystwyth University,98685805,2916.67,Research Institutes - Competitive Strategic Grant
BEIS,UKRI - BBSRC,19/02/2020,Research Institutes - Competitive Strategic Grant,JIC,John Innes Centre,98685822,20998.41,Research Institutes - Competitive Strategic Grant
BEIS,UKRI - BBSRC,19/02/2020,Research Institutes - Competitive Strategic Grant,JIC,John Innes Centre,98685822,489129.70,Research Institutes - Competitive Strategic Grant
BEIS,UKRI - BBSRC,19/02/2020,Research Institutes - Competitive Strategic Grant,JIC,John Innes Centre,98685822,65328.40,Research Institutes - Competitive Strategic Grant
BEIS,UKRI - BBSRC,19/02/2020,Research Institutes - Competitive Strategic Grant,JIC,John Innes Centre,98685822,524543.69,Research Institutes - Competitive Strategic Grant
BEIS,UKRI - BBSRC,19/02/2020,Research Institutes - Competitive Strategic Grant,JIC,John Innes Centre,98685822,7082.80,Research Institutes - Competitive Strategic Grant
BEIS,UKRI - BBSRC,19/02/2020,Research Institutes - Competitive Strategic Grant,JIC,John Innes Centre,98686531,41667.00,Research Institutes - Competitive Strategic Grant
BEIS,UKRI - BBSRC,19/02/2020,Research Institutes - Competitive Strategic Grant,Babraham Institute,Babraham Institute,98686553,352459.91,Research Institutes - Competitive Strategic Grant
BEIS,UKRI - BBSRC,19/02/2020,Research Institutes - Competitive Strategic Grant,Babraham Institute,Babraham Institute,98686553,48750.01,Research Institutes - Competitive Strategic Grant
BEIS,UKRI - BBSRC,19/02/2020,Research Institutes - Competitive Strategic Grant,Babraham Institute,Babraham Institute,98686553,395666.75,Research Institutes - Competitive Strategic Grant
BEIS,UKRI - BBSRC,19/02/2020,Research Institutes - Competitive Strategic Grant,Babraham Institute,Babraham Institute,98686553,5833.33,Research Institutes - Competitive Strategic Grant
BEIS,UKRI - BBSRC,19/02/2020,Research Institutes - Competitive Strategic Grant,EBRC (Roslin),University of Edinburgh,98687687,206087.50,Research Institutes - Competitive Strategic Grant
BEIS,UKRI - BBSRC,19/02/2020,Research Institutes - Competitive Strategic Grant,EBRC (Roslin),University of Edinburgh,98687687,5833.33,Research Institutes - Competitive Strategic Grant
BEIS,UKRI - BBSRC,19/02/2020,Research Institutes - Competitive Strategic Grant,EBRC (Roslin),University of Edinburgh,98687687,277179.92,Research Institutes - Competitive Strategic Grant
BEIS,UKRI - BBSRC,19/02/2020,Research Institutes - Competitive Strategic Grant,Pirbright,The Pirbright Institute,98687836,819250.00,Research Institutes - Competitive Strategic Grant
BEIS,UKRI - BBSRC,19/02/2020,Research Institutes - Competitive Strategic Grant,Pirbright,The Pirbright Institute,98687836,232083.33,Research Institutes - Competitive Strategic Grant
BEIS,UKRI - BBSRC,19/02/2020,Research Institutes - Competitive Strategic Grant,Pirbright,The Pirbright Institute,98687836,33333.33,Research Institutes - Competitive Strategic Grant
BEIS,UKRI - BBSRC,19/02/2020,Research Institutes - Competitive Strategic Grant,Pirbright,The Pirbright Institute,98687836,198583.33,Research Institutes - Competitive Strategic Grant
BEIS,UKRI - BBSRC,19/02/2020,Research Institutes - Competitive Strategic Grant,Pirbright,The Pirbright Institute,98687836,4166.67,Research Institutes - Competitive Strategic Grant
BEIS,UKRI - BBSRC,19/02/2020,Institute Grant Expenditure,Rothamsted Research,Rothamsted Research Ltd,98688033,49250.00,Institute Grant Expenditure
BEIS,UKRI - BBSRC,19/02/2020,Research Institutes - Competitive Strategic Grant,Rothamsted Research,Rothamsted Research Ltd,98688042,111253.33,Research Institutes - Competitive Strategic Grant
BEIS,UKRI - BBSRC,19/02/2020,Research Institutes - Competitive Strategic Grant,Rothamsted Research,Rothamsted Research Ltd,98688042,418416.67,Research Institutes - Competitive Strategic Grant
BEIS,UKRI - BBSRC,19/02/2020,Research Institutes - Competitive Strategic Grant,Rothamsted Research,Rothamsted Research Ltd,98688042,64666.67,Research Institutes - Competitive Strategic Grant
BEIS,UKRI - BBSRC,19/02/2020,Research Institutes - Competitive Strategic Grant,Rothamsted Research,Rothamsted Research Ltd,98688042,197000.00,Research Institutes - Competitive Strategic Grant
BEIS,UKRI - BBSRC,19/02/2020,Research Institutes - Competitive Strategic Grant,Rothamsted Research,Rothamsted Research Ltd,98688042,7083.33,Research Institutes - Competitive Strategic Grant
BEIS,UKRI - BBSRC,19/02/2020,Conferences & Seminars,Science Group,Westminster Forum Projects Ltd,98689000,276.00,Conferences & Seminars
BEIS,UKRI - BBSRC,19/02/2020,Research Institutes - Capital Grants: Major Works,IFR,Quadram Institute Bioscience,98693036,121433.25,Research Institutes - Capital Grants: Major Works
BEIS,UKRI - BBSRC,19/02/2020,Research Institutes - Competitive Strategic Grant,IFR,Quadram Institute Bioscience,98693037,22677.06,Research Institutes - Competitive Strategic Grant
BEIS,UKRI - BBSRC,19/02/2020,Research Institutes - Competitive Strategic Grant,IFR,Quadram Institute Bioscience,98693037,338994.67,Research Institutes - Competitive Strategic Grant
BEIS,UKRI - BBSRC,19/02/2020,Research Institutes - Competitive Strategic Grant,IFR,Quadram Institute Bioscience,98693037,46083.29,Research Institutes - Competitive Strategic Grant
BEIS,UKRI - BBSRC,19/02/2020,Research Institutes - Competitive Strategic Grant,IFR,Quadram Institute Bioscience,98693037,271377.65,Research Institutes - Competitive Strategic Grant
BEIS,UKRI - BBSRC,19/02/2020,Research Institutes - Competitive Strategic Grant,IFR,Quadram Institute Bioscience,98693037,5833.33,Research Institutes - Competitive Strategic Grant
BEIS,UKRI - BBSRC,19/02/2020,Non-staff travel and subsistance,Science Group - Delivery Function,Non Employee Expenses Supplier,98695304,153.45,Non-staff travel and subsistance
BEIS,UKRI - BBSRC,19/02/2020,Non-staff travel and subsistance,Innovation and Skills Group CDSU,Non Employee Expenses Supplier,98695305,78.50,Non-staff travel and subsistance
BEIS,UKRI - BBSRC,19/02/2020,Non-staff travel and subsistance,Science Group - Delivery Function,Non Employee Expenses Supplier,98695306,71.55,Non-staff travel and subsistance
BEIS,UKRI - BBSRC,19/02/2020,Non-staff travel and subsistance,Science Group - Delivery Function,Non Employee Expenses Supplier,98695307,83.10,Non-staff travel and subsistance
BEIS,UKRI - BBSRC,19/02/2020,Non-staff travel and subsistance,Science Group - Delivery Function,Non Employee Expenses Supplier,98695308,236.83,Non-staff travel and subsistance
BEIS,UKRI - BBSRC,19/02/2020,Non-staff travel and subsistance,Science Group - Delivery Function,Non Employee Expenses Supplier,98695309,187.80,Non-staff travel and subsistance
BEIS,UKRI - BBSRC,19/02/2020,Non-staff travel and subsistance,Science Group - Delivery Function,Non Employee Expenses Supplier,98695310,191.50,Non-staff travel and subsistance
BEIS,UKRI - BBSRC,19/02/2020,Non-staff travel and subsistance,Innovation and Skills Group CDSU,Non Employee Expenses Supplier,98695311,201.20,Non-staff travel and subsistance
BEIS,UKRI - BBSRC,19/02/2020,Non-staff travel and subsistance,CE - IRU,Non Employee Expenses Supplier,98695312,204.69,Non-staff travel and subsistance
BEIS,UKRI - BBSRC,19/02/2020,Non-staff travel and subsistance,Innovation and Skills Group CDSU,Non Employee Expenses Supplier,98695313,139.50,Non-staff travel and subsistance
BEIS,UKRI - BBSRC,19/02/2020,Non-staff travel and subsistance,Innovation and Skills Group CDSU,Non Employee Expenses Supplier,98695314,169.00,Non-staff travel and subsistance
BEIS,UKRI - BBSRC,19/02/2020,Non-staff travel and subsistance,Innovation and Skills Group CDSU,Non Employee Expenses Supplier,98695315,70.80,Non-staff travel and subsistance
BEIS,UKRI - BBSRC,19/02/2020,Non-staff travel and subsistance,Innovation and Skills Group CDSU,Non Employee Expenses Supplier,98695316,214.50,Non-staff travel and subsistance
BEIS,UKRI - BBSRC,19/02/2020,Non-staff travel and subsistance,Innovation and Skills Group CDSU,Non Employee Expenses Supplier,98695317,102.90,Non-staff travel and subsistance
BEIS,UKRI - BBSRC,19/02/2020,Non-staff travel and subsistance,Innovation and Skills Group CDSU,Non Employee Expenses Supplier,98695318,455.76,Non-staff travel and subsistance
BEIS,UKRI - BBSRC,19/02/2020,Non-staff travel and subsistance,European Initiatives,Non Employee Expenses Supplier,98695323,438.44,Non-staff travel and subsistance
BEIS,UKRI - BBSRC,19/02/2020,Non-staff travel and subsistance,CE - IRU,Non Employee Expenses Supplier,98695324,1032.91,Non-staff travel and subsistance
BEIS,UKRI - BBSRC,19/02/2020,Non-staff travel and subsistance,CE - IRU,Non Employee Expenses Supplier,98695326,1653.80,Non-staff travel and subsistance
BEIS,UKRI - BBSRC,19/02/2020,Non-staff travel and subsistance,CE - IRU,Non Employee Expenses Supplier,98695327,1233.47,Non-staff travel and subsistance
BEIS,UKRI - BBSRC,19/02/2020,Non-staff travel and subsistance,CE - IRU,Non Employee Expenses Supplier,98695328,1138.40,Non-staff travel and subsistance
BEIS,UKRI - BBSRC,19/02/2020,T&S UK - Subsistence,CE - Chief Executive,Unspecified,98696536,25.00,T&S UK - Subsistence
BEIS,UKRI - BBSRC,19/02/2020,T&S UK - Mileage,CE - Chief Executive,Unspecified,98696537,31.50,T&S UK - Mileage
BEIS,UKRI - BBSRC,19/02/2020,T&S UK - Public Transport,CE - Chief Executive,Unspecified,98696539,3.50,T&S UK - Public Transport
BEIS,UKRI - BBSRC,19/02/2020,T&S UK - Public Transport,CE - Chief Executive,Unspecified,98696539,38.58,T&S UK - Public Transport
BEIS,UKRI - BBSRC,19/02/2020,T&S UK - Subsistence,CE - Chief Executive,Unspecified,98696539,5.20,T&S UK - Subsistence
BEIS,UKRI - BBSRC,19/02/2020,T&S UK - Subsistence,CE - Chief Executive,Unspecified,98696539,22.05,T&S UK - Subsistence
BEIS,UKRI - BBSRC,19/02/2020,T&S UK - Subsistence,CE - Chief Executive,Unspecified,98696539,11.60,T&S UK - Subsistence
BEIS,UKRI - BBSRC,19/02/2020,T&S UK - Subsistence,Innovation and Skills Group CDSU,Unspecified,98696540,10.00,T&S UK - Subsistence
BEIS,UKRI - BBSRC,20/02/2020,Conferences & Seminars,Innovation and Skills Group CDSU,Calder Conference Ltd,98688618,3640.00,Conferences & Seminars
BEIS,UKRI - BBSRC,20/02/2020,T&S UK - Public Transport,Science Group,Corporate Airport Transfers Ltd,98688830,105.60,T&S UK - Public Transport
BEIS,UKRI - BBSRC,20/02/2020,Non-staff travel and subsistance,CE - IRU,Calder Conference Ltd,98696670,31684.39,Non-staff travel and subsistance
BEIS,UKRI - BBSRC,20/02/2020,T&S UK - Mileage,Science Group,Unspecified,98697976,263.25,T&S UK - Mileage
BEIS,UKRI - BBSRC,20/02/2020,T&S UK - Subsistence,Science Group,Unspecified,98697976,37.10,T&S UK - Subsistence
BEIS,UKRI - BBSRC,20/02/2020,T&S UK - Subsistence,Science Group,Unspecified,98697976,30.00,T&S UK - Subsistence
BEIS,UKRI - BBSRC,21/02/2020,Non-staff travel and subsistance,Innovation and Skills Group CDSU,Non Employee Expenses Supplier,98697333,147.24,Non-staff travel and subsistance
BEIS,UKRI - BBSRC,21/02/2020,Non-staff travel and subsistance,Innovation and Skills Group CDSU,Non Employee Expenses Supplier,98697334,57.80,Non-staff travel and subsistance
BEIS,UKRI - BBSRC,21/02/2020,Non-staff travel and subsistance,Innovation and Skills Group CDSU,Non Employee Expenses Supplier,98697335,59.50,Non-staff travel and subsistance
BEIS,UKRI - BBSRC,21/02/2020,Non-staff travel and subsistance,Science Group - Delivery Function,Non Employee Expenses Supplier,98697336,222.98,Non-staff travel and subsistance
BEIS,UKRI - BBSRC,21/02/2020,Non-staff travel and subsistance,Innovation and Skills Group CDSU,Non Employee Expenses Supplier,98697337,285.40,Non-staff travel and subsistance
BEIS,UKRI - BBSRC,21/02/2020,Non-staff travel and subsistance,Innovation and Skills Group CDSU,Non Employee Expenses Supplier,98697338,63.10,Non-staff travel and subsistance
BEIS,UKRI - BBSRC,21/02/2020,Non-staff travel and subsistance,Innovation and Skills Group CDSU,Non Employee Expenses Supplier,98697339,47.00,Non-staff travel and subsistance
BEIS,UKRI - BBSRC,21/02/2020,Non-staff travel and subsistance,Innovation and Skills Group CDSU,Non Employee Expenses Supplier,98697340,185.50,Non-staff travel and subsistance
BEIS,UKRI - BBSRC,21/02/2020,Non-staff travel and subsistance,Innovation and Skills Group CDSU,Non Employee Expenses Supplier,98697341,107.54,Non-staff travel and subsistance
BEIS,UKRI - BBSRC,21/02/2020,Non-staff travel and subsistance,Innovation and Skills Group CDSU,Non Employee Expenses Supplier,98697342,117.50,Non-staff travel and subsistance
BEIS,UKRI - BBSRC,21/02/2020,Non-staff travel and subsistance,Innovation and Skills Group CDSU,Non Employee Expenses Supplier,98697343,119.50,Non-staff travel and subsistance
BEIS,UKRI - BBSRC,21/02/2020,Non-staff travel and subsistance,Innovation and Skills Group CDSU,Non Employee Expenses Supplier,98697344,84.20,Non-staff travel and subsistance
BEIS,UKRI - BBSRC,21/02/2020,Non-staff travel and subsistance,Innovation and Skills Group CDSU,Non Employee Expenses Supplier,98697345,95.00,Non-staff travel and subsistance
BEIS,UKRI - BBSRC,21/02/2020,Non-staff travel and subsistance,Innovation and Skills Group CDSU,Non Employee Expenses Supplier,98697346,116.38,Non-staff travel and subsistance
BEIS,UKRI - BBSRC,21/02/2020,T&S UK - Public Transport,CE - IRU,Unspecified,98698380,11.00,T&S UK - Public Transport
BEIS,UKRI - BBSRC,21/02/2020,T&S UK - Other Charges,CE - CPS,Unspecified,98698381,5.00,T&S UK - Other Charges
BEIS,UKRI - BBSRC,21/02/2020,T&S UK - Subsistence,CE - CPS,Unspecified,98698381,7.45,T&S UK - Subsistence
BEIS,UKRI - BBSRC,21/02/2020,T&S UK - Subsistence,CE - CPS,Unspecified,98698381,30.00,T&S UK - Subsistence
BEIS,UKRI - BBSRC,21/02/2020,T&S Overseas - Public Transport,European Initiatives,Unspecified,98698382,9.30,T&S Overseas - Public Transport
BEIS,UKRI - BBSRC,21/02/2020,T&S Overseas - Subsistence,European Initiatives,Unspecified,98698382,10.00,T&S Overseas - Subsistence
BEIS,UKRI - BBSRC,21/02/2020,T&S Overseas - Subsistence,European Initiatives,Unspecified,98698382,22.82,T&S Overseas - Subsistence
BEIS,UKRI - BBSRC,21/02/2020,T&S Overseas - Subsistence,European Initiatives,Unspecified,98698382,4.99,T&S Overseas - Subsistence
BEIS,UKRI - BBSRC,21/02/2020,T&S Overseas - Subsistence,European Initiatives,Unspecified,98698382,3.04,T&S Overseas - Subsistence
BEIS,UKRI - BBSRC,24/02/2020,Printing & Stationery,JBOS - Administration,Banner Group Ltd,98294046,5.59,Printing & Stationery
BEIS,UKRI - BBSRC,24/02/2020,Printing & Stationery,JBOS - Administration,Banner Group Ltd,98294046,2.05,Printing & Stationery
BEIS,UKRI - BBSRC,24/02/2020,Printing & Stationery,JBOS - Administration,Banner Group Ltd,98294046,12.67,Printing & Stationery
BEIS,UKRI - BBSRC,24/02/2020,Printing & Stationery,JBOS - Administration,Banner Group Ltd,98294046,1.54,Printing & Stationery
BEIS,UKRI - BBSRC,24/02/2020,Printing & Stationery,JBOS - Administration,Banner Group Ltd,98294046,8.54,Printing & Stationery
BEIS,UKRI - BBSRC,24/02/2020,Printing & Stationery,JBOS - Administration,Banner Group Ltd,98294046,2.17,Printing & Stationery
BEIS,UKRI - BBSRC,24/02/2020,Other Programme Costs,FG - Estates,Rothamsted Research Ltd,98674245,1500000.00,Other Programme Costs
BEIS,UKRI - BBSRC,24/02/2020,Research Institutes - Capital Grants: Major Works,Pirbright,The Pirbright Institute,98682664,953541.02,Research Institutes - Capital Grants: Major Works
BEIS,UKRI - BBSRC,24/02/2020,Other Programme Costs,FG - Estates,Rothamsted Research Ltd,98682666,500000.00,Other Programme Costs
BEIS,UKRI - BBSRC,24/02/2020,Dep't of Environ Food & Rural Affairs (DEFRA),Pirbright,The Pirbright Institute,98688801,85450.00,Dep't of Environ Food & Rural Affairs (DEFRA)
BEIS,UKRI - BBSRC,24/02/2020,Dep't of Environ Food & Rural Affairs (DEFRA),Pirbright,The Pirbright Institute,98688802,13402.00,Dep't of Environ Food & Rural Affairs (DEFRA)
BEIS,UKRI - BBSRC,24/02/2020,Dep't of Environ Food & Rural Affairs (DEFRA),Pirbright,The Pirbright Institute,98688896,634406.00,Dep't of Environ Food & Rural Affairs (DEFRA)
BEIS,UKRI - BBSRC,24/02/2020,Dep't of Environ Food & Rural Affairs (DEFRA),Pirbright,The Pirbright Institute,98688898,676744.00,Dep't of Environ Food & Rural Affairs (DEFRA)
BEIS,UKRI - BBSRC,24/02/2020,Research Institutes - Capital Grants: Major Works,Estates - Projects,EMBL (European Molecular Biology Laboratory),98690106,299700.00,Research Institutes - Capital Grants: Major Works
BEIS,UKRI - BBSRC,24/02/2020,Research Institutes - Capital Grants: Major Works,Estates - Projects,EMBL (European Molecular Biology Laboratory),98690115,51788.40,Research Institutes - Capital Grants: Major Works
BEIS,UKRI - BBSRC,24/02/2020,Research Institutes - Capital Grants: Minor Works,JIC,John Innes Centre,98691479,385338.26,Research Institutes - Capital Grants: Minor Works
BEIS,UKRI - BBSRC,24/02/2020,Research Institutes - Capital Grants: Minor Works,JIC,John Innes Centre,98691483,355910.57,Research Institutes - Capital Grants: Minor Works
BEIS,UKRI - BBSRC,24/02/2020,Research Institutes - Capital Grants: Minor Works,JIC,John Innes Centre,98691485,1204478.05,Research Institutes - Capital Grants: Minor Works
BEIS,UKRI - BBSRC,24/02/2020,Research Institutes - Capital Grants: Minor Works,JIC,John Innes Centre,98692577,42127.30,Research Institutes - Capital Grants: Minor Works
BEIS,UKRI - BBSRC,24/02/2020,Research Institutes - Capital Grants: Minor Works,JIC,John Innes Centre,98692582,57835.44,Research Institutes - Capital Grants: Minor Works
BEIS,UKRI - BBSRC,24/02/2020,Research Institutes - Capital Grants: Minor Works,JIC,John Innes Centre,98695066,872610.00,Research Institutes - Capital Grants: Minor Works
BEIS,UKRI - BBSRC,24/02/2020,Research Institutes - Capital Grants: Minor Works,JIC,John Innes Centre,98695069,1127188.57,Research Institutes - Capital Grants: Minor Works
BEIS,UKRI - BBSRC,24/02/2020,Research Institutes - Capital Grants: Minor Works,JIC,John Innes Centre,98695072,254687.50,Research Institutes - Capital Grants: Minor Works
BEIS,UKRI - BBSRC,24/02/2020,Research Institutes - Capital Grants: Major Works,Pirbright,The Pirbright Institute,98695094,110215.56,Research Institutes - Capital Grants: Major Works
BEIS,UKRI - BBSRC,24/02/2020,Research Institutes - Capital Grants: Minor Works,Pirbright,The Pirbright Institute,98695095,1792.00,Research Institutes - Capital Grants: Minor Works
BEIS,UKRI - BBSRC,24/02/2020,Research Institutes - Capital Grants: Minor Works,Babraham Institute,Babraham Institute,98695215,201436.00,Research Institutes - Capital Grants: Minor Works
BEIS,UKRI - BBSRC,24/02/2020,Research Institutes - Capital Grants: Minor Works,JIC,John Innes Centre,98695269,24252.00,Research Institutes - Capital Grants: Minor Works
BEIS,UKRI - BBSRC,24/02/2020,Research Institutes - Capital Grants: Minor Works,Babraham Institute,Babraham Institute,98696268,5656.00,Research Institutes - Capital Grants: Minor Works
BEIS,UKRI - BBSRC,24/02/2020,Research Institutes - Capital Grants: Minor Works,Babraham Institute,Babraham Institute,98696269,70170.00,Research Institutes - Capital Grants: Minor Works
BEIS,UKRI - BBSRC,24/02/2020,Research Institutes - Capital Grants: Major Works,Estates - Projects,EMBL (European Molecular Biology Laboratory),98696847,17560.06,Research Institutes - Capital Grants: Major Works
BEIS,UKRI - BBSRC,24/02/2020,Printing & Stationery,JBOS - Administration,Banner Group Ltd,98697726,-5.59,Printing & Stationery
BEIS,UKRI - BBSRC,24/02/2020,Printing & Stationery,JBOS - Administration,Banner Group Ltd,98697726,-2.05,Printing & Stationery
BEIS,UKRI - BBSRC,24/02/2020,Printing & Stationery,JBOS - Administration,Banner Group Ltd,98697727,-0.13,Printing & Stationery
BEIS,UKRI - BBSRC,24/02/2020,Research Institutes - Capital Grants: Major Works,Estates - Projects,EMBL (European Molecular Biology Laboratory),98698161,3053.58,Research Institutes - Capital Grants: Major Works
BEIS,UKRI - BBSRC,24/02/2020,Research Institutes - Capital Grants: Major Works,Estates - Projects,EMBL (European Molecular Biology Laboratory),98698311,189171.30,Research Institutes - Capital Grants: Major Works
BEIS,UKRI - BBSRC,24/02/2020,Research Institutes - Capital Grants: Major Works,IBERS,ABERYSTWYTH INNOVATION AND ENTERPRISE CAMPUS LTD (AIEC),98698315,265000.00,Research Institutes - Capital Grants: Major Works
BEIS,UKRI - BBSRC,24/02/2020,Research Institutes - Capital Grants: Minor Works,Rothamsted Research,Rothamsted Research Ltd,98698592,23689.63,Research Institutes - Capital Grants: Minor Works
BEIS,UKRI - BBSRC,24/02/2020,Research Institutes - Capital Grants: Minor Works,Rothamsted Research,Rothamsted Research Ltd,98698596,37980.00,Research Institutes - Capital Grants: Minor Works
BEIS,UKRI - BBSRC,24/02/2020,Fellowships,Innovation and Skills Group,The Royal Society of Edinburgh,98699002,135746.00,Fellowships
BEIS,UKRI - BBSRC,24/02/2020,Research Institutes - Capital Grants: Minor Works,Rothamsted Research,Rothamsted Research Ltd,98699007,3279.37,Research Institutes - Capital Grants: Minor Works
BEIS,UKRI - BBSRC,24/02/2020,T&S UK - Mileage,Science Group,Unspecified,98699035,9.90,T&S UK - Mileage
BEIS,UKRI - BBSRC,24/02/2020,T&S UK - Parking Tolls Congestion Charges,Science Group,Unspecified,98699035,10.10,T&S UK - Parking Tolls Congestion Charges
BEIS,UKRI - BBSRC,24/02/2020,T&S UK - Subsistence,Science Group,Unspecified,98699035,7.19,T&S UK - Subsistence
BEIS,UKRI - BBSRC,24/02/2020,T&S UK - Other Charges,CE - IRU,Unspecified,98699036,4.45,T&S UK - Other Charges
BEIS,UKRI - BBSRC,24/02/2020,T&S UK - Subsistence,CE - IRU,Unspecified,98699036,6.80,T&S UK - Subsistence
BEIS,UKRI - BBSRC,25/02/2020,Voluntary Deductions,Balance Sheet,Swindon Office Sports and Social Club,98687435,70.00,Voluntary Deductions
BEIS,UKRI - BBSRC,25/02/2020,International Subscriptions,CE - IRU,UKRI - Medical Research Council,98693110,1217190.17,International Subscriptions
BEIS,UKRI - BBSRC,25/02/2020,Research Institutes - Capital Grants: Minor Works,TGAC,Earlham Institute,98695062,1177264.00,Research Institutes - Capital Grants: Minor Works
BEIS,UKRI - BBSRC,25/02/2020,Other Staff Benefits,PDG - Director,BMI Healthcare Limited,98697319,1491.70,Other Staff Benefits
BEIS,UKRI - BBSRC,25/02/2020,Computer Hardware,CIMG - Director,Banner Group Ltd,98698880,7.14,Computer Hardware
BEIS,UKRI - BBSRC,25/02/2020,Printing & Stationery,CIMG - Director,Banner Group Ltd,98698880,6.96,Printing & Stationery
BEIS,UKRI - BBSRC,25/02/2020,Secondments,CE - CPS,University of Southampton,98699255,9948.00,Secondments
BEIS,UKRI - BBSRC,25/02/2020,Fellowships,Innovation and Skills Group,Babraham Bioscience Technologies Ltd,98699284,120000.00,Fellowships
BEIS,UKRI - BBSRC,25/02/2020,Non-staff travel and subsistance,Innovation and Skills Group CDSU,Non Employee Expenses Supplier,98699297,34.30,Non-staff travel and subsistance
BEIS,UKRI - BBSRC,25/02/2020,Rates,JBOS - Maintenance,Swindon Borough Council,98699535,74243.00,Rates
BEIS,UKRI - BBSRC,25/02/2020,T&S UK - Public Transport,CIMG - Director,Unspecified,98700230,2.80,T&S UK - Public Transport
BEIS,UKRI - BBSRC,25/02/2020,T&S UK - Public Transport,CIMG - Director,Unspecified,98700230,12.00,T&S UK - Public Transport
BEIS,UKRI - BBSRC,25/02/2020,T&S UK - Subsistence,CIMG - Director,Unspecified,98700230,6.28,T&S UK - Subsistence
BEIS,UKRI - BBSRC,25/02/2020,T&S UK - Subsistence,CIMG - Director,Unspecified,98700230,5.00,T&S UK - Subsistence
BEIS,UKRI - BBSRC,25/02/2020,Non-staff travel and subsistance,CE - IRU,UK Centre for Ecology and Hydrology,98700323,239.03,Non-staff travel and subsistance
BEIS,UKRI - BBSRC,26/02/2020,Conferences & Seminars,Innovation and Skills Group CDSU,Calder Conference Ltd,98667637,6624.00,Conferences & Seminars
BEIS,UKRI - BBSRC,26/02/2020,Conferences & Seminars,CE - CPS,Calder Conference Ltd,98671334,676.00,Conferences & Seminars
BEIS,UKRI - BBSRC,26/02/2020,Legal & Professional Services,CE - CPS,Unspecified,98680011,10929.56,Legal & Professional Services
BEIS,UKRI - BBSRC,26/02/2020,Legal & Professional Services,FG - Estates,Enterprise Rent-A-Car UK Ltd,98695107,12.16,Legal & Professional Services
BEIS,UKRI - BBSRC,26/02/2020,Legal & Professional Services,FG - Estates,Enterprise Rent-A-Car UK Ltd,98695107,60.78,Legal & Professional Services
BEIS,UKRI - BBSRC,26/02/2020,T&S UK - Vehicle Hire,CE - CPS,Enterprise Rent-A-Car UK Ltd,98695107,11.59,T&S UK - Vehicle Hire
BEIS,UKRI - BBSRC,26/02/2020,T&S UK - Vehicle Hire,CE - CPS,Enterprise Rent-A-Car UK Ltd,98695107,57.96,T&S UK - Vehicle Hire
BEIS,UKRI - BBSRC,26/02/2020,T&S UK - Vehicle Hire,FG - Estates,Enterprise Rent-A-Car UK Ltd,98695107,22.15,T&S UK - Vehicle Hire
BEIS,UKRI - BBSRC,26/02/2020,T&S UK - Vehicle Hire,FG - Estates,Enterprise Rent-A-Car UK Ltd,98695107,110.76,T&S UK - Vehicle Hire
BEIS,UKRI - BBSRC,26/02/2020,Other Programme Costs,Innovation and Skills Group CDSU,Beehive Coaching and Leadership Development Ltd,98695236,2670.00,Other Programme Costs
BEIS,UKRI - BBSRC,26/02/2020,T&S UK - Vehicle Hire,CE - Chief Executive,Corporate Airport Transfers Ltd,98695345,213.60,T&S UK - Vehicle Hire
BEIS,UKRI - BBSRC,26/02/2020,Legal & Professional Services,FG - Estates,Womble Bond Dickinson LLP,98695670,5426.40,Legal & Professional Services
BEIS,UKRI - BBSRC,26/02/2020,Fellowships,Innovation and Skills Group,University of Edinburgh,98695765,200000.00,Fellowships
BEIS,UKRI - BBSRC,26/02/2020,T&S UK - Vehicle Hire,FG - Estates,Enterprise Rent-A-Car UK Ltd,98698917,124.86,T&S UK - Vehicle Hire
BEIS,UKRI - BBSRC,26/02/2020,T&S UK - Vehicle Hire,FG - Estates,Enterprise Rent-A-Car UK Ltd,98698917,66.76,T&S UK - Vehicle Hire
BEIS,UKRI - BBSRC,26/02/2020,T&S UK - Vehicle Hire,FG - Estates,Enterprise Rent-A-Car UK Ltd,98698917,38.32,T&S UK - Vehicle Hire
BEIS,UKRI - BBSRC,26/02/2020,Research Institutes - Capital Grants: Minor Works,Rothamsted Research,Rothamsted Research Ltd,98698958,47655.36,Research Institutes - Capital Grants: Minor Works
BEIS,UKRI - BBSRC,26/02/2020,T&S UK - Public Transport,FG - Estates,Unspecified,98699673,250.00,T&S UK - Public Transport
BEIS,UKRI - BBSRC,26/02/2020,T&S UK - Other Charges,Science Group,Unspecified,98699674,93.00,T&S UK - Other Charges
BEIS,UKRI - BBSRC,26/02/2020,T&S UK - Other Charges,FG - Estates,Unspecified,98699676,13.40,T&S UK - Other Charges
BEIS,UKRI - BBSRC,26/02/2020,T&S UK - Subsistence,FG - Estates,Unspecified,98699676,13.29,T&S UK - Subsistence
BEIS,UKRI - BBSRC,26/02/2020,T&S UK - Subsistence,FG - Estates,Unspecified,98699676,20.00,T&S UK - Subsistence
BEIS,UKRI - BBSRC,26/02/2020,Non-staff travel and subsistance,CE - IRU,Non Employee Expenses Supplier,98700584,1220.58,Non-staff travel and subsistance
BEIS,UKRI - BBSRC,26/02/2020,Non-staff travel and subsistance,CE - IRU,Non Employee Expenses Supplier,98700585,1538.46,Non-staff travel and subsistance
BEIS,UKRI - BBSRC,26/02/2020,Non-staff travel and subsistance,CE - IRU,Non Employee Expenses Supplier,98700586,1276.03,Non-staff travel and subsistance
BEIS,UKRI - BBSRC,26/02/2020,Non-staff travel and subsistance,CE - IRU,Non Employee Expenses Supplier,98700587,1085.83,Non-staff travel and subsistance
BEIS,UKRI - BBSRC,26/02/2020,Non-staff travel and subsistance,CE - IRU,Non Employee Expenses Supplier,98700588,226.88,Non-staff travel and subsistance
BEIS,UKRI - BBSRC,27/02/2020,Conferences & Seminars,Science Group,Calder Conference Ltd,98683965,9663.00,Conferences & Seminars
BEIS,UKRI - BBSRC,27/02/2020,Recruitment Costs,PDG - Director,Agenda Resource Management Ltd,98690186,153.91,Recruitment Costs
BEIS,UKRI - BBSRC,27/02/2020,Research Grant Expenditure,Rothamsted Research,Rothamsted Research Ltd,98700079,240230.79,Research Grant Expenditure
BEIS,UKRI - BBSRC,27/02/2020,Recruitment Costs,PDG - Director,Onefix Recruitment Ltd,98700679,1554.00,Recruitment Costs
BEIS,UKRI - BBSRC,27/02/2020,T&S UK - Parking Tolls Congestion Charges,Science Group,Unspecified,98701958,7.00,T&S UK - Parking Tolls Congestion Charges
BEIS,UKRI - BBSRC,28/02/2020,T&S UK - Subsistence,CE - IRU,Unspecified,98701514,15.00,T&S UK - Subsistence
BEIS,UKRI - BBSRC,28/02/2020,T&S UK - Subsistence,Innovation and Skills Group,Unspecified,98701516,18.65,T&S UK - Subsistence
BEIS,UKRI - BBSRC,28/02/2020,T&S UK - Subsistence,Innovation and Skills Group,Unspecified,98701516,2.50,T&S UK - Subsistence
BEIS,UKRI - BBSRC,28/02/2020,T&S UK - Public Transport,Science Group,Unspecified,98701517,15.00,T&S UK - Public Transport
BEIS,UKRI - BBSRC,28/02/2020,T&S UK - Subsistence,Science Group,Unspecified,98701517,21.05,T&S UK - Subsistence
BEIS,UKRI - BBSRC,28/02/2020,T&S UK - Subsistence,Science Group,Unspecified,98701517,12.19,T&S UK - Subsistence
BEIS,UKRI - BBSRC,28/02/2020,T&S UK - Subsistence,Science Group,Unspecified,98701517,5.00,T&S UK - Subsistence
BEIS,UKRI - BBSRC,28/02/2020,T&S UK - Subsistence,Science Group,Unspecified,98701517,22.74,T&S UK - Subsistence
BEIS,UKRI - BBSRC,28/02/2020,T&S Overseas - Public Transport,European Initiatives,Unspecified,98701518,17.00,T&S Overseas - Public Transport
BEIS,UKRI - BBSRC,28/02/2020,T&S Overseas - Public Transport,European Initiatives,Unspecified,98701518,6.64,T&S Overseas - Public Transport
BEIS,UKRI - BBSRC,28/02/2020,T&S Overseas - Subsistence,European Initiatives,Unspecified,98701518,20.67,T&S Overseas - Subsistence
BEIS,UKRI - BBSRC,28/02/2020,T&S Overseas - Subsistence,European Initiatives,Unspecified,98701518,7.49,T&S Overseas - Subsistence
BEIS,UKRI - BBSRC,28/02/2020,Legal & Professional Services,FG - Estates,CUSHMAN & WAKEFIELD DEBENHAM TIE LEUNG LTD,98702200,74576.40,Legal & Professional Services
BEIS,UKRI - UKRI,03/02/2020,Asset Clearing,UKRI - Estates,Barnwood Shopfitting Ltd,98598944,66109.26,Asset Clearing
BEIS,UKRI - UKRI,03/02/2020,Meetings & Catering,UKRI - Estates,Barnwood Shopfitting Ltd,98598944,7740.19,Meetings & Catering
BEIS,UKRI - UKRI,03/02/2020,Computer Software,UKRI - PSU IT Costs/BAU,Trimble UK Ltd,98625680,38451.60,Computer Software
BEIS,UKRI - UKRI,03/02/2020,Computer Software Licences,UKRI - Digital Data and Technology Recharges,Systat Software Inc.,98674057,9789.60,Computer Software Licences
BEIS,UKRI - UKRI,03/02/2020,Consultancy Services,UKRI - Procurement and Commercial,Department for Business Energy & Industrial Strategy,98680516,19710.00,Consultancy Services
BEIS,UKRI - UKRI,03/02/2020,Consultancy Services,UKRI - Procurement and Commercial,Department for Business Energy & Industrial Strategy,98680516,63900.00,Consultancy Services
BEIS,UKRI - EPSRC,03/02/2020,T&S UK - Accommodation,Newton Programme Management Team,Unspecified,98680548,140.58,T&S UK - Accommodation
BEIS,UKRI - EPSRC,03/02/2020,T&S UK - Public Transport,Newton Programme Management Team,Unspecified,98680548,28.39,T&S UK - Public Transport
BEIS,UKRI - EPSRC,03/02/2020,T&S UK - Subsistence,Newton Programme Management Team,Unspecified,98680548,5.50,T&S UK - Subsistence
BEIS,UKRI - EPSRC,03/02/2020,T&S UK - Subsistence,Newton Programme Management Team,Unspecified,98680548,33.65,T&S UK - Subsistence
BEIS,UKRI - EPSRC,03/02/2020,T&S UK - Subsistence,Newton Programme Management Team,Unspecified,98680548,5.65,T&S UK - Subsistence
BEIS,UKRI - UKRI,03/02/2020,Research Grant Expenditure,Public Engagement Programmes,British Science Association,98680819,50749.00,Research Grant Expenditure
BEIS,UKRI - UKRI,03/02/2020,Computer Software,UKRI - PSU IT Costs/BAU,Trimble UK Ltd,98681239,-38451.60,Computer Software
BEIS,UKRI - UKRI,03/02/2020,T&S UK - Mileage,UKRI Strategic HR Business Partners,Unspecified,98682370,26.10,T&S UK - Mileage
BEIS,UKRI - UKRI,03/02/2020,Marketing & PR,UKRI - Communications Web and Intranet Service,Reed Specialist Recruitment Ltd,98683187,1043.76,Marketing & PR
BEIS,UKRI - UKRI,03/02/2020,Consumables,UKRI - JRS,Antalis Ltd t/a Antalis Document Supplies,98683454,-1980.00,Consumables
BEIS,UKRI - UKRI,03/02/2020,Consumables,UKRI - JRS,Antalis Ltd t/a Antalis Document Supplies,98683458,1980.00,Consumables
BEIS,UKRI - UKRI,03/02/2020,Telecoms - Non Capital Hardware Costs,UKRI - Digital Data and Technology BAU Costs,Telefonica UK Ltd (O2),98683722,9384.00,Telecoms - Non Capital Hardware Costs
BEIS,UKRI - EPSRC,03/02/2020,Other Programme Costs,RCUK Research,University of the West of England,98683723,22900.00,Other Programme Costs
BEIS,UKRI - EPSRC,03/02/2020,Conferences & Seminars,Programme Delivery Physical Sciences,Institute of Physics (IOP),98683728,1092.00,Conferences & Seminars
BEIS,UKRI - EPSRC,03/02/2020,Conferences & Seminars,Programme Delivery Physical Sciences,Institute of Physics (IOP),98683729,2559.00,Conferences & Seminars
BEIS,UKRI - UKRI,03/02/2020,Contract Staff,UKRI - Funding Service,Alexander Mann Solutions Ltd,98683774,1253.88,Contract Staff
BEIS,UKRI - EPSRC,03/02/2020,Meetings & Catering,Business Improvement,Jurys Inn Group,98683831,81.00,Meetings & Catering
BEIS,UKRI - UKRI,03/02/2020,Computer Hardware,UKRI - Digital Data and Technology BAU Costs,Unspecified,98683900,42.98,Computer Hardware
BEIS,UKRI - UKRI,03/02/2020,Meetings & Catering,UKRI - GCRF Delivery,Calder Conference Ltd,98684050,772.80,Meetings & Catering
BEIS,UKRI - EPSRC,03/02/2020,Corporate Events,Business Improvement,Calder Conference Ltd,98684269,13573.00,Corporate Events
BEIS,UKRI - UKRI,03/02/2020,Contract Staff,UKRI - EU Underwrite,Alexander Mann Solutions Ltd,98684324,6048.60,Contract Staff
BEIS,UKRI - UKRI,03/02/2020,Contract Staff,UKRI - Digital Data and Technology BAU Costs,Alexander Mann Solutions Ltd,98684450,1724.59,Contract Staff
BEIS,UKRI - UKRI,03/02/2020,Research Grant Expenditure,Public Engagement Programmes,Stem Learning Ltd,98684452,226220.15,Research Grant Expenditure
BEIS,UKRI - UKRI,03/02/2020,Consumables,UKRI - JRS,DENMAUR INDEPENDENT PAPERS LTD,98684478,177.60,Consumables
BEIS,UKRI - UKRI,03/02/2020,Consumables,UKRI - JRS,DENMAUR INDEPENDENT PAPERS LTD,98684478,119.68,Consumables
BEIS,UKRI - EPSRC,03/02/2020,Meetings & Catering,Business Improvement,Jurys Inns (UK) Ltd,98684486,97.20,Meetings & Catering
BEIS,UKRI - EPSRC,03/02/2020,Meetings & Catering,Business Improvement,Jurys Inns (UK) Ltd,98684486,97.20,Meetings & Catering
BEIS,UKRI - EPSRC,03/02/2020,Meetings & Catering,Business Improvement,Jurys Inns (UK) Ltd,98684486,97.20,Meetings & Catering
BEIS,UKRI - EPSRC,03/02/2020,Meetings & Catering,Business Improvement,Jurys Inns (UK) Ltd,98684486,97.20,Meetings & Catering
BEIS,UKRI - EPSRC,03/02/2020,Meetings & Catering,Business Improvement,Jurys Inns (UK) Ltd,98684486,97.20,Meetings & Catering
BEIS,UKRI - EPSRC,03/02/2020,Meetings & Catering,Business Improvement,Jurys Inns (UK) Ltd,98684486,97.20,Meetings & Catering
BEIS,UKRI - EPSRC,03/02/2020,Meetings & Catering,Business Improvement,Jurys Inns (UK) Ltd,98684486,97.20,Meetings & Catering
BEIS,UKRI - EPSRC,03/02/2020,Meetings & Catering,Business Improvement,Jurys Inns (UK) Ltd,98684486,97.20,Meetings & Catering
BEIS,UKRI - EPSRC,03/02/2020,Meetings & Catering,Business Improvement,Jurys Inns (UK) Ltd,98684486,-108.00,Meetings & Catering
BEIS,UKRI - EPSRC,03/02/2020,Meetings & Catering,Business Improvement,Jurys Inns (UK) Ltd,98684486,-21.60,Meetings & Catering
BEIS,UKRI - EPSRC,03/02/2020,Non-staff travel and subsistance,Business Improvement,Jurys Inns (UK) Ltd,98684487,1701.00,Non-staff travel and subsistance
BEIS,UKRI - UKRI,03/02/2020,Research Grant Expenditure,Inspiring Science Fund,Wellcome Trust,98684488,2789361.17,Research Grant Expenditure
BEIS,UKRI - UKRI,03/02/2020,Research Grant Expenditure,Public Engagement Programmes,British Science Association,98684519,50749.00,Research Grant Expenditure
BEIS,UKRI - UKRI,03/02/2020,Consultancy Services,UKRI - Estates,Unspecified,98684622,2311.00,Consultancy Services
BEIS,UKRI - EPSRC,03/02/2020,T&S UK - Public Transport,Business Engagement,Unspecified,98684628,19.20,T&S UK - Public Transport
BEIS,UKRI - UKRI,03/02/2020,Conferences & Seminars,UKRI - BEIS ODA,Unspecified,98684630,683.52,Conferences & Seminars
BEIS,UKRI - EPSRC,03/02/2020,GPC Clearing - EPSRC,Balance Sheet,Unspecified,98684630,-703.52,GPC Clearing - EPSRC
BEIS,UKRI - UKRI,03/02/2020,T&S UK - Public Transport,UKRI - BEIS ODA,Unspecified,98684630,203.00,T&S UK - Public Transport
BEIS,UKRI - UKRI,03/02/2020,T&S UK - Subsistence,UKRI - BEIS ODA,Unspecified,98684630,6.00,T&S UK - Subsistence
BEIS,UKRI - UKRI,03/02/2020,T&S UK - Subsistence,UKRI - BEIS ODA,Unspecified,98684630,16.53,T&S UK - Subsistence
BEIS,UKRI - EPSRC,03/02/2020,T&S UK - Subsistence,Programme Delivery Energy,Unspecified,98684631,23.20,T&S UK - Subsistence
BEIS,UKRI - UKRI,03/02/2020,T&S UK - Subsistence,UKRI - Funding Assurance,Unspecified,98684632,5.00,T&S UK - Subsistence
BEIS,UKRI - UKRI,03/02/2020,T&S UK - Mileage,UKRI People and Organisation Development,Unspecified,98684633,276.30,T&S UK - Mileage
BEIS,UKRI - UKRI,03/02/2020,T&S UK - Parking Tolls Congestion Charges,UKRI People and Organisation Development,Unspecified,98684633,25.00,T&S UK - Parking Tolls Congestion Charges
BEIS,UKRI - UKRI,03/02/2020,T&S UK - Parking Tolls Congestion Charges,UKRI Strategic HR Business Partners,Unspecified,98684634,13.40,T&S UK - Parking Tolls Congestion Charges
BEIS,UKRI - UKRI,03/02/2020,T&S UK - Subsistence,UKRI Strategic HR Business Partners,Unspecified,98684634,25.00,T&S UK - Subsistence
BEIS,UKRI - UKRI,03/02/2020,Education Fees & Study Materials,UKRI - Project Management Office,Unspecified,98684635,617.98,Education Fees & Study Materials
BEIS,UKRI - UKRI,03/02/2020,T&S UK - Subsistence,UKRI - UKRO,Unspecified,98684636,7.70,T&S UK - Subsistence
BEIS,UKRI - UKRI,03/02/2020,T&S UK - Subsistence,UKRI - UKRO,Unspecified,98684636,12.50,T&S UK - Subsistence
BEIS,UKRI - UKRI,03/02/2020,T&S UK - Subsistence,UKRI - UKRO,Unspecified,98684636,4.95,T&S UK - Subsistence
BEIS,UKRI - UKRI,03/02/2020,T&S UK - Mileage,UKRI - Risk and Counter Fraud,Unspecified,98684637,77.85,T&S UK - Mileage
BEIS,UKRI - UKRI,03/02/2020,T&S UK - Mileage,UKRI - Risk and Counter Fraud,Unspecified,98684638,77.85,T&S UK - Mileage
BEIS,UKRI - EPSRC,03/02/2020,T&S UK - Public Transport,Programme Delivery Engineering,Unspecified,98684639,4.00,T&S UK - Public Transport
BEIS,UKRI - EPSRC,03/02/2020,T&S UK - Subsistence,Programme Delivery Engineering,Unspecified,98684639,7.30,T&S UK - Subsistence
BEIS,UKRI - EPSRC,03/02/2020,T&S UK - Subsistence,Programme Delivery Engineering,Unspecified,98684639,47.75,T&S UK - Subsistence
BEIS,UKRI - EPSRC,03/02/2020,T&S UK - Subsistence,Programme Delivery Engineering,Unspecified,98684639,89.42,T&S UK - Subsistence
BEIS,UKRI - EPSRC,03/02/2020,T&S UK - Subsistence,Programme Delivery Engineering,Unspecified,98684639,15.00,T&S UK - Subsistence
BEIS,UKRI - EPSRC,03/02/2020,T&S UK - Vehicle Hire,Programme Delivery Engineering,Unspecified,98684639,17.10,T&S UK - Vehicle Hire
BEIS,UKRI - UKRI,03/02/2020,T&S UK - Public Transport,UKRI - Legal,Unspecified,98684640,9.50,T&S UK - Public Transport
BEIS,UKRI - UKRI,03/02/2020,T&S UK - Public Transport,UKRI - Legal,Unspecified,98684640,35.80,T&S UK - Public Transport
BEIS,UKRI - UKRI,03/02/2020,T&S UK - Parking Tolls Congestion Charges,UKRI People and Organisation Development,Unspecified,98684641,4.00,T&S UK - Parking Tolls Congestion Charges
BEIS,UKRI - EPSRC,03/02/2020,Other Programme Costs,Plastics Innovation Fund,The University of Manchester,98684954,50.00,Other Programme Costs
BEIS,UKRI - UKRI,03/02/2020,Research Grant Expenditure,Public Engagement Programmes,British Science Association,98684970,23998.00,Research Grant Expenditure
BEIS,UKRI - UKRI,04/02/2020,Computer Software Licences,UKRI - Digital Data and Technology BAU Costs,Elsevier B.V.,98666471,24999.00,Computer Software Licences
BEIS,UKRI - UKRI,04/02/2020,Legal & Professional Services,UKRI - Digital Data and Technology Project Costs,The Dextrous Web Ltd t/a DXW Digital,98674739,23985.00,Legal & Professional Services
BEIS,UKRI - UKRI,04/02/2020,Advertising & Promotion,UKRI - Communications Projects and Services,Magictouch Promotions LTD,98674892,3264.00,Advertising & Promotion
BEIS,UKRI - UKRI,04/02/2020,Computer Software,UKRI - Digital Data and Technology BAU Costs,Interfolio UK Ltd,98677289,104436.32,Computer Software
BEIS,UKRI - UKRI,04/02/2020,Advertising & Promotion,UKRI - Communications Content,First Business Creative Ltd,98679920,2230.80,Advertising & Promotion
BEIS,UKRI - UKRI,04/02/2020,Recharges From Councils - General,UKRI - Financial Accounting,UKRI - Science & Technology Facilities Council,98681761,12522.42,Recharges From Councils - General
BEIS,UKRI - UKRI,04/02/2020,Recharges From Councils - General,UKRI - Strategic Finance Business Partners,UKRI - Science & Technology Facilities Council,98681761,40349.46,Recharges From Councils - General
BEIS,UKRI - UKRI,04/02/2020,Recharges From Councils - General,UKRI People and Organisation Development,UKRI - Science & Technology Facilities Council,98681761,17230.10,Recharges From Councils - General
BEIS,UKRI - UKRI,04/02/2020,Recharges From Councils - General,UKRI Strategic HR Business Partners,UKRI - Science & Technology Facilities Council,98681761,39281.91,Recharges From Councils - General
BEIS,UKRI - UKRI,04/02/2020,UK - Professional Memberships & Subscriptions,UKRI - Strategic Finance Business Partners,Unspecified,98682391,297.00,UK - Professional Memberships & Subscriptions
BEIS,UKRI - UKRI,04/02/2020,Non-staff travel and subsistance,UKRI - Global Engagement,Non Employee Expenses Supplier,98682745,201.58,Non-staff travel and subsistance
BEIS,UKRI - UKRI,04/02/2020,Non-staff travel and subsistance,UKRI - Global Engagement,Non Employee Expenses Supplier,98682746,106.50,Non-staff travel and subsistance
BEIS,UKRI - UKRI,04/02/2020,Non-staff travel and subsistance,UKRI - GCRF Challenge Leaders,Non Employee Expenses Supplier,98682747,54.39,Non-staff travel and subsistance
BEIS,UKRI - EPSRC,04/02/2020,Other Programme Costs,NC Physical Sciences,The University of Manchester,98683420,12471.88,Other Programme Costs
BEIS,UKRI - EPSRC,04/02/2020,Other Programme Costs,NC Physical Sciences,The University of Manchester,98683425,12471.88,Other Programme Costs
BEIS,UKRI - UKRI,04/02/2020,T&S UK - Subsistence,UKRI - Digital Data and Technology BAU Costs,Unspecified,98683696,15.10,T&S UK - Subsistence
BEIS,UKRI - UKRI,04/02/2020,Recharges From Councils - General,UKRI - Overseas Office India,UKRI - Economic & Social Research Council,98683765,14243.41,Recharges From Councils - General
BEIS,UKRI - UKRI,04/02/2020,Printing & Stationery,UKRI - Digital Data and Technology BAU Costs,Probrand Ltd,98683876,436.23,Printing & Stationery
BEIS,UKRI - UKRI,04/02/2020,Computer Software Licences,UKRI - Digital Data and Technology Recharges,Phoenix Software Ltd,98683907,114.84,Computer Software Licences
BEIS,UKRI - UKRI,04/02/2020,Computer Hardware,UKRI - Digital Data and Technology BAU Costs,Unspecified,98683916,424.80,Computer Hardware
BEIS,UKRI - UKRI,04/02/2020,Overseas - Professional Memberships & Subscriptions,UKRI - International,Science Europe,98683944,289809.17,Overseas - Professional Memberships & Subscriptions
BEIS,UKRI - EPSRC,04/02/2020,Other Programme Costs,NC Physical Sciences,The University of Manchester,98683951,10925.00,Other Programme Costs
BEIS,UKRI - UKRI,04/02/2020,Contract Staff,UKRI - Internal Communications,Alexander Mann Solutions Ltd,98684449,2463.72,Contract Staff
BEIS,UKRI - EPSRC,04/02/2020,Meetings & Catering,Business Improvement,Jurys Inns (UK) Ltd,98684485,1053.00,Meetings & Catering
BEIS,UKRI - UKRI,04/02/2020,Staff Training,UKRI People and Organisation Development,ASK Europe PLC,98684626,13336.80,Staff Training
BEIS,UKRI - UKRI,04/02/2020,Staff Training,UKRI People and Organisation Development,Objective Travel Safety Ltd,98684803,2094.24,Staff Training
BEIS,UKRI - EPSRC,04/02/2020,Secondments,Executive Chair and Deputy Exec Chairs,University of Oxford,98684847,26025.74,Secondments
BEIS,UKRI - UKRI,04/02/2020,Legal & Professional Services,Sciencewise,Hopkins Van Mil:Creating Connections Ltd,98684891,117714.76,Legal & Professional Services
BEIS,UKRI - UKRI,04/02/2020,Staff Training,UKRI People and Organisation Development,ASK Europe PLC,98684903,352.57,Staff Training
BEIS,UKRI - UKRI,04/02/2020,Water,UKRI - JBOS,Castle Water Ltd,98685042,2683.61,Water
BEIS,UKRI - UKRI,04/02/2020,Computer Software Licences,UKRI - Digital Data and Technology BAU Costs,Softcat plc,98685132,143.33,Computer Software Licences
BEIS,UKRI - EPSRC,04/02/2020,T&S UK - Vehicle Hire,Programme Delivery Engineering,Enterprise Rent-A-Car UK Ltd,98685135,197.65,T&S UK - Vehicle Hire
BEIS,UKRI - EPSRC,04/02/2020,T&S UK - Vehicle Hire,Programme Delivery Engineering,Enterprise Rent-A-Car UK Ltd,98685135,39.53,T&S UK - Vehicle Hire
BEIS,UKRI - UKRI,04/02/2020,T&S UK - Vehicle Hire,UKRI - Communication and Engagement,Enterprise Rent-A-Car UK Ltd,98685135,35.98,T&S UK - Vehicle Hire
BEIS,UKRI - UKRI,04/02/2020,T&S UK - Vehicle Hire,UKRI - Communication and Engagement,Enterprise Rent-A-Car UK Ltd,98685135,7.20,T&S UK - Vehicle Hire
BEIS,UKRI - UKRI,04/02/2020,T&S UK - Vehicle Hire,UKRI - Digital Data and Technology BAU Costs,Enterprise Rent-A-Car UK Ltd,98685135,51.73,T&S UK - Vehicle Hire
BEIS,UKRI - UKRI,04/02/2020,T&S UK - Vehicle Hire,UKRI - Digital Data and Technology BAU Costs,Enterprise Rent-A-Car UK Ltd,98685135,105.51,T&S UK - Vehicle Hire
BEIS,UKRI - UKRI,04/02/2020,T&S UK - Vehicle Hire,UKRI - Digital Data and Technology BAU Costs,Enterprise Rent-A-Car UK Ltd,98685135,20.36,T&S UK - Vehicle Hire
BEIS,UKRI - UKRI,04/02/2020,T&S UK - Vehicle Hire,UKRI - Digital Data and Technology BAU Costs,Enterprise Rent-A-Car UK Ltd,98685135,82.37,T&S UK - Vehicle Hire
BEIS,UKRI - UKRI,04/02/2020,T&S UK - Vehicle Hire,UKRI - Digital Data and Technology BAU Costs,Enterprise Rent-A-Car UK Ltd,98685135,115.91,T&S UK - Vehicle Hire
BEIS,UKRI - UKRI,04/02/2020,T&S UK - Vehicle Hire,UKRI - Digital Data and Technology BAU Costs,Enterprise Rent-A-Car UK Ltd,98685135,118.36,T&S UK - Vehicle Hire
BEIS,UKRI - UKRI,04/02/2020,Legal & Professional Services,UKRI - Digital Data and Technology Project Costs,The Dextrous Web Ltd t/a DXW Digital,98685147,8655.00,Legal & Professional Services
BEIS,UKRI - UKRI,04/02/2020,Legal & Professional Services,UKRI - Digital Data and Technology Project Costs,The Dextrous Web Ltd t/a DXW Digital,98685147,15855.00,Legal & Professional Services
BEIS,UKRI - UKRI,04/02/2020,T&S Overseas - Other Charges,UKRI - Overseas Office India,FairFX Plc,98685241,3000.00,T&S Overseas - Other Charges
BEIS,UKRI - UKRI,04/02/2020,Marketing & PR,UKRI - Communications Content,Ronan Macdonald and Elizabeth Raderecht T/A Macdonald Editorial Services,98685962,700.00,Marketing & PR
BEIS,UKRI - UKRI,04/02/2020,Consumables,UKRI - JRS,Antalis Ltd t/a Antalis Document Supplies,98685998,143.46,Consumables
BEIS,UKRI - UKRI,04/02/2020,Consumables,UKRI - JRS,Premier Paper Group Ltd,98685999,93.86,Consumables
BEIS,UKRI - UKRI,04/02/2020,Consumables,UKRI - JRS,Premier Paper Group Ltd,98686000,385.34,Consumables
BEIS,UKRI - UKRI,04/02/2020,Consumables,UKRI - JRS,Premier Paper Group Ltd,98686000,74.09,Consumables
BEIS,UKRI - UKRI,04/02/2020,Consumables,UKRI - JRS,Premier Paper Group Ltd,98686000,28.00,Consumables
BEIS,UKRI - UKRI,04/02/2020,Consumables,UKRI - JRS,Premier Paper Group Ltd,98686000,170.40,Consumables
BEIS,UKRI - UKRI,04/02/2020,Consumables,UKRI - JRS,Premier Paper Group Ltd,98686000,112.73,Consumables
BEIS,UKRI - UKRI,04/02/2020,Books Professional Journals & Guides,UKRI - Digital Data and Technology Library Services,Peak District Mines Historical Society Ltd,98686108,35.00,Books Professional Journals & Guides
BEIS,UKRI - UKRI,04/02/2020,T&S UK - Mileage,UKRI - Strategic Finance Business Partners,Unspecified,98686135,190.80,T&S UK - Mileage
BEIS,UKRI - UKRI,04/02/2020,T&S UK - Subsistence,UKRI - Strategic Finance Business Partners,Unspecified,98686135,23.50,T&S UK - Subsistence
BEIS,UKRI - UKRI,04/02/2020,T&S Overseas - Public Transport,UKRI - International,Unspecified,98686136,12.18,T&S Overseas - Public Transport
BEIS,UKRI - UKRI,04/02/2020,T&S Overseas - Subsistence,UKRI - International,Unspecified,98686136,15.00,T&S Overseas - Subsistence
BEIS,UKRI - UKRI,04/02/2020,T&S Overseas - Subsistence,UKRI - International,Unspecified,98686136,4.68,T&S Overseas - Subsistence
BEIS,UKRI - UKRI,04/02/2020,T&S Overseas - Subsistence,UKRI - International,Unspecified,98686136,33.84,T&S Overseas - Subsistence
BEIS,UKRI - UKRI,04/02/2020,T&S Overseas - Subsistence,UKRI - International,Unspecified,98686136,12.44,T&S Overseas - Subsistence
BEIS,UKRI - UKRI,04/02/2020,T&S Overseas - Subsistence,UKRI - International,Unspecified,98686136,1.66,T&S Overseas - Subsistence
BEIS,UKRI - UKRI,04/02/2020,T&S UK - Public Transport,UKRI - Council Partnership and Performance,Unspecified,98686137,27.80,T&S UK - Public Transport
BEIS,UKRI - UKRI,04/02/2020,UK - Professional Memberships & Subscriptions,UKRI - Strategic Finance Business Partners,Unspecified,98686141,77.00,UK - Professional Memberships & Subscriptions
BEIS,UKRI - UKRI,04/02/2020,T&S UK - Subsistence,UKRI - Public Engagement,Unspecified,98686142,48.40,T&S UK - Subsistence
BEIS,UKRI - Research England,04/02/2020,T&S UK - Public Transport,RE - Knowledge Exchange,Unspecified,98686143,7.00,T&S UK - Public Transport
BEIS,UKRI - Research England,04/02/2020,T&S UK - Subsistence,RE - Knowledge Exchange,Unspecified,98686143,17.38,T&S UK - Subsistence
BEIS,UKRI - Research England,04/02/2020,T&S UK - Subsistence,RE - Knowledge Exchange,Unspecified,98686143,5.00,T&S UK - Subsistence
BEIS,UKRI - UKRI,04/02/2020,T&S UK - Public Transport,UKRI - Communications Web and Intranet Service,Unspecified,98686144,71.00,T&S UK - Public Transport
BEIS,UKRI - UKRI,04/02/2020,T&S Overseas - Public Transport,UKRI - Digital Data and Technology BAU Costs,Unspecified,98686145,59.83,T&S Overseas - Public Transport
BEIS,UKRI - UKRI,04/02/2020,T&S Overseas - Subsistence,UKRI - Digital Data and Technology BAU Costs,Unspecified,98686145,10.00,T&S Overseas - Subsistence
BEIS,UKRI - UKRI,04/02/2020,T&S Overseas - Subsistence,UKRI - Digital Data and Technology BAU Costs,Unspecified,98686145,36.43,T&S Overseas - Subsistence
BEIS,UKRI - UKRI,04/02/2020,T&S Overseas - Subsistence,UKRI - Digital Data and Technology BAU Costs,Unspecified,98686145,14.76,T&S Overseas - Subsistence
BEIS,UKRI - UKRI,04/02/2020,T&S UK - Parking Tolls Congestion Charges,UKRI - Communication and Engagement,Unspecified,98686147,25.20,T&S UK - Parking Tolls Congestion Charges
BEIS,UKRI - UKRI,04/02/2020,T&S UK - Subsistence,UKRI - Communication and Engagement,Unspecified,98686147,9.80,T&S UK - Subsistence
BEIS,UKRI - UKRI,04/02/2020,T&S UK - Vehicle Hire,UKRI - Communication and Engagement,Unspecified,98686147,20.50,T&S UK - Vehicle Hire
BEIS,UKRI - UKRI,04/02/2020,T&S UK - Public Transport,UKRI - UKRO,Unspecified,98686148,18.00,T&S UK - Public Transport
BEIS,UKRI - UKRI,04/02/2020,T&S UK - Public Transport,UKRI - UKRO,Unspecified,98686148,7.50,T&S UK - Public Transport
BEIS,UKRI - UKRI,04/02/2020,T&S UK - Subsistence,UKRI - UKRO,Unspecified,98686148,21.49,T&S UK - Subsistence
BEIS,UKRI - UKRI,04/02/2020,T&S UK - Subsistence,UKRI - UKRO,Unspecified,98686148,5.00,T&S UK - Subsistence
BEIS,UKRI - UKRI,04/02/2020,T&S UK - Parking Tolls Congestion Charges,UKRI - Digital Data and Technology BAU Costs,Unspecified,98686149,64.00,T&S UK - Parking Tolls Congestion Charges
BEIS,UKRI - UKRI,04/02/2020,T&S UK - Public Transport,UKRI - Project Management Office,Unspecified,98686152,40.50,T&S UK - Public Transport
BEIS,UKRI - UKRI,04/02/2020,T&S UK - Mileage,UKRI Strategic HR Business Partners,Unspecified,98686153,31.50,T&S UK - Mileage
BEIS,UKRI - EPSRC,04/02/2020,T&S UK - Mileage,Programme Delivery Manufacturing,Unspecified,98686154,165.60,T&S UK - Mileage
BEIS,UKRI - EPSRC,04/02/2020,T&S UK - Subsistence,Programme Delivery Manufacturing,Unspecified,98686154,23.28,T&S UK - Subsistence
BEIS,UKRI - EPSRC,04/02/2020,T&S UK - Subsistence,Programme Delivery Manufacturing,Unspecified,98686154,11.05,T&S UK - Subsistence
BEIS,UKRI - EPSRC,04/02/2020,T&S UK - Subsistence,Programme Delivery Manufacturing,Unspecified,98686154,15.00,T&S UK - Subsistence
BEIS,UKRI - UKRI,04/02/2020,UK - Professional Memberships & Subscriptions,UKRI - Strategic Finance Business Partners,Unspecified,98686155,258.00,UK - Professional Memberships & Subscriptions
BEIS,UKRI - Research England,04/02/2020,T&S UK - Other Charges,RE - Research Excellence Framework (REF),Unspecified,98686156,4.00,T&S UK - Other Charges
BEIS,UKRI - Research England,04/02/2020,T&S UK - Public Transport,RE - Research Excellence Framework (REF),Unspecified,98686156,14.80,T&S UK - Public Transport
BEIS,UKRI - Research England,04/02/2020,T&S UK - Subsistence,RE - Research Excellence Framework (REF),Unspecified,98686156,23.70,T&S UK - Subsistence
BEIS,UKRI - Research England,04/02/2020,T&S UK - Subsistence,RE - Research Excellence Framework (REF),Unspecified,98686156,4.40,T&S UK - Subsistence
BEIS,UKRI - UKRI,04/02/2020,T&S UK - Mileage,UKRI - Digital Data and Technology BAU Costs,Unspecified,98686157,191.25,T&S UK - Mileage
BEIS,UKRI - UKRI,04/02/2020,T&S UK - Subsistence,UKRI - Digital Data and Technology BAU Costs,Unspecified,98686157,15.70,T&S UK - Subsistence
BEIS,UKRI - UKRI,04/02/2020,T&S UK - Public Transport,UKRI - Financial Accounting,Unspecified,98686158,33.30,T&S UK - Public Transport
BEIS,UKRI - EPSRC,04/02/2020,T&S UK - Subsistence,Programme Delivery Physical Sciences,Unspecified,98686159,25.00,T&S UK - Subsistence
BEIS,UKRI - EPSRC,04/02/2020,T&S UK - Subsistence,Programme Delivery Physical Sciences,Unspecified,98686159,5.00,T&S UK - Subsistence
BEIS,UKRI - UKRI,04/02/2020,T&S UK - Subsistence,UKRI - Risk and Counter Fraud,Unspecified,98686160,9.55,T&S UK - Subsistence
BEIS,UKRI - UKRI,04/02/2020,T&S UK - Subsistence,UKRI - Risk and Counter Fraud,Unspecified,98686160,17.73,T&S UK - Subsistence
BEIS,UKRI - EPSRC,04/02/2020,T&S UK - Mileage,University Regional Managers,Unspecified,98686161,7.92,T&S UK - Mileage
BEIS,UKRI - EPSRC,04/02/2020,T&S UK - Parking Tolls Congestion Charges,University Regional Managers,Unspecified,98686161,6.00,T&S UK - Parking Tolls Congestion Charges
BEIS,UKRI - EPSRC,04/02/2020,T&S UK - Public Transport,University Regional Managers,Unspecified,98686161,8.00,T&S UK - Public Transport
BEIS,UKRI - EPSRC,04/02/2020,T&S UK - Public Transport,University Regional Managers,Unspecified,98686161,24.22,T&S UK - Public Transport
BEIS,UKRI - EPSRC,04/02/2020,T&S UK - Subsistence,University Regional Managers,Unspecified,98686161,12.84,T&S UK - Subsistence
BEIS,UKRI - EPSRC,04/02/2020,T&S UK - Subsistence,University Regional Managers,Unspecified,98686161,36.25,T&S UK - Subsistence
BEIS,UKRI - UKRI,04/02/2020,T&S UK - Parking Tolls Congestion Charges,UKRI - Digital Data and Technology BAU Costs,Unspecified,98686162,117.30,T&S UK - Parking Tolls Congestion Charges
BEIS,UKRI - UKRI,04/02/2020,T&S UK - Subsistence,UKRI - Digital Data and Technology BAU Costs,Unspecified,98686162,29.25,T&S UK - Subsistence
BEIS,UKRI - UKRI,04/02/2020,T&S UK - Parking Tolls Congestion Charges,UKRI - Risk and Counter Fraud,Unspecified,98686163,14.30,T&S UK - Parking Tolls Congestion Charges
BEIS,UKRI - UKRI,04/02/2020,T&S UK - Public Transport,UKRI - Risk and Counter Fraud,Unspecified,98686163,11.20,T&S UK - Public Transport
BEIS,UKRI - UKRI,04/02/2020,T&S UK - Subsistence,UKRI - Risk and Counter Fraud,Unspecified,98686163,46.70,T&S UK - Subsistence
BEIS,UKRI - UKRI,04/02/2020,T&S UK - Subsistence,UKRI - Risk and Counter Fraud,Unspecified,98686163,36.61,T&S UK - Subsistence
BEIS,UKRI - UKRI,04/02/2020,T&S UK - Subsistence,UKRI - Risk and Counter Fraud,Unspecified,98686163,20.42,T&S UK - Subsistence
BEIS,UKRI - UKRI,04/02/2020,T&S UK - Public Transport,UKRI - Strategic Finance Business Partners,Unspecified,98686164,26.30,T&S UK - Public Transport
BEIS,UKRI - UKRI,04/02/2020,T&S UK - Subsistence,UKRI - Strategic Finance Business Partners,Unspecified,98686164,42.88,T&S UK - Subsistence
BEIS,UKRI - UKRI,04/02/2020,T&S UK - Subsistence,UKRI - Strategic Finance Business Partners,Unspecified,98686164,10.80,T&S UK - Subsistence
BEIS,UKRI - UKRI,04/02/2020,Health & Safety (inc. Medicals & Opticians),UKRI - Strategic Finance Business Partners,Unspecified,98686165,100.00,Health & Safety (inc. Medicals & Opticians)
BEIS,UKRI - UKRI,04/02/2020,T&S UK - Mileage,UKRI People and Organisation Development,Unspecified,98686166,189.00,T&S UK - Mileage
BEIS,UKRI - UKRI,04/02/2020,T&S UK - Mileage,UKRI People and Organisation Development,Unspecified,98686167,290.34,T&S UK - Mileage
BEIS,UKRI - UKRI,05/02/2020,Photocopy Costs,UKRI - JRS,Konica Minolta Business Solutions (UK) Ltd,98680102,1342.48,Photocopy Costs
BEIS,UKRI - UKRI,05/02/2020,Photocopy Costs,UKRI - JRS,Konica Minolta Business Solutions (UK) Ltd,98680103,-2556.65,Photocopy Costs
BEIS,UKRI - UKRI,05/02/2020,Photocopy Costs,UKRI - JRS,Konica Minolta Business Solutions (UK) Ltd,98680104,-1342.48,Photocopy Costs
BEIS,UKRI - UKRI,05/02/2020,Photocopy Costs,UKRI - JRS,Konica Minolta Business Solutions (UK) Ltd,98680106,2056.54,Photocopy Costs
BEIS,UKRI - UKRI,05/02/2020,Photocopy Costs,UKRI - JRS,Konica Minolta Business Solutions (UK) Ltd,98680107,151.24,Photocopy Costs
BEIS,UKRI - UKRI,05/02/2020,Photocopy Costs,UKRI - JRS,Konica Minolta Business Solutions (UK) Ltd,98680108,1011.31,Photocopy Costs
BEIS,UKRI - UKRI,05/02/2020,Photocopy Costs,UKRI - JRS,Konica Minolta Business Solutions (UK) Ltd,98680108,348.88,Photocopy Costs
BEIS,UKRI - UKRI,05/02/2020,Recruitment Costs,UKRI - Digital Data and Technology Project Costs,Alexander Mann Solutions Ltd,98683782,2771.70,Recruitment Costs
BEIS,UKRI - UKRI,05/02/2020,Recruitment Costs,UKRI - Funding Service,Alexander Mann Solutions Ltd,98683789,4619.52,Recruitment Costs
BEIS,UKRI - UKRI,05/02/2020,Recruitment Costs,UKRI - Funding Service,Alexander Mann Solutions Ltd,98683794,3079.62,Recruitment Costs
BEIS,UKRI - UKRI,05/02/2020,Contract Staff,UKRI - Funding Service,Alexander Mann Solutions Ltd,98683796,6467.28,Contract Staff
BEIS,UKRI - UKRI,05/02/2020,Contract Staff,UKRI - Funding Service,Alexander Mann Solutions Ltd,98683798,2992.80,Contract Staff
BEIS,UKRI - UKRI,05/02/2020,Contract Staff,UKRI - Funding Service,Alexander Mann Solutions Ltd,98684326,3079.62,Contract Staff
BEIS,UKRI - UKRI,05/02/2020,Health & Safety (inc. Medicals & Opticians),UKRI - Health and Safety,Premier Farnell UK Ltd T/A Farnell Onecall,98684943,20.34,Health & Safety (inc. Medicals & Opticians)
BEIS,UKRI - UKRI,05/02/2020,Printing & Stationery,UKRI - JRS,POSITIVE MEDIA PROMOTIONS LTD,98685123,60.00,Printing & Stationery
BEIS,UKRI - UKRI,05/02/2020,Other Staff Benefits,"UKRI People, Policies and Management",EDENRED (UK GROUP) LTD,98685490,2.15,Other Staff Benefits
BEIS,UKRI - UKRI,05/02/2020,Other Staff Benefits,"UKRI People, Policies and Management",EDENRED (UK GROUP) LTD,98685501,993.00,Other Staff Benefits
BEIS,UKRI - EPSRC,05/02/2020,Other Staff Benefits,EPSRC Corporate Services,Swindon Occupational Medical Services Ltd,98685504,1575.00,Other Staff Benefits
BEIS,UKRI - UKRI,05/02/2020,Conferences & Seminars,UKRI - Communications Projects and Services,A C Lasers Ltd,98685518,947.66,Conferences & Seminars
BEIS,UKRI - UKRI,05/02/2020,Consumables,UKRI - JRS,Premier Paper Group Ltd,98685630,138.48,Consumables
BEIS,UKRI - Research England,05/02/2020,Legal & Professional Services,RE - Operations and Private Office,DAC Beachcroft LLP,98685663,876.24,Legal & Professional Services
BEIS,UKRI - UKRI,05/02/2020,Recruitment Costs,UKRI People and Organisation Development,Onefix Recruitment Ltd,98685748,150.00,Recruitment Costs
BEIS,UKRI - UKRI,05/02/2020,Printing & Stationery,UKRI - JBOS,Banner Group Ltd,98685755,58.70,Printing & Stationery
BEIS,UKRI - UKRI,05/02/2020,Computer Software Licences,UKRI - Digital Data and Technology BAU Costs,Elsevier B.V.,98685774,16787.40,Computer Software Licences
BEIS,UKRI - Research England,05/02/2020,Meetings & Catering,RE - Research Excellence Framework (REF),Harbour & Jones Ltd T/A Dartmouth House,98685847,47.40,Meetings & Catering
BEIS,UKRI - Research England,05/02/2020,Meetings & Catering,RE - Research Excellence Framework (REF),Harbour & Jones Ltd T/A Dartmouth House,98685847,237.00,Meetings & Catering
BEIS,UKRI - UKRI,05/02/2020,Conferences & Seminars,UKRI - Financial Accounting,LewisLive Ltd,98685848,258.00,Conferences & Seminars
BEIS,UKRI - UKRI,05/02/2020,Marketing & PR,UKRI - Communications External Affairs,Parliamentary & Scientific Committee,98686477,2700.00,Marketing & PR
BEIS,UKRI - UKRI,05/02/2020,Legal & Professional Services,UKRI - Digital Data and Technology Project Costs,TMI Systems Ltd,98686514,129600.00,Legal & Professional Services
BEIS,UKRI - UKRI,05/02/2020,Marketing & PR,UKRI - Internal Communications,Liquid Media Live Events Ltd,98686533,2100.00,Marketing & PR
BEIS,UKRI - Research England,05/02/2020,Recruitment Costs,RE - Operations and Private Office,Swindon Occupational Medical Services Ltd,98686538,525.00,Recruitment Costs
BEIS,UKRI - EPSRC,05/02/2020,Meetings & Catering,Managing Our Portfolio and Priorities,Harbour & Jones Ltd T/A Dartmouth House,98686547,334.44,Meetings & Catering
BEIS,UKRI - EPSRC,05/02/2020,Meetings & Catering,Programme Delivery Infrastructure,Harbour & Jones Ltd T/A Dartmouth House,98686547,326.16,Meetings & Catering
BEIS,UKRI - UKRI,05/02/2020,Meetings & Catering,UKRI - Corporate Services,Harbour & Jones Ltd T/A Dartmouth House,98686547,8.04,Meetings & Catering
BEIS,UKRI - UKRI,05/02/2020,Meetings & Catering,UKRI - GCRF Delivery,Harbour & Jones Ltd T/A Dartmouth House,98686547,20.10,Meetings & Catering
BEIS,UKRI - UKRI,05/02/2020,Meetings & Catering,UKRI - Human Resources Support,Harbour & Jones Ltd T/A Dartmouth House,98686547,263.10,Meetings & Catering
BEIS,UKRI - UKRI,05/02/2020,Meetings & Catering,UKRI - Private Office,Harbour & Jones Ltd T/A Dartmouth House,98686547,24.12,Meetings & Catering
BEIS,UKRI - UKRI,05/02/2020,Meetings & Catering,UKRI - Secretariat,Harbour & Jones Ltd T/A Dartmouth House,98686547,647.16,Meetings & Catering
BEIS,UKRI - Research England,05/02/2020,Recruitment Costs,RE - Operations and Private Office,Element Recruitment Ltd,98686550,4105.08,Recruitment Costs
BEIS,UKRI - UKRI,05/02/2020,Marketing & PR,UKRI - Internal Communications,Unspecified,98686555,350.00,Marketing & PR
BEIS,UKRI - UKRI,05/02/2020,Other Staff Benefits,"UKRI People, Policies and Management",Health Assured Ltd,98686584,264.00,Other Staff Benefits
BEIS,UKRI - UKRI,05/02/2020,Agency Staff,UKRI - Estates,Hays Specialist Recruitment Ltd,98686599,623.70,Agency Staff
BEIS,UKRI - UKRI,05/02/2020,Computer Hardware,UKRI - Risk and Counter Fraud,Canford Audio Ltd,98686617,2275.80,Computer Hardware
BEIS,UKRI - UKRI,05/02/2020,Agency Staff,UKRI - Estates,Hays Specialist Recruitment Ltd,98686626,650.44,Agency Staff
BEIS,UKRI - UKRI,05/02/2020,Agency Staff,UKRI - Estates,Hays Specialist Recruitment Ltd,98686628,623.70,Agency Staff
BEIS,UKRI - UKRI,05/02/2020,Agency Staff,UKRI - Estates,Hays Specialist Recruitment Ltd,98686633,641.53,Agency Staff
BEIS,UKRI - UKRI,05/02/2020,Agency Staff,UKRI - Estates,Hays Specialist Recruitment Ltd,98686638,142.56,Agency Staff
BEIS,UKRI - UKRI,05/02/2020,Agency Staff,UKRI - Estates,Hays Specialist Recruitment Ltd,98686640,338.59,Agency Staff
BEIS,UKRI - UKRI,05/02/2020,Agency Staff,UKRI - Estates,Hays Specialist Recruitment Ltd,98686647,516.78,Agency Staff
BEIS,UKRI - UKRI,05/02/2020,Agency Staff,UKRI - Estates,Hays Specialist Recruitment Ltd,98686649,712.81,Agency Staff
BEIS,UKRI - UKRI,05/02/2020,Agency Staff,UKRI - Estates,Hays Specialist Recruitment Ltd,98686654,712.80,Agency Staff
BEIS,UKRI - UKRI,05/02/2020,Agency Staff,UKRI - Estates,Hays Specialist Recruitment Ltd,98686659,623.70,Agency Staff
BEIS,UKRI - UKRI,05/02/2020,Agency Staff,UKRI - Estates,Hays Specialist Recruitment Ltd,98686662,623.70,Agency Staff
BEIS,UKRI - UKRI,05/02/2020,Agency Staff,UKRI - Estates,Hays Specialist Recruitment Ltd,98686663,636.18,Agency Staff
BEIS,UKRI - UKRI,05/02/2020,Corporate Events,UKRI - Communications External Affairs,House of Commons,98686698,500.00,Corporate Events
BEIS,UKRI - UKRI,05/02/2020,Other Staff Benefits,"UKRI People, Policies and Management",Health Assured Ltd,98686705,396.00,Other Staff Benefits
BEIS,UKRI - EPSRC,05/02/2020,Non-staff travel and subsistance,Programme Delivery Healthcare,Corporate Travel Management (North) Ltd,98686712,15.96,Non-staff travel and subsistance
BEIS,UKRI - Research England,05/02/2020,Non-staff travel and subsistance,RE - Research Excellence Framework (REF),Corporate Travel Management (North) Ltd,98686712,0.25,Non-staff travel and subsistance
BEIS,UKRI - Research England,05/02/2020,Non-staff travel and subsistance,RE - Research Excellence Framework (REF),Corporate Travel Management (North) Ltd,98686712,134.50,Non-staff travel and subsistance
BEIS,UKRI - Research England,05/02/2020,Non-staff travel and subsistance,RE - Research Excellence Framework (REF),Corporate Travel Management (North) Ltd,98686712,0.25,Non-staff travel and subsistance
BEIS,UKRI - Research England,05/02/2020,Non-staff travel and subsistance,RE - Research Excellence Framework (REF),Corporate Travel Management (North) Ltd,98686712,134.50,Non-staff travel and subsistance
BEIS,UKRI - Research England,05/02/2020,Non-staff travel and subsistance,RE - Research Excellence Framework (REF),Corporate Travel Management (North) Ltd,98686712,0.80,Non-staff travel and subsistance
BEIS,UKRI - Research England,05/02/2020,Non-staff travel and subsistance,RE - Research Excellence Framework (REF),Corporate Travel Management (North) Ltd,98686712,0.80,Non-staff travel and subsistance
BEIS,UKRI - Research England,05/02/2020,Non-staff travel and subsistance,RE - Research Excellence Framework (REF),Corporate Travel Management (North) Ltd,98686712,0.80,Non-staff travel and subsistance
BEIS,UKRI - Research England,05/02/2020,Non-staff travel and subsistance,RE - Research Excellence Framework (REF),Corporate Travel Management (North) Ltd,98686712,0.80,Non-staff travel and subsistance
BEIS,UKRI - Research England,05/02/2020,Non-staff travel and subsistance,RE - Research Excellence Framework (REF),Corporate Travel Management (North) Ltd,98686712,0.80,Non-staff travel and subsistance
BEIS,UKRI - Research England,05/02/2020,Non-staff travel and subsistance,RE - Research Excellence Framework (REF),Corporate Travel Management (North) Ltd,98686712,0.80,Non-staff travel and subsistance
BEIS,UKRI - Research England,05/02/2020,Non-staff travel and subsistance,RE - Research Excellence Framework (REF),Corporate Travel Management (North) Ltd,98686712,0.80,Non-staff travel and subsistance
BEIS,UKRI - Research England,05/02/2020,Non-staff travel and subsistance,RE - Research Excellence Framework (REF),Corporate Travel Management (North) Ltd,98686712,0.80,Non-staff travel and subsistance
BEIS,UKRI - Research England,05/02/2020,Non-staff travel and subsistance,RE - Research Excellence Framework (REF),Corporate Travel Management (North) Ltd,98686712,0.80,Non-staff travel and subsistance
BEIS,UKRI - Research England,05/02/2020,Non-staff travel and subsistance,RE - Research Excellence Framework (REF),Corporate Travel Management (North) Ltd,98686712,0.80,Non-staff travel and subsistance
BEIS,UKRI - Research England,05/02/2020,Non-staff travel and subsistance,RE - Research Excellence Framework (REF),Corporate Travel Management (North) Ltd,98686712,0.80,Non-staff travel and subsistance
BEIS,UKRI - Research England,05/02/2020,Non-staff travel and subsistance,RE - Research Excellence Framework (REF),Corporate Travel Management (North) Ltd,98686712,0.80,Non-staff travel and subsistance
BEIS,UKRI - Research England,05/02/2020,Non-staff travel and subsistance,RE - Research Excellence Framework (REF),Corporate Travel Management (North) Ltd,98686712,0.80,Non-staff travel and subsistance
BEIS,UKRI - Research England,05/02/2020,Non-staff travel and subsistance,RE - Research Excellence Framework (REF),Corporate Travel Management (North) Ltd,98686712,0.80,Non-staff travel and subsistance
BEIS,UKRI - Research England,05/02/2020,Non-staff travel and subsistance,RE - Research Excellence Framework (REF),Corporate Travel Management (North) Ltd,98686712,0.80,Non-staff travel and subsistance
BEIS,UKRI - Research England,05/02/2020,Non-staff travel and subsistance,RE - Research Excellence Framework (REF),Corporate Travel Management (North) Ltd,98686712,0.80,Non-staff travel and subsistance
BEIS,UKRI - Research England,05/02/2020,Non-staff travel and subsistance,RE - Research Excellence Framework (REF),Corporate Travel Management (North) Ltd,98686712,3.20,Non-staff travel and subsistance
BEIS,UKRI - Research England,05/02/2020,Non-staff travel and subsistance,RE - Research Excellence Framework (REF),Corporate Travel Management (North) Ltd,98686712,0.80,Non-staff travel and subsistance
BEIS,UKRI - Research England,05/02/2020,Non-staff travel and subsistance,RE - Research Excellence Framework (REF),Corporate Travel Management (North) Ltd,98686712,0.80,Non-staff travel and subsistance
BEIS,UKRI - Research England,05/02/2020,Non-staff travel and subsistance,RE - Research Excellence Framework (REF),Corporate Travel Management (North) Ltd,98686712,0.80,Non-staff travel and subsistance
BEIS,UKRI - Research England,05/02/2020,Non-staff travel and subsistance,RE - Research Excellence Framework (REF),Corporate Travel Management (North) Ltd,98686712,0.80,Non-staff travel and subsistance
BEIS,UKRI - Research England,05/02/2020,Non-staff travel and subsistance,RE - Research Excellence Framework (REF),Corporate Travel Management (North) Ltd,98686712,0.80,Non-staff travel and subsistance
BEIS,UKRI - Research England,05/02/2020,Non-staff travel and subsistance,RE - Research Excellence Framework (REF),Corporate Travel Management (North) Ltd,98686712,0.80,Non-staff travel and subsistance
BEIS,UKRI - Research England,05/02/2020,Non-staff travel and subsistance,RE - Research Excellence Framework (REF),Corporate Travel Management (North) Ltd,98686712,0.80,Non-staff travel and subsistance
BEIS,UKRI - Research England,05/02/2020,Non-staff travel and subsistance,RE - Research Excellence Framework (REF),Corporate Travel Management (North) Ltd,98686712,0.80,Non-staff travel and subsistance
BEIS,UKRI - Research England,05/02/2020,Non-staff travel and subsistance,RE - Research Excellence Framework (REF),Corporate Travel Management (North) Ltd,98686712,0.80,Non-staff travel and subsistance
BEIS,UKRI - Research England,05/02/2020,Non-staff travel and subsistance,RE - Research Excellence Framework (REF),Corporate Travel Management (North) Ltd,98686712,0.80,Non-staff travel and subsistance
BEIS,UKRI - Research England,05/02/2020,Non-staff travel and subsistance,RE - Research Excellence Framework (REF),Corporate Travel Management (North) Ltd,98686712,0.80,Non-staff travel and subsistance
BEIS,UKRI - Research England,05/02/2020,Non-staff travel and subsistance,RE - Research Excellence Framework (REF),Corporate Travel Management (North) Ltd,98686712,0.80,Non-staff travel and subsistance
BEIS,UKRI - Research England,05/02/2020,Non-staff travel and subsistance,RE - Research Excellence Framework (REF),Corporate Travel Management (North) Ltd,98686712,0.80,Non-staff travel and subsistance
BEIS,UKRI - Research England,05/02/2020,Non-staff travel and subsistance,RE - Research Excellence Framework (REF),Corporate Travel Management (North) Ltd,98686712,0.80,Non-staff travel and subsistance
BEIS,UKRI - Research England,05/02/2020,Non-staff travel and subsistance,RE - Research Excellence Framework (REF),Corporate Travel Management (North) Ltd,98686712,0.80,Non-staff travel and subsistance
BEIS,UKRI - Research England,05/02/2020,Non-staff travel and subsistance,RE - Research Excellence Framework (REF),Corporate Travel Management (North) Ltd,98686712,0.80,Non-staff travel and subsistance
BEIS,UKRI - Research England,05/02/2020,Non-staff travel and subsistance,RE - Research Excellence Framework (REF),Corporate Travel Management (North) Ltd,98686712,0.80,Non-staff travel and subsistance
BEIS,UKRI - Research England,05/02/2020,Non-staff travel and subsistance,RE - Research Excellence Framework (REF),Corporate Travel Management (North) Ltd,98686712,0.80,Non-staff travel and subsistance
BEIS,UKRI - Research England,05/02/2020,Non-staff travel and subsistance,RE - Research Excellence Framework (REF),Corporate Travel Management (North) Ltd,98686712,0.80,Non-staff travel and subsistance
BEIS,UKRI - Research England,05/02/2020,Non-staff travel and subsistance,RE - Research Excellence Framework (REF),Corporate Travel Management (North) Ltd,98686712,0.80,Non-staff travel and subsistance
BEIS,UKRI - Research England,05/02/2020,Non-staff travel and subsistance,RE - Research Excellence Framework (REF),Corporate Travel Management (North) Ltd,98686712,0.80,Non-staff travel and subsistance
BEIS,UKRI - Research England,05/02/2020,Non-staff travel and subsistance,RE - Research Excellence Framework (REF),Corporate Travel Management (North) Ltd,98686712,0.80,Non-staff travel and subsistance
BEIS,UKRI - Research England,05/02/2020,Non-staff travel and subsistance,RE - Research Excellence Framework (REF),Corporate Travel Management (North) Ltd,98686712,0.80,Non-staff travel and subsistance
BEIS,UKRI - Research England,05/02/2020,Non-staff travel and subsistance,RE - Research Excellence Framework (REF),Corporate Travel Management (North) Ltd,98686712,0.80,Non-staff travel and subsistance
BEIS,UKRI - Research England,05/02/2020,Non-staff travel and subsistance,RE - Research Excellence Framework (REF),Corporate Travel Management (North) Ltd,98686712,0.80,Non-staff travel and subsistance
BEIS,UKRI - Research England,05/02/2020,Non-staff travel and subsistance,RE - Research Excellence Framework (REF),Corporate Travel Management (North) Ltd,98686712,0.80,Non-staff travel and subsistance
BEIS,UKRI - Research England,05/02/2020,Non-staff travel and subsistance,RE - Research Excellence Framework (REF),Corporate Travel Management (North) Ltd,98686712,0.80,Non-staff travel and subsistance
BEIS,UKRI - Research England,05/02/2020,Non-staff travel and subsistance,RE - Research Excellence Framework (REF),Corporate Travel Management (North) Ltd,98686712,0.80,Non-staff travel and subsistance
BEIS,UKRI - Research England,05/02/2020,Non-staff travel and subsistance,RE - Research Excellence Framework (REF),Corporate Travel Management (North) Ltd,98686712,0.80,Non-staff travel and subsistance
BEIS,UKRI - Research England,05/02/2020,Non-staff travel and subsistance,RE - Research Excellence Framework (REF),Corporate Travel Management (North) Ltd,98686712,0.80,Non-staff travel and subsistance
BEIS,UKRI - Research England,05/02/2020,Non-staff travel and subsistance,RE - Research Excellence Framework (REF),Corporate Travel Management (North) Ltd,98686712,0.80,Non-staff travel and subsistance
BEIS,UKRI - Research England,05/02/2020,Non-staff travel and subsistance,RE - Research Excellence Framework (REF),Corporate Travel Management (North) Ltd,98686712,0.80,Non-staff travel and subsistance
BEIS,UKRI - Research England,05/02/2020,Non-staff travel and subsistance,RE - Research Excellence Framework (REF),Corporate Travel Management (North) Ltd,98686712,0.80,Non-staff travel and subsistance
BEIS,UKRI - Research England,05/02/2020,Non-staff travel and subsistance,RE - Research Excellence Framework (REF),Corporate Travel Management (North) Ltd,98686712,0.80,Non-staff travel and subsistance
BEIS,UKRI - Research England,05/02/2020,Non-staff travel and subsistance,RE - Research Excellence Framework (REF),Corporate Travel Management (North) Ltd,98686712,8.64,Non-staff travel and subsistance
BEIS,UKRI - UKRI,05/02/2020,Non-staff travel and subsistance,UKRI - Human Resources Support,Corporate Travel Management (North) Ltd,98686712,0.25,Non-staff travel and subsistance
BEIS,UKRI - UKRI,05/02/2020,Non-staff travel and subsistance,UKRI - Human Resources Support,Corporate Travel Management (North) Ltd,98686712,138.00,Non-staff travel and subsistance
BEIS,UKRI - UKRI,05/02/2020,Non-staff travel and subsistance,UKRI - Human Resources Support,Corporate Travel Management (North) Ltd,98686712,10.00,Non-staff travel and subsistance
BEIS,UKRI - UKRI,05/02/2020,Non-staff travel and subsistance,UKRI - Human Resources Support,Corporate Travel Management (North) Ltd,98686712,-87.80,Non-staff travel and subsistance
BEIS,UKRI - UKRI,05/02/2020,Non-staff travel and subsistance,UKRI - Human Resources Support,Corporate Travel Management (North) Ltd,98686712,5.00,Non-staff travel and subsistance
BEIS,UKRI - UKRI,05/02/2020,Non-staff travel and subsistance,UKRI - Human Resources Support,Corporate Travel Management (North) Ltd,98686712,9.80,Non-staff travel and subsistance
BEIS,UKRI - UKRI,05/02/2020,Non-staff travel and subsistance,UKRI - Human Resources Support,Corporate Travel Management (North) Ltd,98686712,-102.80,Non-staff travel and subsistance
BEIS,UKRI - UKRI,05/02/2020,Non-staff travel and subsistance,UKRI - Human Resources Support,Corporate Travel Management (North) Ltd,98686712,10.00,Non-staff travel and subsistance
BEIS,UKRI - UKRI,05/02/2020,Non-staff travel and subsistance,UKRI - Human Resources Support,Corporate Travel Management (North) Ltd,98686712,-51.00,Non-staff travel and subsistance
BEIS,UKRI - UKRI,05/02/2020,Non-staff travel and subsistance,UKRI Strategic HR Business Partners,Corporate Travel Management (North) Ltd,98686712,16.78,Non-staff travel and subsistance
BEIS,UKRI - UKRI,05/02/2020,Non-staff travel and subsistance,UKRI Strategic HR Business Partners,Corporate Travel Management (North) Ltd,98686712,18.96,Non-staff travel and subsistance
BEIS,UKRI - EPSRC,05/02/2020,T&S Overseas - Accommodation,Programme Delivery ICT,Corporate Travel Management (North) Ltd,98686712,0.80,T&S Overseas - Accommodation
BEIS,UKRI - EPSRC,05/02/2020,T&S Overseas - Accommodation,Programme Delivery ICT,Corporate Travel Management (North) Ltd,98686712,1126.48,T&S Overseas - Accommodation
BEIS,UKRI - EPSRC,05/02/2020,T&S Overseas - Accommodation,Programme Delivery ICT,Corporate Travel Management (North) Ltd,98686712,0.16,T&S Overseas - Accommodation
BEIS,UKRI - UKRI,05/02/2020,T&S Overseas - Accommodation,UKRI - GCRF Challenge Leaders,Corporate Travel Management (North) Ltd,98686712,0.50,T&S Overseas - Accommodation
BEIS,UKRI - UKRI,05/02/2020,T&S Overseas - Accommodation,UKRI - GCRF Challenge Leaders,Corporate Travel Management (North) Ltd,98686712,0.80,T&S Overseas - Accommodation
BEIS,UKRI - UKRI,05/02/2020,T&S Overseas - Accommodation,UKRI - GCRF Challenge Leaders,Corporate Travel Management (North) Ltd,98686712,974.91,T&S Overseas - Accommodation
BEIS,UKRI - UKRI,05/02/2020,T&S Overseas - Accommodation,UKRI - GCRF Challenge Leaders,Corporate Travel Management (North) Ltd,98686712,0.80,T&S Overseas - Accommodation
BEIS,UKRI - UKRI,05/02/2020,T&S Overseas - Accommodation,UKRI - GCRF Challenge Leaders,Corporate Travel Management (North) Ltd,98686712,981.56,T&S Overseas - Accommodation
BEIS,UKRI - UKRI,05/02/2020,T&S Overseas - Accommodation,UKRI - GCRF Challenge Leaders,Corporate Travel Management (North) Ltd,98686712,0.42,T&S Overseas - Accommodation
BEIS,UKRI - UKRI,05/02/2020,T&S Overseas - Accommodation,UKRI - International,Corporate Travel Management (North) Ltd,98686712,0.80,T&S Overseas - Accommodation
BEIS,UKRI - UKRI,05/02/2020,T&S Overseas - Accommodation,UKRI - International,Corporate Travel Management (North) Ltd,98686712,1209.18,T&S Overseas - Accommodation
BEIS,UKRI - UKRI,05/02/2020,T&S Overseas - Accommodation,UKRI - International,Corporate Travel Management (North) Ltd,98686712,0.16,T&S Overseas - Accommodation
BEIS,UKRI - UKRI,05/02/2020,T&S Overseas - Accommodation,UKRI - Overseas Office USA,Corporate Travel Management (North) Ltd,98686712,364.18,T&S Overseas - Accommodation
BEIS,UKRI - EPSRC,05/02/2020,T&S Overseas - Flights,Programme Delivery Digital Economy,Corporate Travel Management (North) Ltd,98686712,9.50,T&S Overseas - Flights
BEIS,UKRI - EPSRC,05/02/2020,T&S Overseas - Flights,Programme Delivery Digital Economy,Corporate Travel Management (North) Ltd,98686712,10.00,T&S Overseas - Flights
BEIS,UKRI - EPSRC,05/02/2020,T&S Overseas - Flights,Programme Delivery Digital Economy,Corporate Travel Management (North) Ltd,98686712,228.00,T&S Overseas - Flights
BEIS,UKRI - EPSRC,05/02/2020,T&S Overseas - Flights,Programme Delivery Digital Economy,Corporate Travel Management (North) Ltd,98686712,104.00,T&S Overseas - Flights
BEIS,UKRI - EPSRC,05/02/2020,T&S Overseas - Flights,Programme Delivery Digital Economy,Corporate Travel Management (North) Ltd,98686712,3.90,T&S Overseas - Flights
BEIS,UKRI - EPSRC,05/02/2020,T&S Overseas - Flights,Programme Delivery Energy,Corporate Travel Management (North) Ltd,98686712,9.50,T&S Overseas - Flights
BEIS,UKRI - EPSRC,05/02/2020,T&S Overseas - Flights,Programme Delivery Energy,Corporate Travel Management (North) Ltd,98686712,10.00,T&S Overseas - Flights
BEIS,UKRI - EPSRC,05/02/2020,T&S Overseas - Flights,Programme Delivery Energy,Corporate Travel Management (North) Ltd,98686712,228.00,T&S Overseas - Flights
BEIS,UKRI - EPSRC,05/02/2020,T&S Overseas - Flights,Programme Delivery Energy,Corporate Travel Management (North) Ltd,98686712,104.00,T&S Overseas - Flights
BEIS,UKRI - EPSRC,05/02/2020,T&S Overseas - Flights,Programme Delivery Energy,Corporate Travel Management (North) Ltd,98686712,3.90,T&S Overseas - Flights
BEIS,UKRI - EPSRC,05/02/2020,T&S Overseas - Flights,Programme Delivery Infrastructure,Corporate Travel Management (North) Ltd,98686712,2.16,T&S Overseas - Flights
BEIS,UKRI - EPSRC,05/02/2020,T&S Overseas - Flights,Programme Delivery Infrastructure,Corporate Travel Management (North) Ltd,98686712,91.93,T&S Overseas - Flights
BEIS,UKRI - Research England,05/02/2020,T&S Overseas - Flights,RE - Executive Group,Corporate Travel Management (North) Ltd,98686712,9.50,T&S Overseas - Flights
BEIS,UKRI - Research England,05/02/2020,T&S Overseas - Flights,RE - Executive Group,Corporate Travel Management (North) Ltd,98686712,536.00,T&S Overseas - Flights
BEIS,UKRI - UKRI,05/02/2020,T&S Overseas - Flights,UKRI - Risk and Counter Fraud,Corporate Travel Management (North) Ltd,98686712,1.25,T&S Overseas - Flights
BEIS,UKRI - UKRI,05/02/2020,T&S Overseas - Flights,UKRI - Risk and Counter Fraud,Corporate Travel Management (North) Ltd,98686712,106.40,T&S Overseas - Flights
BEIS,UKRI - UKRI,05/02/2020,T&S Overseas - Flights,UKRI - Risk and Counter Fraud,Corporate Travel Management (North) Ltd,98686712,1.25,T&S Overseas - Flights
BEIS,UKRI - UKRI,05/02/2020,T&S Overseas - Flights,UKRI - Risk and Counter Fraud,Corporate Travel Management (North) Ltd,98686712,106.40,T&S Overseas - Flights
BEIS,UKRI - UKRI,05/02/2020,T&S Overseas - Flights,UKRI - Communications Projects and Services,Corporate Travel Management (North) Ltd,98686712,9.50,T&S Overseas - Flights
BEIS,UKRI - UKRI,05/02/2020,T&S Overseas - Flights,UKRI - Communications Projects and Services,Corporate Travel Management (North) Ltd,98686712,731.57,T&S Overseas - Flights
BEIS,UKRI - UKRI,05/02/2020,T&S Overseas - Flights,UKRI - Communications Projects and Services,Corporate Travel Management (North) Ltd,98686712,2.50,T&S Overseas - Flights
BEIS,UKRI - UKRI,05/02/2020,T&S Overseas - Flights,UKRI - Communications Projects and Services,Corporate Travel Management (North) Ltd,98686712,731.57,T&S Overseas - Flights
BEIS,UKRI - UKRI,05/02/2020,T&S Overseas - Flights,UKRI - GCRF Challenge Leaders,Corporate Travel Management (North) Ltd,98686712,617.80,T&S Overseas - Flights
BEIS,UKRI - UKRI,05/02/2020,T&S Overseas - Flights,UKRI - GCRF Challenge Leaders,Corporate Travel Management (North) Ltd,98686712,2.50,T&S Overseas - Flights
BEIS,UKRI - UKRI,05/02/2020,T&S Overseas - Flights,UKRI - GCRF Challenge Leaders,Corporate Travel Management (North) Ltd,98686712,131.99,T&S Overseas - Flights
BEIS,UKRI - UKRI,05/02/2020,T&S Overseas - Flights,UKRI - GCRF Challenge Leaders,Corporate Travel Management (North) Ltd,98686712,9.50,T&S Overseas - Flights
BEIS,UKRI - UKRI,05/02/2020,T&S Overseas - Flights,UKRI - GCRF Challenge Leaders,Corporate Travel Management (North) Ltd,98686712,150.00,T&S Overseas - Flights
BEIS,UKRI - UKRI,05/02/2020,T&S Overseas - Flights,UKRI - GCRF Challenge Leaders,Corporate Travel Management (North) Ltd,98686712,1546.87,T&S Overseas - Flights
BEIS,UKRI - UKRI,05/02/2020,T&S Overseas - Flights,UKRI - GCRF Challenge Leaders,Corporate Travel Management (North) Ltd,98686712,2.50,T&S Overseas - Flights
BEIS,UKRI - UKRI,05/02/2020,T&S Overseas - Flights,UKRI - GCRF Challenge Leaders,Corporate Travel Management (North) Ltd,98686712,21.50,T&S Overseas - Flights
BEIS,UKRI - UKRI,05/02/2020,T&S Overseas - Flights,UKRI - GCRF Challenge Leaders,Corporate Travel Management (North) Ltd,98686712,2.50,T&S Overseas - Flights
BEIS,UKRI - UKRI,05/02/2020,T&S Overseas - Flights,UKRI - GCRF Challenge Leaders,Corporate Travel Management (North) Ltd,98686712,469.47,T&S Overseas - Flights
BEIS,UKRI - UKRI,05/02/2020,T&S Overseas - Flights,UKRI - GCRF Challenge Leaders,Corporate Travel Management (North) Ltd,98686712,2.50,T&S Overseas - Flights
BEIS,UKRI - UKRI,05/02/2020,T&S Overseas - Flights,UKRI - GCRF Challenge Leaders,Corporate Travel Management (North) Ltd,98686712,469.47,T&S Overseas - Flights
BEIS,UKRI - UKRI,05/02/2020,T&S Overseas - Flights,UKRI - GCRF Delivery,Corporate Travel Management (North) Ltd,98686712,4.75,T&S Overseas - Flights
BEIS,UKRI - UKRI,05/02/2020,T&S Overseas - Flights,UKRI - GCRF Delivery,Corporate Travel Management (North) Ltd,98686712,1026.18,T&S Overseas - Flights
BEIS,UKRI - UKRI,05/02/2020,T&S Overseas - Flights,UKRI - GCRF Delivery,Corporate Travel Management (North) Ltd,98686712,7.00,T&S Overseas - Flights
BEIS,UKRI - UKRI,05/02/2020,T&S Overseas - Flights,UKRI - GCRF Delivery,Corporate Travel Management (North) Ltd,98686712,1026.18,T&S Overseas - Flights
BEIS,UKRI - UKRI,05/02/2020,T&S Overseas - Flights,UKRI - GCRF Delivery,Corporate Travel Management (North) Ltd,98686712,4.75,T&S Overseas - Flights
BEIS,UKRI - UKRI,05/02/2020,T&S Overseas - Flights,UKRI - GCRF Delivery,Corporate Travel Management (North) Ltd,98686712,19.00,T&S Overseas - Flights
BEIS,UKRI - UKRI,05/02/2020,T&S Overseas - Flights,UKRI - GCRF Delivery,Corporate Travel Management (North) Ltd,98686712,463.40,T&S Overseas - Flights
BEIS,UKRI - UKRI,05/02/2020,T&S Overseas - Flights,UKRI - GCRF Delivery,Corporate Travel Management (North) Ltd,98686712,56.20,T&S Overseas - Flights
BEIS,UKRI - UKRI,05/02/2020,T&S Overseas - Flights,UKRI - GCRF Delivery,Corporate Travel Management (North) Ltd,98686712,2.50,T&S Overseas - Flights
BEIS,UKRI - UKRI,05/02/2020,T&S Overseas - Flights,UKRI - GCRF Delivery,Corporate Travel Management (North) Ltd,98686712,337.02,T&S Overseas - Flights
BEIS,UKRI - UKRI,05/02/2020,T&S Overseas - Flights,UKRI - GCRF Delivery,Corporate Travel Management (North) Ltd,98686712,2.50,T&S Overseas - Flights
BEIS,UKRI - UKRI,05/02/2020,T&S Overseas - Flights,UKRI - GCRF Delivery,Corporate Travel Management (North) Ltd,98686712,171.51,T&S Overseas - Flights
BEIS,UKRI - UKRI,05/02/2020,T&S Overseas - Flights,UKRI - GCRF Delivery,Corporate Travel Management (North) Ltd,98686712,9.50,T&S Overseas - Flights
BEIS,UKRI - UKRI,05/02/2020,T&S Overseas - Flights,UKRI - GCRF Delivery,Corporate Travel Management (North) Ltd,98686712,327.09,T&S Overseas - Flights
BEIS,UKRI - UKRI,05/02/2020,T&S Overseas - Flights,UKRI - GCRF Delivery,Corporate Travel Management (North) Ltd,98686712,2.50,T&S Overseas - Flights
BEIS,UKRI - UKRI,05/02/2020,T&S Overseas - Flights,UKRI - GCRF Delivery,Corporate Travel Management (North) Ltd,98686712,914.90,T&S Overseas - Flights
BEIS,UKRI - UKRI,05/02/2020,T&S Overseas - Flights,UKRI - GCRF Delivery,Corporate Travel Management (North) Ltd,98686712,1.40,T&S Overseas - Flights
BEIS,UKRI - UKRI,05/02/2020,T&S Overseas - Flights,UKRI - GCRF Delivery,Corporate Travel Management (North) Ltd,98686712,179.12,T&S Overseas - Flights
BEIS,UKRI - UKRI,05/02/2020,T&S Overseas - Flights,UKRI - GCRF Delivery,Corporate Travel Management (North) Ltd,98686712,19.00,T&S Overseas - Flights
BEIS,UKRI - UKRI,05/02/2020,T&S Overseas - Flights,UKRI - GCRF Delivery,Corporate Travel Management (North) Ltd,98686712,439.20,T&S Overseas - Flights
BEIS,UKRI - UKRI,05/02/2020,T&S Overseas - Flights,UKRI - GCRF Delivery,Corporate Travel Management (North) Ltd,98686712,194.70,T&S Overseas - Flights
BEIS,UKRI - UKRI,05/02/2020,T&S Overseas - Flights,UKRI - GCRF Delivery,Corporate Travel Management (North) Ltd,98686712,1.40,T&S Overseas - Flights
BEIS,UKRI - UKRI,05/02/2020,T&S Overseas - Flights,UKRI - GCRF Delivery,Corporate Travel Management (North) Ltd,98686712,179.12,T&S Overseas - Flights
BEIS,UKRI - UKRI,05/02/2020,T&S Overseas - Flights,UKRI - GCRF Delivery,Corporate Travel Management (North) Ltd,98686712,7.00,T&S Overseas - Flights
BEIS,UKRI - UKRI,05/02/2020,T&S Overseas - Flights,UKRI - GCRF Delivery,Corporate Travel Management (North) Ltd,98686712,303.16,T&S Overseas - Flights
BEIS,UKRI - UKRI,05/02/2020,T&S Overseas - Flights,UKRI - GCRF Delivery,Corporate Travel Management (North) Ltd,98686712,9.50,T&S Overseas - Flights
BEIS,UKRI - UKRI,05/02/2020,T&S Overseas - Flights,UKRI - GCRF Delivery,Corporate Travel Management (North) Ltd,98686712,810.40,T&S Overseas - Flights
BEIS,UKRI - UKRI,05/02/2020,T&S Overseas - Flights,UKRI - GCRF Delivery,Corporate Travel Management (North) Ltd,98686712,1.40,T&S Overseas - Flights
BEIS,UKRI - UKRI,05/02/2020,T&S Overseas - Flights,UKRI - GCRF Delivery,Corporate Travel Management (North) Ltd,98686712,179.12,T&S Overseas - Flights
BEIS,UKRI - UKRI,05/02/2020,T&S Overseas - Flights,UKRI - GCRF Delivery,Corporate Travel Management (North) Ltd,98686712,1.40,T&S Overseas - Flights
BEIS,UKRI - UKRI,05/02/2020,T&S Overseas - Flights,UKRI - GCRF Delivery,Corporate Travel Management (North) Ltd,98686712,179.12,T&S Overseas - Flights
BEIS,UKRI - UKRI,05/02/2020,T&S Overseas - Flights,UKRI - GCRF Delivery,Corporate Travel Management (North) Ltd,98686712,1.40,T&S Overseas - Flights
BEIS,UKRI - UKRI,05/02/2020,T&S Overseas - Flights,UKRI - GCRF Delivery,Corporate Travel Management (North) Ltd,98686712,179.12,T&S Overseas - Flights
BEIS,UKRI - UKRI,05/02/2020,T&S Overseas - Flights,UKRI - GCRF Delivery,Corporate Travel Management (North) Ltd,98686712,9.50,T&S Overseas - Flights
BEIS,UKRI - UKRI,05/02/2020,T&S Overseas - Flights,UKRI - GCRF Delivery,Corporate Travel Management (North) Ltd,98686712,708.00,T&S Overseas - Flights
BEIS,UKRI - UKRI,05/02/2020,T&S Overseas - Flights,UKRI - GCRF Delivery,Corporate Travel Management (North) Ltd,98686712,7.00,T&S Overseas - Flights
BEIS,UKRI - UKRI,05/02/2020,T&S Overseas - Flights,UKRI - GCRF Delivery,Corporate Travel Management (North) Ltd,98686712,179.22,T&S Overseas - Flights
BEIS,UKRI - UKRI,05/02/2020,T&S Overseas - Flights,UKRI - GCRF Delivery,Corporate Travel Management (North) Ltd,98686712,2.50,T&S Overseas - Flights
BEIS,UKRI - UKRI,05/02/2020,T&S Overseas - Flights,UKRI - GCRF Delivery,Corporate Travel Management (North) Ltd,98686712,142.38,T&S Overseas - Flights
BEIS,UKRI - UKRI,05/02/2020,T&S Overseas - Flights,UKRI - GCRF Delivery,Corporate Travel Management (North) Ltd,98686712,19.00,T&S Overseas - Flights
BEIS,UKRI - UKRI,05/02/2020,T&S Overseas - Flights,UKRI - GCRF Delivery,Corporate Travel Management (North) Ltd,98686712,536.60,T&S Overseas - Flights
BEIS,UKRI - UKRI,05/02/2020,T&S Overseas - Flights,UKRI - GCRF Delivery,Corporate Travel Management (North) Ltd,98686712,76.40,T&S Overseas - Flights
BEIS,UKRI - UKRI,05/02/2020,T&S Overseas - Flights,UKRI - International,Corporate Travel Management (North) Ltd,98686712,9.50,T&S Overseas - Flights
BEIS,UKRI - UKRI,05/02/2020,T&S Overseas - Flights,UKRI - International,Corporate Travel Management (North) Ltd,98686712,24.00,T&S Overseas - Flights
BEIS,UKRI - UKRI,05/02/2020,T&S Overseas - Flights,UKRI - International,Corporate Travel Management (North) Ltd,98686712,228.00,T&S Overseas - Flights
BEIS,UKRI - UKRI,05/02/2020,T&S Overseas - Flights,UKRI - International,Corporate Travel Management (North) Ltd,98686712,104.00,T&S Overseas - Flights
BEIS,UKRI - UKRI,05/02/2020,T&S Overseas - Flights,UKRI - International,Corporate Travel Management (North) Ltd,98686712,6.70,T&S Overseas - Flights
BEIS,UKRI - UKRI,05/02/2020,T&S Overseas - Flights,UKRI - International Communications,Corporate Travel Management (North) Ltd,98686712,2.50,T&S Overseas - Flights
BEIS,UKRI - UKRI,05/02/2020,T&S Overseas - Flights,UKRI - International Communications,Corporate Travel Management (North) Ltd,98686712,182.70,T&S Overseas - Flights
BEIS,UKRI - UKRI,05/02/2020,T&S Overseas - Flights,UKRI - Newton Programme,Corporate Travel Management (North) Ltd,98686712,9.50,T&S Overseas - Flights
BEIS,UKRI - UKRI,05/02/2020,T&S Overseas - Flights,UKRI - Newton Programme,Corporate Travel Management (North) Ltd,98686712,1120.77,T&S Overseas - Flights
BEIS,UKRI - UKRI,05/02/2020,T&S Overseas - Flights,UKRI - Newton Programme,Corporate Travel Management (North) Ltd,98686712,2.50,T&S Overseas - Flights
BEIS,UKRI - UKRI,05/02/2020,T&S Overseas - Flights,UKRI - Newton Programme,Corporate Travel Management (North) Ltd,98686712,1120.97,T&S Overseas - Flights
BEIS,UKRI - UKRI,05/02/2020,T&S Overseas - Flights,UKRI - Newton Programme,Corporate Travel Management (North) Ltd,98686712,9.50,T&S Overseas - Flights
BEIS,UKRI - UKRI,05/02/2020,T&S Overseas - Flights,UKRI - Newton Programme,Corporate Travel Management (North) Ltd,98686712,1221.67,T&S Overseas - Flights
BEIS,UKRI - UKRI,05/02/2020,T&S Overseas - Flights,UKRI - Newton Programme,Corporate Travel Management (North) Ltd,98686712,9.50,T&S Overseas - Flights
BEIS,UKRI - UKRI,05/02/2020,T&S Overseas - Flights,UKRI - Newton Programme,Corporate Travel Management (North) Ltd,98686712,526.97,T&S Overseas - Flights
BEIS,UKRI - UKRI,05/02/2020,T&S Overseas - Flights,UKRI - Newton Programme,Corporate Travel Management (North) Ltd,98686712,9.50,T&S Overseas - Flights
BEIS,UKRI - UKRI,05/02/2020,T&S Overseas - Flights,UKRI - Newton Programme,Corporate Travel Management (North) Ltd,98686712,526.97,T&S Overseas - Flights
BEIS,UKRI - UKRI,05/02/2020,T&S Overseas - Flights,UKRI - Newton Programme,Corporate Travel Management (North) Ltd,98686712,394.70,T&S Overseas - Flights
BEIS,UKRI - UKRI,05/02/2020,T&S Overseas - Flights,UKRI - Newton Programme,Corporate Travel Management (North) Ltd,98686712,9.50,T&S Overseas - Flights
BEIS,UKRI - UKRI,05/02/2020,T&S Overseas - Flights,UKRI - Newton Programme,Corporate Travel Management (North) Ltd,98686712,958.37,T&S Overseas - Flights
BEIS,UKRI - UKRI,05/02/2020,T&S Overseas - Flights,UKRI - Newton Programme,Corporate Travel Management (North) Ltd,98686712,2.50,T&S Overseas - Flights
BEIS,UKRI - UKRI,05/02/2020,T&S Overseas - Flights,UKRI - Newton Programme,Corporate Travel Management (North) Ltd,98686712,818.07,T&S Overseas - Flights
BEIS,UKRI - UKRI,05/02/2020,T&S Overseas - Flights,UKRI - Newton Programme,Corporate Travel Management (North) Ltd,98686712,9.50,T&S Overseas - Flights
BEIS,UKRI - UKRI,05/02/2020,T&S Overseas - Flights,UKRI - Newton Programme,Corporate Travel Management (North) Ltd,98686712,958.37,T&S Overseas - Flights
BEIS,UKRI - UKRI,05/02/2020,T&S Overseas - Flights,UKRI - Newton Programme,Corporate Travel Management (North) Ltd,98686712,391.30,T&S Overseas - Flights
BEIS,UKRI - UKRI,05/02/2020,T&S Overseas - Flights,UKRI - Overseas Office China,Corporate Travel Management (North) Ltd,98686712,2.50,T&S Overseas - Flights
BEIS,UKRI - UKRI,05/02/2020,T&S Overseas - Flights,UKRI - Overseas Office China,Corporate Travel Management (North) Ltd,98686712,4632.57,T&S Overseas - Flights
BEIS,UKRI - UKRI,05/02/2020,T&S Overseas - Flights,UKRI - Overseas Office China,Corporate Travel Management (North) Ltd,98686712,2.50,T&S Overseas - Flights
BEIS,UKRI - UKRI,05/02/2020,T&S Overseas - Flights,UKRI - Overseas Office China,Corporate Travel Management (North) Ltd,98686712,903.97,T&S Overseas - Flights
BEIS,UKRI - UKRI,05/02/2020,T&S Overseas - Flights,UKRI - Private Office,Corporate Travel Management (North) Ltd,98686712,4.75,T&S Overseas - Flights
BEIS,UKRI - UKRI,05/02/2020,T&S Overseas - Flights,UKRI - Private Office,Corporate Travel Management (North) Ltd,98686712,1639.32,T&S Overseas - Flights
BEIS,UKRI - UKRI,05/02/2020,T&S Overseas - Flights,UKRI - Strategy,Corporate Travel Management (North) Ltd,98686712,7.00,T&S Overseas - Flights
BEIS,UKRI - UKRI,05/02/2020,T&S Overseas - Flights,UKRI - Strategy,Corporate Travel Management (North) Ltd,98686712,543.24,T&S Overseas - Flights
BEIS,UKRI - UKRI,05/02/2020,T&S Overseas - Flights,UKRI - UKRO,Corporate Travel Management (North) Ltd,98686712,2.50,T&S Overseas - Flights
BEIS,UKRI - UKRI,05/02/2020,T&S Overseas - Flights,UKRI - UKRO,Corporate Travel Management (North) Ltd,98686712,113.00,T&S Overseas - Flights
BEIS,UKRI - UKRI,05/02/2020,T&S Overseas - Other Charges,UKRI - GCRF Delivery,Corporate Travel Management (North) Ltd,98686712,373.31,T&S Overseas - Other Charges
BEIS,UKRI - UKRI,05/02/2020,T&S Overseas - Other Charges,UKRI - GCRF Delivery,Corporate Travel Management (North) Ltd,98686712,183.92,T&S Overseas - Other Charges
BEIS,UKRI - UKRI,05/02/2020,T&S Overseas - Public Transport,UKRI - Corporate Services,Corporate Travel Management (North) Ltd,98686712,2.16,T&S Overseas - Public Transport
BEIS,UKRI - UKRI,05/02/2020,T&S Overseas - Public Transport,UKRI - Corporate Services,Corporate Travel Management (North) Ltd,98686712,2146.20,T&S Overseas - Public Transport
BEIS,UKRI - UKRI,05/02/2020,T&S Overseas - Public Transport,UKRI - Corporate Services,Corporate Travel Management (North) Ltd,98686712,0.25,T&S Overseas - Public Transport
BEIS,UKRI - UKRI,05/02/2020,T&S Overseas - Public Transport,UKRI - Corporate Services,Corporate Travel Management (North) Ltd,98686712,162.50,T&S Overseas - Public Transport
BEIS,UKRI - UKRI,05/02/2020,T&S Overseas - Public Transport,UKRI - Secretariat,Corporate Travel Management (North) Ltd,98686712,0.25,T&S Overseas - Public Transport
BEIS,UKRI - UKRI,05/02/2020,T&S Overseas - Public Transport,UKRI - Secretariat,Corporate Travel Management (North) Ltd,98686712,144.00,T&S Overseas - Public Transport
BEIS,UKRI - EPSRC,05/02/2020,T&S UK - Accommodation,Business Engagement,Corporate Travel Management (North) Ltd,98686712,0.80,T&S UK - Accommodation
BEIS,UKRI - EPSRC,05/02/2020,T&S UK - Accommodation,Business Engagement,Corporate Travel Management (North) Ltd,98686712,154.40,T&S UK - Accommodation
BEIS,UKRI - EPSRC,05/02/2020,T&S UK - Accommodation,Business Engagement,Corporate Travel Management (North) Ltd,98686712,0.80,T&S UK - Accommodation
BEIS,UKRI - EPSRC,05/02/2020,T&S UK - Accommodation,Business Engagement,Corporate Travel Management (North) Ltd,98686712,91.00,T&S UK - Accommodation
BEIS,UKRI - EPSRC,05/02/2020,T&S UK - Accommodation,Business Engagement,Corporate Travel Management (North) Ltd,98686712,0.32,T&S UK - Accommodation
BEIS,UKRI - EPSRC,05/02/2020,T&S UK - Accommodation,Executive Chair and Deputy Exec Chairs,Corporate Travel Management (North) Ltd,98686712,0.80,T&S UK - Accommodation
BEIS,UKRI - EPSRC,05/02/2020,T&S UK - Accommodation,Executive Chair and Deputy Exec Chairs,Corporate Travel Management (North) Ltd,98686712,283.00,T&S UK - Accommodation
BEIS,UKRI - EPSRC,05/02/2020,T&S UK - Accommodation,Executive Chair and Deputy Exec Chairs,Corporate Travel Management (North) Ltd,98686712,0.80,T&S UK - Accommodation
BEIS,UKRI - EPSRC,05/02/2020,T&S UK - Accommodation,Executive Chair and Deputy Exec Chairs,Corporate Travel Management (North) Ltd,98686712,146.40,T&S UK - Accommodation
BEIS,UKRI - EPSRC,05/02/2020,T&S UK - Accommodation,Executive Chair and Deputy Exec Chairs,Corporate Travel Management (North) Ltd,98686712,0.80,T&S UK - Accommodation
BEIS,UKRI - EPSRC,05/02/2020,T&S UK - Accommodation,Executive Chair and Deputy Exec Chairs,Corporate Travel Management (North) Ltd,98686712,107.00,T&S UK - Accommodation
BEIS,UKRI - EPSRC,05/02/2020,T&S UK - Accommodation,Executive Chair and Deputy Exec Chairs,Corporate Travel Management (North) Ltd,98686712,0.48,T&S UK - Accommodation
BEIS,UKRI - EPSRC,05/02/2020,T&S UK - Accommodation,Governance and Planning,Corporate Travel Management (North) Ltd,98686712,0.80,T&S UK - Accommodation
BEIS,UKRI - EPSRC,05/02/2020,T&S UK - Accommodation,Governance and Planning,Corporate Travel Management (North) Ltd,98686712,170.00,T&S UK - Accommodation
BEIS,UKRI - EPSRC,05/02/2020,T&S UK - Accommodation,Governance and Planning,Corporate Travel Management (North) Ltd,98686712,0.16,T&S UK - Accommodation
BEIS,UKRI - EPSRC,05/02/2020,T&S UK - Accommodation,Programme Delivery Engineering,Corporate Travel Management (North) Ltd,98686712,0.80,T&S UK - Accommodation
BEIS,UKRI - EPSRC,05/02/2020,T&S UK - Accommodation,Programme Delivery Engineering,Corporate Travel Management (North) Ltd,98686712,199.00,T&S UK - Accommodation
BEIS,UKRI - EPSRC,05/02/2020,T&S UK - Accommodation,Programme Delivery Engineering,Corporate Travel Management (North) Ltd,98686712,0.80,T&S UK - Accommodation
BEIS,UKRI - EPSRC,05/02/2020,T&S UK - Accommodation,Programme Delivery Engineering,Corporate Travel Management (North) Ltd,98686712,98.60,T&S UK - Accommodation
BEIS,UKRI - EPSRC,05/02/2020,T&S UK - Accommodation,Programme Delivery Engineering,Corporate Travel Management (North) Ltd,98686712,0.32,T&S UK - Accommodation
BEIS,UKRI - EPSRC,05/02/2020,T&S UK - Accommodation,Programme Delivery Healthcare,Corporate Travel Management (North) Ltd,98686712,0.80,T&S UK - Accommodation
BEIS,UKRI - EPSRC,05/02/2020,T&S UK - Accommodation,Programme Delivery Healthcare,Corporate Travel Management (North) Ltd,98686712,85.00,T&S UK - Accommodation
BEIS,UKRI - EPSRC,05/02/2020,T&S UK - Accommodation,Programme Delivery Healthcare,Corporate Travel Management (North) Ltd,98686712,0.80,T&S UK - Accommodation
BEIS,UKRI - EPSRC,05/02/2020,T&S UK - Accommodation,Programme Delivery Healthcare,Corporate Travel Management (North) Ltd,98686712,67.00,T&S UK - Accommodation
BEIS,UKRI - EPSRC,05/02/2020,T&S UK - Accommodation,Programme Delivery Healthcare,Corporate Travel Management (North) Ltd,98686712,0.80,T&S UK - Accommodation
BEIS,UKRI - EPSRC,05/02/2020,T&S UK - Accommodation,Programme Delivery Healthcare,Corporate Travel Management (North) Ltd,98686712,67.00,T&S UK - Accommodation
BEIS,UKRI - EPSRC,05/02/2020,T&S UK - Accommodation,Programme Delivery Healthcare,Corporate Travel Management (North) Ltd,98686712,0.48,T&S UK - Accommodation
BEIS,UKRI - EPSRC,05/02/2020,T&S UK - Accommodation,Programme Delivery ICT,Corporate Travel Management (North) Ltd,98686712,0.80,T&S UK - Accommodation
BEIS,UKRI - EPSRC,05/02/2020,T&S UK - Accommodation,Programme Delivery ICT,Corporate Travel Management (North) Ltd,98686712,188.00,T&S UK - Accommodation
BEIS,UKRI - EPSRC,05/02/2020,T&S UK - Accommodation,Programme Delivery ICT,Corporate Travel Management (North) Ltd,98686712,0.80,T&S UK - Accommodation
BEIS,UKRI - EPSRC,05/02/2020,T&S UK - Accommodation,Programme Delivery ICT,Corporate Travel Management (North) Ltd,98686712,94.00,T&S UK - Accommodation
BEIS,UKRI - EPSRC,05/02/2020,T&S UK - Accommodation,Programme Delivery ICT,Corporate Travel Management (North) Ltd,98686712,0.80,T&S UK - Accommodation
BEIS,UKRI - EPSRC,05/02/2020,T&S UK - Accommodation,Programme Delivery ICT,Corporate Travel Management (North) Ltd,98686712,74.00,T&S UK - Accommodation
BEIS,UKRI - EPSRC,05/02/2020,T&S UK - Accommodation,Programme Delivery ICT,Corporate Travel Management (North) Ltd,98686712,0.48,T&S UK - Accommodation
BEIS,UKRI - EPSRC,05/02/2020,T&S UK - Accommodation,Programme Delivery Impact,Corporate Travel Management (North) Ltd,98686712,0.80,T&S UK - Accommodation
BEIS,UKRI - EPSRC,05/02/2020,T&S UK - Accommodation,Programme Delivery Impact,Corporate Travel Management (North) Ltd,98686712,75.00,T&S UK - Accommodation
BEIS,UKRI - EPSRC,05/02/2020,T&S UK - Accommodation,Programme Delivery Impact,Corporate Travel Management (North) Ltd,98686712,0.16,T&S UK - Accommodation
BEIS,UKRI - EPSRC,05/02/2020,T&S UK - Accommodation,Programme Delivery Manufacturing,Corporate Travel Management (North) Ltd,98686712,0.80,T&S UK - Accommodation
BEIS,UKRI - EPSRC,05/02/2020,T&S UK - Accommodation,Programme Delivery Manufacturing,Corporate Travel Management (North) Ltd,98686712,80.00,T&S UK - Accommodation
BEIS,UKRI - EPSRC,05/02/2020,T&S UK - Accommodation,Programme Delivery Manufacturing,Corporate Travel Management (North) Ltd,98686712,0.80,T&S UK - Accommodation
BEIS,UKRI - EPSRC,05/02/2020,T&S UK - Accommodation,Programme Delivery Manufacturing,Corporate Travel Management (North) Ltd,98686712,66.50,T&S UK - Accommodation
BEIS,UKRI - EPSRC,05/02/2020,T&S UK - Accommodation,Programme Delivery Manufacturing,Corporate Travel Management (North) Ltd,98686712,0.32,T&S UK - Accommodation
BEIS,UKRI - EPSRC,05/02/2020,T&S UK - Accommodation,Programme Delivery Maths,Corporate Travel Management (North) Ltd,98686712,0.80,T&S UK - Accommodation
BEIS,UKRI - EPSRC,05/02/2020,T&S UK - Accommodation,Programme Delivery Maths,Corporate Travel Management (North) Ltd,98686712,183.20,T&S UK - Accommodation
BEIS,UKRI - EPSRC,05/02/2020,T&S UK - Accommodation,Programme Delivery Maths,Corporate Travel Management (North) Ltd,98686712,0.16,T&S UK - Accommodation
BEIS,UKRI - EPSRC,05/02/2020,T&S UK - Accommodation,Programme Delivery Physical Sciences,Corporate Travel Management (North) Ltd,98686712,0.80,T&S UK - Accommodation
BEIS,UKRI - EPSRC,05/02/2020,T&S UK - Accommodation,Programme Delivery Physical Sciences,Corporate Travel Management (North) Ltd,98686712,120.00,T&S UK - Accommodation
BEIS,UKRI - EPSRC,05/02/2020,T&S UK - Accommodation,Programme Delivery Physical Sciences,Corporate Travel Management (North) Ltd,98686712,0.80,T&S UK - Accommodation
BEIS,UKRI - EPSRC,05/02/2020,T&S UK - Accommodation,Programme Delivery Physical Sciences,Corporate Travel Management (North) Ltd,98686712,133.70,T&S UK - Accommodation
BEIS,UKRI - EPSRC,05/02/2020,T&S UK - Accommodation,Programme Delivery Physical Sciences,Corporate Travel Management (North) Ltd,98686712,0.80,T&S UK - Accommodation
BEIS,UKRI - EPSRC,05/02/2020,T&S UK - Accommodation,Programme Delivery Physical Sciences,Corporate Travel Management (North) Ltd,98686712,133.70,T&S UK - Accommodation
BEIS,UKRI - EPSRC,05/02/2020,T&S UK - Accommodation,Programme Delivery Physical Sciences,Corporate Travel Management (North) Ltd,98686712,0.80,T&S UK - Accommodation
BEIS,UKRI - EPSRC,05/02/2020,T&S UK - Accommodation,Programme Delivery Physical Sciences,Corporate Travel Management (North) Ltd,98686712,133.70,T&S UK - Accommodation
BEIS,UKRI - EPSRC,05/02/2020,T&S UK - Accommodation,Programme Delivery Physical Sciences,Corporate Travel Management (North) Ltd,98686712,0.80,T&S UK - Accommodation
BEIS,UKRI - EPSRC,05/02/2020,T&S UK - Accommodation,Programme Delivery Physical Sciences,Corporate Travel Management (North) Ltd,98686712,133.70,T&S UK - Accommodation
BEIS,UKRI - EPSRC,05/02/2020,T&S UK - Accommodation,Programme Delivery Physical Sciences,Corporate Travel Management (North) Ltd,98686712,0.80,T&S UK - Accommodation
BEIS,UKRI - EPSRC,05/02/2020,T&S UK - Accommodation,Programme Delivery Physical Sciences,Corporate Travel Management (North) Ltd,98686712,133.70,T&S UK - Accommodation
BEIS,UKRI - EPSRC,05/02/2020,T&S UK - Accommodation,Programme Delivery Physical Sciences,Corporate Travel Management (North) Ltd,98686712,0.80,T&S UK - Accommodation
BEIS,UKRI - EPSRC,05/02/2020,T&S UK - Accommodation,Programme Delivery Physical Sciences,Corporate Travel Management (North) Ltd,98686712,133.70,T&S UK - Accommodation
BEIS,UKRI - EPSRC,05/02/2020,T&S UK - Accommodation,Programme Delivery Physical Sciences,Corporate Travel Management (North) Ltd,98686712,0.80,T&S UK - Accommodation
BEIS,UKRI - EPSRC,05/02/2020,T&S UK - Accommodation,Programme Delivery Physical Sciences,Corporate Travel Management (North) Ltd,98686712,133.70,T&S UK - Accommodation
BEIS,UKRI - EPSRC,05/02/2020,T&S UK - Accommodation,Programme Delivery Physical Sciences,Corporate Travel Management (North) Ltd,98686712,1.28,T&S UK - Accommodation
BEIS,UKRI - Research England,05/02/2020,T&S UK - Accommodation,RE - Executive Group,Corporate Travel Management (North) Ltd,98686712,0.80,T&S UK - Accommodation
BEIS,UKRI - Research England,05/02/2020,T&S UK - Accommodation,RE - Executive Group,Corporate Travel Management (North) Ltd,98686712,90.00,T&S UK - Accommodation
BEIS,UKRI - Research England,05/02/2020,T&S UK - Accommodation,RE - Executive Group,Corporate Travel Management (North) Ltd,98686712,0.80,T&S UK - Accommodation
BEIS,UKRI - Research England,05/02/2020,T&S UK - Accommodation,RE - Executive Group,Corporate Travel Management (North) Ltd,98686712,40.60,T&S UK - Accommodation
BEIS,UKRI - Research England,05/02/2020,T&S UK - Accommodation,RE - Executive Group,Corporate Travel Management (North) Ltd,98686712,0.80,T&S UK - Accommodation
BEIS,UKRI - Research England,05/02/2020,T&S UK - Accommodation,RE - Executive Group,Corporate Travel Management (North) Ltd,98686712,0.48,T&S UK - Accommodation
BEIS,UKRI - Research England,05/02/2020,T&S UK - Accommodation,RE - Insight and Engagement,Corporate Travel Management (North) Ltd,98686712,1.60,T&S UK - Accommodation
BEIS,UKRI - Research England,05/02/2020,T&S UK - Accommodation,RE - Insight and Engagement,Corporate Travel Management (North) Ltd,98686712,73.00,T&S UK - Accommodation
BEIS,UKRI - Research England,05/02/2020,T&S UK - Accommodation,RE - Insight and Engagement,Corporate Travel Management (North) Ltd,98686712,364.65,T&S UK - Accommodation
BEIS,UKRI - Research England,05/02/2020,T&S UK - Accommodation,RE - Insight and Engagement,Corporate Travel Management (North) Ltd,98686712,0.80,T&S UK - Accommodation
BEIS,UKRI - Research England,05/02/2020,T&S UK - Accommodation,RE - Insight and Engagement,Corporate Travel Management (North) Ltd,98686712,451.82,T&S UK - Accommodation
BEIS,UKRI - Research England,05/02/2020,T&S UK - Accommodation,RE - Insight and Engagement,Corporate Travel Management (North) Ltd,98686712,0.80,T&S UK - Accommodation
BEIS,UKRI - Research England,05/02/2020,T&S UK - Accommodation,RE - Insight and Engagement,Corporate Travel Management (North) Ltd,98686712,124.60,T&S UK - Accommodation
BEIS,UKRI - Research England,05/02/2020,T&S UK - Accommodation,RE - Insight and Engagement,Corporate Travel Management (North) Ltd,98686712,0.80,T&S UK - Accommodation
BEIS,UKRI - Research England,05/02/2020,T&S UK - Accommodation,RE - Insight and Engagement,Corporate Travel Management (North) Ltd,98686712,94.00,T&S UK - Accommodation
BEIS,UKRI - Research England,05/02/2020,T&S UK - Accommodation,RE - Insight and Engagement,Corporate Travel Management (North) Ltd,98686712,0.80,T&S UK - Accommodation
BEIS,UKRI - Research England,05/02/2020,T&S UK - Accommodation,RE - Insight and Engagement,Corporate Travel Management (North) Ltd,98686712,84.50,T&S UK - Accommodation
BEIS,UKRI - Research England,05/02/2020,T&S UK - Accommodation,RE - Insight and Engagement,Corporate Travel Management (North) Ltd,98686712,2.00,T&S UK - Accommodation
BEIS,UKRI - Research England,05/02/2020,T&S UK - Accommodation,RE - Insight and Engagement,Corporate Travel Management (North) Ltd,98686712,84.50,T&S UK - Accommodation
BEIS,UKRI - Research England,05/02/2020,T&S UK - Accommodation,RE - Insight and Engagement,Corporate Travel Management (North) Ltd,98686712,0.80,T&S UK - Accommodation
BEIS,UKRI - Research England,05/02/2020,T&S UK - Accommodation,RE - Insight and Engagement,Corporate Travel Management (North) Ltd,98686712,120.00,T&S UK - Accommodation
BEIS,UKRI - Research England,05/02/2020,T&S UK - Accommodation,RE - Insight and Engagement,Corporate Travel Management (North) Ltd,98686712,1.52,T&S UK - Accommodation
BEIS,UKRI - Research England,05/02/2020,T&S UK - Accommodation,RE - Knowledge Exchange,Corporate Travel Management (North) Ltd,98686712,0.80,T&S UK - Accommodation
BEIS,UKRI - Research England,05/02/2020,T&S UK - Accommodation,RE - Knowledge Exchange,Corporate Travel Management (North) Ltd,98686712,135.00,T&S UK - Accommodation
BEIS,UKRI - Research England,05/02/2020,T&S UK - Accommodation,RE - Knowledge Exchange,Corporate Travel Management (North) Ltd,98686712,0.80,T&S UK - Accommodation
BEIS,UKRI - Research England,05/02/2020,T&S UK - Accommodation,RE - Knowledge Exchange,Corporate Travel Management (North) Ltd,98686712,135.00,T&S UK - Accommodation
BEIS,UKRI - Research England,05/02/2020,T&S UK - Accommodation,RE - Knowledge Exchange,Corporate Travel Management (North) Ltd,98686712,0.80,T&S UK - Accommodation
BEIS,UKRI - Research England,05/02/2020,T&S UK - Accommodation,RE - Knowledge Exchange,Corporate Travel Management (North) Ltd,98686712,165.00,T&S UK - Accommodation
BEIS,UKRI - Research England,05/02/2020,T&S UK - Accommodation,RE - Knowledge Exchange,Corporate Travel Management (North) Ltd,98686712,0.80,T&S UK - Accommodation
BEIS,UKRI - Research England,05/02/2020,T&S UK - Accommodation,RE - Knowledge Exchange,Corporate Travel Management (North) Ltd,98686712,0.80,T&S UK - Accommodation
BEIS,UKRI - Research England,05/02/2020,T&S UK - Accommodation,RE - Knowledge Exchange,Corporate Travel Management (North) Ltd,98686712,0.80,T&S UK - Accommodation
BEIS,UKRI - Research England,05/02/2020,T&S UK - Accommodation,RE - Knowledge Exchange,Corporate Travel Management (North) Ltd,98686712,0.96,T&S UK - Accommodation
BEIS,UKRI - Research England,05/02/2020,T&S UK - Accommodation,RE - Operations and Private Office,Corporate Travel Management (North) Ltd,98686712,0.80,T&S UK - Accommodation
BEIS,UKRI - Research England,05/02/2020,T&S UK - Accommodation,RE - Operations and Private Office,Corporate Travel Management (North) Ltd,98686712,165.75,T&S UK - Accommodation
BEIS,UKRI - Research England,05/02/2020,T&S UK - Accommodation,RE - Operations and Private Office,Corporate Travel Management (North) Ltd,98686712,0.16,T&S UK - Accommodation
BEIS,UKRI - Research England,05/02/2020,T&S UK - Accommodation,RE - Research,Corporate Travel Management (North) Ltd,98686712,0.80,T&S UK - Accommodation
BEIS,UKRI - Research England,05/02/2020,T&S UK - Accommodation,RE - Research,Corporate Travel Management (North) Ltd,98686712,159.00,T&S UK - Accommodation
BEIS,UKRI - Research England,05/02/2020,T&S UK - Accommodation,RE - Research,Corporate Travel Management (North) Ltd,98686712,0.80,T&S UK - Accommodation
BEIS,UKRI - Research England,05/02/2020,T&S UK - Accommodation,RE - Research,Corporate Travel Management (North) Ltd,98686712,137.00,T&S UK - Accommodation
BEIS,UKRI - Research England,05/02/2020,T&S UK - Accommodation,RE - Research,Corporate Travel Management (North) Ltd,98686712,0.80,T&S UK - Accommodation
BEIS,UKRI - Research England,05/02/2020,T&S UK - Accommodation,RE - Research,Corporate Travel Management (North) Ltd,98686712,58.22,T&S UK - Accommodation
BEIS,UKRI - Research England,05/02/2020,T&S UK - Accommodation,RE - Research,Corporate Travel Management (North) Ltd,98686712,0.80,T&S UK - Accommodation
BEIS,UKRI - Research England,05/02/2020,T&S UK - Accommodation,RE - Research,Corporate Travel Management (North) Ltd,98686712,55.74,T&S UK - Accommodation
BEIS,UKRI - Research England,05/02/2020,T&S UK - Accommodation,RE - Research,Corporate Travel Management (North) Ltd,98686712,0.80,T&S UK - Accommodation
BEIS,UKRI - Research England,05/02/2020,T&S UK - Accommodation,RE - Research,Corporate Travel Management (North) Ltd,98686712,55.74,T&S UK - Accommodation
BEIS,UKRI - Research England,05/02/2020,T&S UK - Accommodation,RE - Research,Corporate Travel Management (North) Ltd,98686712,0.80,T&S UK - Accommodation
BEIS,UKRI - Research England,05/02/2020,T&S UK - Accommodation,RE - Research,Corporate Travel Management (North) Ltd,98686712,30.00,T&S UK - Accommodation
BEIS,UKRI - Research England,05/02/2020,T&S UK - Accommodation,RE - Research,Corporate Travel Management (North) Ltd,98686712,0.80,T&S UK - Accommodation
BEIS,UKRI - Research England,05/02/2020,T&S UK - Accommodation,RE - Research,Corporate Travel Management (North) Ltd,98686712,84.50,T&S UK - Accommodation
BEIS,UKRI - Research England,05/02/2020,T&S UK - Accommodation,RE - Research,Corporate Travel Management (North) Ltd,98686712,1.12,T&S UK - Accommodation
BEIS,UKRI - Research England,05/02/2020,T&S UK - Accommodation,RE - Research Excellence Framework (REF),Corporate Travel Management (North) Ltd,98686712,0.80,T&S UK - Accommodation
BEIS,UKRI - Research England,05/02/2020,T&S UK - Accommodation,RE - Research Excellence Framework (REF),Corporate Travel Management (North) Ltd,98686712,0.80,T&S UK - Accommodation
BEIS,UKRI - Research England,05/02/2020,T&S UK - Accommodation,RE - Research Excellence Framework (REF),Corporate Travel Management (North) Ltd,98686712,0.80,T&S UK - Accommodation
BEIS,UKRI - Research England,05/02/2020,T&S UK - Accommodation,RE - Research Excellence Framework (REF),Corporate Travel Management (North) Ltd,98686712,0.48,T&S UK - Accommodation
BEIS,UKRI - Research England,05/02/2020,T&S UK - Accommodation,RE - SIPF Programme Delivery,Corporate Travel Management (North) Ltd,98686712,0.80,T&S UK - Accommodation
BEIS,UKRI - Research England,05/02/2020,T&S UK - Accommodation,RE - SIPF Programme Delivery,Corporate Travel Management (North) Ltd,98686712,165.00,T&S UK - Accommodation
BEIS,UKRI - Research England,05/02/2020,T&S UK - Accommodation,RE - SIPF Programme Delivery,Corporate Travel Management (North) Ltd,98686712,0.80,T&S UK - Accommodation
BEIS,UKRI - Research England,05/02/2020,T&S UK - Accommodation,RE - SIPF Programme Delivery,Corporate Travel Management (North) Ltd,98686712,165.00,T&S UK - Accommodation
BEIS,UKRI - Research England,05/02/2020,T&S UK - Accommodation,RE - SIPF Programme Delivery,Corporate Travel Management (North) Ltd,98686712,0.80,T&S UK - Accommodation
BEIS,UKRI - Research England,05/02/2020,T&S UK - Accommodation,RE - SIPF Programme Delivery,Corporate Travel Management (North) Ltd,98686712,165.00,T&S UK - Accommodation
BEIS,UKRI - Research England,05/02/2020,T&S UK - Accommodation,RE - SIPF Programme Delivery,Corporate Travel Management (North) Ltd,98686712,0.48,T&S UK - Accommodation
BEIS,UKRI - UKRI,05/02/2020,T&S UK - Accommodation,UKRI - Information Governance,Corporate Travel Management (North) Ltd,98686712,0.80,T&S UK - Accommodation
BEIS,UKRI - UKRI,05/02/2020,T&S UK - Accommodation,UKRI - Information Governance,Corporate Travel Management (North) Ltd,98686712,114.75,T&S UK - Accommodation
BEIS,UKRI - UKRI,05/02/2020,T&S UK - Accommodation,UKRI - Information Governance,Corporate Travel Management (North) Ltd,98686712,0.80,T&S UK - Accommodation
BEIS,UKRI - UKRI,05/02/2020,T&S UK - Accommodation,UKRI - Information Governance,Corporate Travel Management (North) Ltd,98686712,114.75,T&S UK - Accommodation
BEIS,UKRI - UKRI,05/02/2020,T&S UK - Accommodation,UKRI - Information Governance,Corporate Travel Management (North) Ltd,98686712,0.80,T&S UK - Accommodation
BEIS,UKRI - UKRI,05/02/2020,T&S UK - Accommodation,UKRI - Information Governance,Corporate Travel Management (North) Ltd,98686712,75.00,T&S UK - Accommodation
BEIS,UKRI - UKRI,05/02/2020,T&S UK - Accommodation,UKRI - Information Governance,Corporate Travel Management (North) Ltd,98686712,0.80,T&S UK - Accommodation
